Workbook

Sheet Corr from Data
B11: n = | H11: top = | I11: =(C11*C21)-(C13*C17) -> 0
E12: r = | F12: =I11/I17 -> 
B13: Sum X = | H13: X = | I13: =(C11*C15)-(C13^2) -> 0
B15: Sum X2 = | E15: r2 = | F15: =F12^2 ->  | H15: Y = | I15: =(C11*C19)-(C17^2) -> 0
B17: Sum Y = | H17: Bottom = | I17: =(I13*I15)^0.5 -> 0
B19: Sum Y2 =
B21: Sum XY =

Sheet Simple
B1: Pearson's r | H1: SUM OF | L1: t = | M1: =(I14)/(((1-I16)/(I10-2))^0.5) -> 1.5706 | O1: df | P1: SS | Q1: MS | V1: =SUM(V3:V1502) -> 0.0875 | W1: =SUM(W3:W1502) -> 1.0484 | X1: =SUM(X3:X1502) -> 0.1598710507 | Y1: =SUM(Y3:Y1502) -> 0.07725743618 | Z1: =SUM(Z3:Z1502) -> 2.145584286 | AC1: =SUM(AC3:AC1502) -> -0.0000 | AD1: =SUM(AD3:AD1502) -> 10.1863 | AE1: =SUM(AE3:AE1502) -> 22.7500 | AF1: =SUM(AF3:AF1502) -> 12.5637 | AG1: =AF1/(AD1/(I10-2)) -> 2.4668 | AH1: =SUM(AH3:AH1502) -> 0.0000 | AI1: =SUM(AI3:AI1502) -> 0.0392
B2: X (ind) | C2: Y (dep) | D2: X2 | E2: Y2 | F2: XY | L2: p = | M2: =TDIST(ABS(M1),I10-1,2) -> 0.2143 | N2: Regression (SSR) | O2: 1 | P2: =AF1 -> 12.564 | Q2: =AF1 -> 12.564 | V2: SSX | W2: (Xi-X)(Yi-Y) | X2: X3 | Y2: X4 | Z2: X2Y | AB2: FittedY | AC2: ErrorY | AD2: Error Squared | AE2: Y-Mean | AF2: EstY-MeanSq | AG2: FittedX | AH2: ResidX | AI2: ResidSq
B3: 0.168 | C3: 5 | D3: =IF(B3="","",B3^2) -> 0.028224 | E3: =IF(C3="","",C3^2) -> 25 | F3: =IF(B3="","",IF(C3="","",B3*C3)) -> 0.84 | H3: X = | I3: =SUM(B3:B1502) -> 1.064428571 | N3: Residual (SSE) | O3: =I10-2 -> 2 | P3: =AD1 -> 10.186 | Q3: =AD1/(I10-2) -> 5.093 | V3: =IF(ISBLANK(B3),"",(B3-$I$11)^2) -> 0.0096 | W3: =IF(ISBLANK(B3),0,IF(ISBLANK(C3),0,(B3-$I$11)*(C3-$I$12))) -> -0.1226 | X3: =B3^3 -> 0.004741632 | Y3: =B3^4 -> 0.000796594176 | Z3: =IF(C3="","",D3*C3) -> 0.14112 | AB3: =IF(B3="","",$U$21+($U$23*B3)) -> 2.574 | AC3: =IF(B3="","",C3-AB3) -> 2.426 | AD3: =IF(B3="","",AC3^2) -> 5.884 | AE3: =IF(C3="","",(C3-$I$12)^2) -> 1.563 | AF3: =IF(C3="","",(AB3-$I$12)^2) -> 1.382 | AG3: =IF(C3="","",$U$25+(C3*$U$27)) -> 0.324 | AH3: =IF(C3="","",B3-AG3) -> -0.156 | AI3: =IF(C3="","",AH3^2) -> 0.024
B4: 0.5214285714 | C4: 7 | D4: =IF(B4="","",B4^2) -> 0.2718877551 | E4: =IF(C4="","",C4^2) -> 49 | F4: =IF(B4="","",IF(C4="","",B4*C4)) -> 3.65 | H4: Y = | I4: =SUM(C3:C1502) -> 15 | K4: Anova | L4: F= | M4: =AG1 -> 2.467 | N4: Total (SST) | O4: =O2+O3 -> 3 | P4: =P2+P3 -> 22.750 | V4: =IF(ISBLANK(B4),"",(B4-$I$11)^2) -> 0.0652 | W4: =IF(ISBLANK(B4),0,IF(ISBLANK(C4),0,(B4-$I$11)*(C4-$I$12))) -> 0.8298 | X4: =B4^3 -> 0.1417700437 | Y4: =B4^4 -> 0.07392295137 | Z4: =IF(C4="","",D4*C4) -> 1.903214286 | AB4: =IF(B4="","",$U$21+($U$23*B4)) -> 6.810 | AC4: =IF(B4="","",C4-AB4) -> 0.190 | AD4: =IF(B4="","",AC4^2) -> 0.036 | AE4: =IF(C4="","",(C4-$I$12)^2) -> 10.563 | AF4: =IF(C4="","",(AB4-$I$12)^2) -> 9.362 | AG4: =IF(C4="","",$U$25+(C4*$U$27)) -> 0.416 | AH4: =IF(C4="","",B4-AG4) -> 0.106 | AI4: =IF(C4="","",AH4^2) -> 0.011
B5: 0.175 | C5: 2 | D5: 0.030625 | E5: 4 | F5: 0.35 | L5: p = | M5: =FDIST(M4,O2,O3) -> 0.2569 | V5: 0.0083 | W5: 0.1594 | X5: 0.005359375 | Y5: 0.000937890625 | Z5: 0.06125 | AB5: 2.658 | AC5: -0.658 | AD5: 0.433 | AE5: 3.063 | AF5: 1.192 | AG5: 0.185 | AH5: -0.010 | AI5: 0.000
B6: 0.2 | C6: 1 | D6: 0.04 | E6: 1 | F6: 0.2 | H6: X2 = | I6: =SUM(D3:D1502) -> 0.3707367551 | V6: 0.0044 | W6: 0.1818 | X6: 0.008 | Y6: 0.0016 | Z6: 0.04 | AB6: 2.958 | AC6: -1.958 | AD6: 3.833 | AE6: 7.563 | AF6: 0.628 | AG6: 0.139 | AH6: 0.061 | AI6: 0.004
H7: Y2 = | I7: =SUM(E3:E1502) -> 79 | K7: Level of Significance | N7: 0.05 | Q7: =(1-N7)*100&"% Confidence Interval for Predicted Y" -> 95% Confidence Interval for Predicted Y | W7: 0.0000 | X7: 0 | Y7: 0
H8: XY = | I8: =SUM(F3:F1502) -> 5.04 | Q8: =Prediction!I4-(U31*I18*(((1/I10)+(((Prediction!I3-I11)^2)/V1))^0.5)) ->  | R8: =Prediction!I4+(U31*I18*(((1/I10)+(((Prediction!I3-I11)^2)/V1))^0.5)) ->  | W8: 0.0000 | X8: 0 | Y8: 0
L9: df | M9: 0.10 | N9: 0.05 | O9: 0.01 | T9: =(I8-((I3*I4)/I10)) -> 1.048392857 | W9: 0.0000 | X9: 0 | Y9: 0
H10: N = | I10: =COUNT(B3:B1502) -> 4 | K10: =IF(L10=($I$10-2),(IF($M$9=$N$7,(IF(M10<ABS($I$14),"YES","NO")),(IF($O$9=$N$7,(IF(O10<ABS($I$14),"YES","NO")),(IF(N10<ABS($I$14),"YES","NO")))))),"") ->  | L10: 1 | M10: 0.98769 | N10: 0.99690 | O10: 0.99988 | W10: 0.0000 | X10: 0 | Y10: 0 | AK10: CRAMERS RULE X3 | AN10: =I10 -> 4.00 | AO10: =I3 -> 1.06 | AP10: =I6 -> 0.37 | AQ10: =I4 -> 15.00 | AS10: D = | AT10: =((((AK15*AL16)*AM17)+((AL15*AM16)*AK17))+((AM15*AK16)*AL17))-((((AM15*AL16)*AK17)+((AK15*AM16)*AL17))+((AL15*AK16)*AM17)) -> 0.00002
H11: MeanX = | I11: =I3/I10 -> 0.266 | K11: NO | L11: 2 | M11: 0.9000 | N11: 0.95000 | O11: 0.99000 | Q11: =(1-N7)*100&"% Prediction Interval for Y" -> 95% Prediction Interval for Y | T11: =(I6-((I3^2)/I10)) -> 0.08748470918 | W11: 0.0000 | X11: 0 | Y11: 0 | AN11: =I3 -> 1.06 | AO11: =I6 -> 0.37 | AP11: =X1 -> 0.16 | AQ11: =I8 -> 5.04
H12: MeanY = | I12: =I4/I10 -> 3.750 | L12: 3 | M12: 0.8054 | N12: 0.8783 | O12: 0.95873 | Q12: =Prediction!I4-(U31*I18*((1+(1/I10)+(((Prediction!I3-I11)^2)/V1))^0.5)) ->  | R12: =Prediction!I4+(U31*I18*((1+(1/I10)+(((Prediction!I3-I11)^2)/V1))^0.5)) ->  | W12: 0.0000 | X12: 0 | Y12: 0 | AN12: =I6 -> 0.37 | AO12: =X1 -> 0.16 | AP12: =Y1 -> 0.08 | AQ12: =Z1 -> 2.15 | AS12: Dx = | AT12: =((((AK20*AL21)*AM22)+((AL20*AM21)*AK22))+((AM20*AK21)*AL22))-((((AM20*AL21)*AK22)+((AK20*AM21)*AL22))+((AL20*AK21)*AM22)) -> 0.00072
L13: 4 | M13: 0.7293 | N13: 0.8114 | O13: 0.9172 | T13: =(I7-((I4^2)/I10)) -> 22.75 | W13: 0.0000 | X13: 0 | Y13: 0 | AS13: X = | AT13: =+AT12/AT10 -> 33.33805
H14: r = | I14: =((I8-(I3*I4/I10))/((I6-(I3^2/I10))*(I7-(I4^2/I10)))^0.5) -> 0.7431 | L14: 5 | M14: 0.6694 | N14: 0.7545 | O14: 0.8745 | W14: 0.0000 | X14: 0 | Y14: 0 | AK14: D = | AO14: Dy =
L15: 6 | M15: 0.6215 | N15: 0.7067 | O15: 0.8343 | Q15: =(1-N7)*100&"% Confidence Interval for Slope b1" -> 95% Confidence Interval for Slope b1 | T15: =((T11*T13)^0.5) -> 1.410771822 | W15: 0.0000 | X15: 0 | Y15: 0 | AK15: =+AN10 -> 4.00 | AL15: 1.06 | AM15: 0.37 | AO15: =+AN10 -> 4.00 | AP15: =+AQ10 -> 15.00 | AQ15: =+AP10 -> 0.37 | AS15: Dy = | AT15: =((((AO15*AP16)*AQ17)+((AP15*AQ16)*AO17))+((AQ15*AO16)*AP17))-((((AQ15*AP16)*AO17)+((AO15*AQ16)*AP17))+((AP15*AO16)*AQ17)) -> -0.00506
H16: r2 = | I16: =I14^2 -> 0.5522 | L16: 7 | M16: 0.5822 | N16: 0.6664 | O16: 0.7977 | Q16: =U23-(U31*(I18/(V1^0.5))) -> -20.8461 | R16: =U23+(U31*(I18/(V1^0.5))) -> 44.8136 | W16: 0.0000 | X16: 0 | Y16: 0 | AK16: 1.06 | AL16: 0.37 | AM16: 0.16 | AO16: =+AN11 -> 1.06 | AP16: =+AQ11 -> 5.04 | AQ16: =+AP11 -> 0.16 | AS16: Y = | AT16: =+AT15/AT10 -> -233.26252
L17: 8 | M17: 0.5494 | N17: 0.6319 | O17: 0.7646 | T17: =T9/T15 -> 0.743134248 | W17: 0.0000 | X17: 0 | Y17: 0 | AK17: 0.37 | AL17: 0.16 | AM17: 0.08 | AO17: =+AN12 -> 0.37 | AP17: =+AQ12 -> 2.15 | AQ17: =+AP12 -> 0.08
H18: se= | I18: =((I7-(I10*(I4/I10)^2)-(U23*(I8-((I4*(I3/I10))))))/(I10-2))^0.5 -> 2.2568 | L18: 9 | M18: 0.5214 | N18: 0.6021 | O18: 0.7348 | W18: 0.0000 | X18: 0 | Y18: 0 | AS18: Dz = | AT18: =((((AO20*AP21)*AQ22)+((AP20*AQ21)*AO22))+((AQ20*AO21)*AP22))-((((AQ20*AP21)*AO22)+((AO20*AQ21)*AP22))+((AP20*AO21)*AQ22)) -> 0.00761
L19: 10 | M19: 0.4973 | N19: 0.5760 | O19: 0.7079 | W19: 0.0000 | X19: 0 | Y19: 0 | AK19: Dx = | AO19: Dz = | AS19: Z = | AT19: =+AT18/AT10 -> 350.48882
H20: p = | I20: =M5 -> 0.2569 | L20: 11 | M20: 0.4762 | N20: 0.5529 | O20: 0.6835 | W20: 0.0000 | X20: 0 | Y20: 0 | AK20: =+AQ10 -> 15.00 | AL20: =+AO10 -> 1.06 | AM20: 0.37 | AO20: =+AN10 -> 4.00 | AP20: 1.06 | AQ20: =+AQ10 -> 15.00
L21: 12 | M21: 0.4575 | N21: 0.5324 | O21: 0.6614 | T21: a = | U21: =((I4*I6)-(I3*I8))/((I10*I6)-(I3^2)) -> 0.5610 | W21: 0.0000 | X21: 0 | Y21: 0 | AK21: =+AQ11 -> 5.04 | AL21: 0.37 | AM21: 0.16 | AO21: 1.06 | AP21: 0.37 | AQ21: =+AQ11 -> 5.04
H22: cov = | I22: =W1/(I10-1) -> 0.35 | L22: 13 | M22: 0.4409 | N22: 0.5139 | O22: 0.6411 | W22: 0.0000 | X22: 0 | Y22: 0 | AK22: =+AQ12 -> 2.15 | AL22: 0.16 | AM22: 0.08 | AO22: 0.37 | AP22: 0.16 | AQ22: =+AQ12 -> 2.15
L23: 14 | M23: 0.4259 | N23: 0.4973 | O23: 0.6226 | T23: b = | U23: =((I10*I8)-(I3*I4))/((I10*I6)-(I3^2)) -> 11.9837 | W23: 0.0000 | X23: 0 | Y23: 0
L24: 15 | M24: 0.4124 | N24: 0.4821 | O24: 0.6055 | W24: 0.0000 | X24: 0 | Y24: 0
L25: 16 | M25: 0.4000 | N25: 0.4683 | O25: 0.5897 | T25: c = | U25: =((I3*I7)-(I4*I8))/((I10*I7)-(I4^2)) -> 0.0933 | W25: 0.0000 | X25: 0 | Y25: 0
L26: 17 | M26: 0.3887 | N26: 0.4555 | O26: 0.5751 | W26: 0.0000 | X26: 0 | Y26: 0
L27: 18 | M27: 0.3783 | N27: 0.4438 | O27: 0.5614 | T27: d = | U27: =((I10*I8)-(I3*I4))/((I10*I7)-(I4^2)) -> 0.0461 | W27: 0.0000 | X27: 0 | Y27: 0
L28: 19 | M28: 0.3687 | N28: 0.4329 | O28: 0.5487 | W28: 0.0000 | X28: 0 | Y28: 0
L29: 20 | M29: 0.3598 | N29: 0.4227 | O29: 0.5368 | T29: =MAX(B3:B1502) -> 0.5214285714 | W29: 0.0000 | X29: 0 | Y29: 0
L30: 21 | M30: 0.3515 | N30: 0.4132 | O30: 0.5256 | W30: 0.0000 | X30: 0 | Y30: 0
L31: 22 | M31: 0.3438 | N31: 0.4044 | O31: 0.5151 | T31: tn-2 = | U31: =VLOOKUP(IF((O3)>100,101,(O3)),tvalues!A2:D102,(IF(N7=0.1,2,IF(N7=0.05,3,IF(N7=0.01,4,""))))) -> 4.3027 | W31: 0.0000 | X31: 0 | Y31: 0
L32: 23 | M32: 0.3365 | N32: 0.3961 | O32: 0.5052 | W32: 0.0000 | X32: 0 | Y32: 0
L33: 24 | M33: 0.3297 | N33: 0.3882 | O33: 0.4958 | W33: 0.0000 | X33: 0 | Y33: 0
L34: 25 | M34: 0.3233 | N34: 0.3809 | O34: 0.4869 | W34: 0.0000 | X34: 0 | Y34: 0
L35: 26 | M35: 0.3172 | N35: 0.3739 | O35: 0.4785 | W35: 0.0000 | X35: 0 | Y35: 0
L36: 27 | M36: 0.3115 | N36: 0.3673 | O36: 0.4705 | W36: 0.0000 | X36: 0 | Y36: 0
L37: 28 | M37: 0.3061 | N37: 0.3610 | O37: 0.4629 | W37: 0.0000 | X37: 0 | Y37: 0
L38: 29 | M38: 0.3009 | N38: 0.3550 | O38: 0.4556 | W38: 0.0000 | X38: 0 | Y38: 0
L39: 30 | M39: 0.2960 | N39: 0.3494 | O39: 0.4487 | W39: 0.0000 | X39: 0 | Y39: 0
L40: 31 | M40: 0.2913 | N40: 0.3440 | O40: 0.4421 | W40: 0.0000 | X40: 0 | Y40: 0
L41: 32 | M41: 0.2869 | N41: 0.3388 | O41: 0.4357 | W41: 0.0000 | X41: 0 | Y41: 0
L42: 33 | M42: 0.2826 | N42: 0.3338 | O42: 0.4296 | W42: 0.0000 | X42: 0 | Y42: 0
L43: 34 | M43: 0.2785 | N43: 0.3291 | O43: 0.4238 | W43: 0.0000 | X43: 0 | Y43: 0
L44: 35 | M44: 0.2746 | N44: 0.3246 | O44: 0.4182 | W44: 0.0000 | X44: 0 | Y44: 0
L45: 36 | M45: 0.2709 | N45: 0.3202 | O45: 0.4128 | W45: 0.0000 | X45: 0 | Y45: 0
L46: 37 | M46: 0.2673 | N46: 0.3160 | O46: 0.4076 | W46: 0.0000 | X46: 0 | Y46: 0
L47: 38 | M47: 0.2638 | N47: 0.3120 | O47: 0.4026 | W47: 0.0000 | X47: 0 | Y47: 0
L48: 39 | M48: 0.2605 | N48: 0.3081 | O48: 0.3978 | W48: 0.0000 | X48: 0 | Y48: 0
L49: 40 | M49: 0.2573 | N49: 0.3044 | O49: 0.3932 | W49: 0.0000 | X49: 0 | Y49: 0
L50: 41 | M50: 0.2542 | N50: 0.3008 | O50: 0.3887 | W50: 0.0000 | X50: 0 | Y50: 0
L51: 42 | M51: 0.2512 | N51: 0.2973 | O51: 0.3843 | W51: 0.0000 | X51: 0 | Y51: 0
L52: 43 | M52: 0.2483 | N52: 0.2940 | O52: 0.3801 | W52: 0.0000 | X52: 0 | Y52: 0
L53: 44 | M53: 0.2455 | N53: 0.2907 | O53: 0.3761 | W53: 0.0000 | X53: 0 | Y53: 0
L54: 45 | M54: 0.2429 | N54: 0.2876 | O54: 0.3721 | W54: 0.0000 | X54: 0 | Y54: 0
L55: 46 | M55: 0.2403 | N55: 0.2845 | O55: 0.3683 | W55: 0.0000 | X55: 0 | Y55: 0
L56: 47 | M56: 0.2377 | N56: 0.2816 | O56: 0.3646 | W56: 0.0000 | X56: 0 | Y56: 0
L57: 48 | M57: 0.2353 | N57: 0.2787 | O57: 0.3610 | W57: 0.0000 | X57: 0 | Y57: 0
L58: 49 | M58: 0.2329 | N58: 0.2759 | O58: 0.3575 | W58: 0.0000 | X58: 0 | Y58: 0
L59: 50 | M59: 0.2306 | N59: 0.2732 | O59: 0.3542 | W59: 0.0000 | X59: 0 | Y59: 0
L60: 51 | M60: 0.2284 | N60: 0.2706 | O60: 0.3509 | W60: 0.0000 | X60: 0 | Y60: 0
L61: 52 | M61: 0.2262 | N61: 0.2681 | O61: 0.3477 | W61: 0.0000 | X61: 0 | Y61: 0
L62: 53 | M62: 0.2241 | N62: 0.2656 | O62: 0.3445 | W62: 0.0000 | X62: 0 | Y62: 0
L63: 54 | M63: 0.2221 | N63: 0.2632 | O63: 0.3415 | W63: 0.0000 | X63: 0 | Y63: 0
L64: 55 | M64: 0.2201 | N64: 0.2609 | O64: 0.3385 | W64: 0.0000 | X64: 0 | Y64: 0
L65: 56 | M65: 0.2181 | N65: 0.2586 | O65: 0.3357 | W65: 0.0000 | X65: 0 | Y65: 0
L66: 57 | M66: 0.2162 | N66: 0.2564 | O66: 0.3328 | W66: 0.0000 | X66: 0 | Y66: 0
L67: 58 | M67: 0.2144 | N67: 0.2542 | O67: 0.3301 | W67: 0.0000 | X67: 0 | Y67: 0
D68: =IF(B68="","",B68^2) ->  | E68: =IF(C68="","",C68^2) ->  | F68: =IF(B68="","",IF(C68="","",B68*C68)) ->  | L68: 59 | M68: 0.2126 | N68: 0.2521 | O68: 0.3274 | V68: =IF(ISBLANK(B68),"",(B68-$I$11)^2) ->  | W68: =IF(ISBLANK(B68),0,IF(ISBLANK(C68),0,(B68-$I$11)*(C68-$I$12))) -> 0.0000 | X68: =B68^3 -> 0 | Y68: =B68^4 -> 0 | Z68: =IF(C68="","",D68*C68) ->  | AB68: =IF(B68="","",$U$21+($U$23*B68)) ->  | AC68: =IF(B68="","",C68-AB68) ->  | AD68: =IF(B68="","",AC68^2) ->  | AE68: =IF(C68="","",(C68-$I$12)^2) ->  | AF68: =IF(C68="","",(AB68-$I$12)^2) ->  | AG68: =IF(C68="","",$U$25+(C68*$U$27)) ->  | AH68: =IF(C68="","",B68-AG68) ->  | AI68: =IF(C68="","",AH68^2) -> 
L69: 60 | M69: 0.2108 | N69: 0.2500 | O69: 0.3248 | W69: 0.0000 | X69: 0 | Y69: 0
L70: 61 | M70: 0.2091 | N70: 0.2480 | O70: 0.3223 | W70: 0.0000 | X70: 0 | Y70: 0
L71: 62 | M71: 0.2075 | N71: 0.2461 | O71: 0.3198 | W71: 0.0000 | X71: 0 | Y71: 0
L72: 63 | M72: 0.2058 | N72: 0.2441 | O72: 0.3173 | W72: 0.0000 | X72: 0 | Y72: 0
L73: 64 | M73: 0.2042 | N73: 0.2423 | O73: 0.3150 | W73: 0.0000 | X73: 0 | Y73: 0
K74: =IF(L74=($I$10-2),(IF($M$9=$N$7,(IF(M74<ABS($I$14),"YES","NO")),(IF($O$9=$N$7,(IF(O74<ABS($I$14),"YES","NO")),(IF(N74<ABS($I$14),"YES","NO")))))),"") ->  | L74: 65 | M74: 0.2027 | N74: 0.2404 | O74: 0.3126 | W74: 0.0000 | X74: 0 | Y74: 0
L75: 66 | M75: 0.2012 | N75: 0.2387 | O75: 0.3104 | W75: 0.0000 | X75: 0 | Y75: 0
L76: 67 | M76: 0.1997 | N76: 0.2369 | O76: 0.3081 | W76: 0.0000 | X76: 0 | Y76: 0
L77: 68 | M77: 0.1982 | N77: 0.2352 | O77: 0.3060 | W77: 0.0000 | X77: 0 | Y77: 0
L78: 69 | M78: 0.1968 | N78: 0.2335 | O78: 0.3038 | W78: 0.0000 | X78: 0 | Y78: 0
L79: 70 | M79: 0.1954 | N79: 0.2319 | O79: 0.3017 | W79: 0.0000 | X79: 0 | Y79: 0
L80: 71 | M80: 0.1940 | N80: 0.2303 | O80: 0.2997 | W80: 0.0000 | X80: 0 | Y80: 0
L81: 72 | M81: 0.1927 | N81: 0.2287 | O81: 0.2977 | W81: 0.0000 | X81: 0 | Y81: 0
L82: 73 | M82: 0.1914 | N82: 0.2272 | O82: 0.2957 | W82: 0.0000 | X82: 0 | Y82: 0
L83: 74 | M83: 0.1901 | N83: 0.2257 | O83: 0.2938 | W83: 0.0000 | X83: 0 | Y83: 0
L84: 75 | M84: 0.1888 | N84: 0.2242 | O84: 0.2919 | W84: 0.0000 | X84: 0 | Y84: 0
L85: 76 | M85: 0.1876 | N85: 0.2227 | O85: 0.2900 | W85: 0.0000 | X85: 0 | Y85: 0
L86: 77 | M86: 0.1864 | N86: 0.2213 | O86: 0.2882 | W86: 0.0000 | X86: 0 | Y86: 0
L87: 78 | M87: 0.1852 | N87: 0.2199 | O87: 0.2864 | W87: 0.0000 | X87: 0 | Y87: 0
L88: 79 | M88: 0.1841 | N88: 0.2185 | O88: 0.2847 | W88: 0.0000 | X88: 0 | Y88: 0
L89: 80 | M89: 0.1829 | N89: 0.2172 | O89: 0.2830 | W89: 0.0000 | X89: 0 | Y89: 0
L90: 81 | M90: 0.1818 | N90: 0.2159 | O90: 0.2813 | W90: 0.0000 | X90: 0 | Y90: 0
L91: 82 | M91: 0.1807 | N91: 0.2146 | O91: 0.2796 | W91: 0.0000 | X91: 0 | Y91: 0
L92: 83 | M92: 0.1796 | N92: 0.2133 | O92: 0.2780 | W92: 0.0000 | X92: 0 | Y92: 0
L93: 84 | M93: 0.1786 | N93: 0.2120 | O93: 0.2764 | W93: 0.0000 | X93: 0 | Y93: 0
L94: 85 | M94: 0.1775 | N94: 0.2108 | O94: 0.2748 | W94: 0.0000 | X94: 0 | Y94: 0
L95: 86 | M95: 0.1765 | N95: 0.2096 | O95: 0.2732 | W95: 0.0000 | X95: 0 | Y95: 0
L96: 87 | M96: 0.1755 | N96: 0.2084 | O96: 0.2717 | W96: 0.0000 | X96: 0 | Y96: 0
L97: 88 | M97: 0.1745 | N97: 0.2072 | O97: 0.2702 | W97: 0.0000 | X97: 0 | Y97: 0
L98: 89 | M98: 0.1735 | N98: 0.2061 | O98: 0.2687 | W98: 0.0000 | X98: 0 | Y98: 0
L99: 90 | M99: 0.1726 | N99: 0.2050 | O99: 0.2673 | W99: 0.0000 | X99: 0 | Y99: 0
L100: 91 | M100: 0.1716 | N100: 0.2039 | O100: 0.2659 | W100: 0.0000 | X100: 0 | Y100: 0
L101: 92 | M101: 0.1707 | N101: 0.2028 | O101: 0.2645 | W101: 0.0000 | X101: 0 | Y101: 0
L102: 93 | M102: 0.1698 | N102: 0.2017 | O102: 0.2631 | W102: 0.0000 | X102: 0 | Y102: 0
L103: 94 | M103: 0.1689 | N103: 0.2006 | O103: 0.2617 | W103: 0.0000 | X103: 0 | Y103: 0
L104: 95 | M104: 0.1680 | N104: 0.1996 | O104: 0.2604 | W104: 0.0000 | X104: 0 | Y104: 0
L105: 96 | M105: 0.1671 | N105: 0.1986 | O105: 0.2591 | W105: 0.0000 | X105: 0 | Y105: 0
L106: 97 | M106: 0.1663 | N106: 0.1975 | O106: 0.2578 | W106: 0.0000 | X106: 0 | Y106: 0
L107: 98 | M107: 0.1654 | N107: 0.1966 | O107: 0.2565 | W107: 0.0000 | X107: 0 | Y107: 0
L108: 99 | M108: 0.1646 | N108: 0.1956 | O108: 0.2552 | W108: 0.0000 | X108: 0 | Y108: 0
L109: 100 | M109: 0.1638 | N109: 0.1946 | O109: 0.2540 | W109: 0.0000 | X109: 0 | Y109: 0
L110: 101 | M110: 0.1630 | N110: 0.1937 | O110: 0.2528 | W110: 0.0000 | X110: 0 | Y110: 0
L111: 102 | M111: 0.1622 | N111: 0.1927 | O111: 0.2515 | W111: 0.0000 | X111: 0 | Y111: 0
L112: 103 | M112: 0.1614 | N112: 0.1918 | O112: 0.2504 | W112: 0.0000 | X112: 0 | Y112: 0
L113: 104 | M113: 0.1606 | N113: 0.1909 | O113: 0.2492 | W113: 0.0000 | X113: 0 | Y113: 0
L114: 105 | M114: 0.1599 | N114: 0.1900 | O114: 0.2480 | W114: 0.0000 | X114: 0 | Y114: 0
L115: 106 | M115: 0.1591 | N115: 0.1891 | O115: 0.2469 | W115: 0.0000 | X115: 0 | Y115: 0
L116: 107 | M116: 0.1584 | N116: 0.1882 | O116: 0.2458 | W116: 0.0000 | X116: 0 | Y116: 0
L117: 108 | M117: 0.1576 | N117: 0.1874 | O117: 0.2446 | W117: 0.0000 | X117: 0 | Y117: 0
L118: 109 | M118: 0.1569 | N118: 0.1865 | O118: 0.2436 | W118: 0.0000 | X118: 0 | Y118: 0
L119: 110 | M119: 0.1562 | N119: 0.1857 | O119: 0.2425 | W119: 0.0000 | X119: 0 | Y119: 0
L120: 111 | M120: 0.1555 | N120: 0.1848 | O120: 0.2414 | W120: 0.0000 | X120: 0 | Y120: 0
L121: 112 | M121: 0.1548 | N121: 0.1840 | O121: 0.2403 | W121: 0.0000 | X121: 0 | Y121: 0
L122: 113 | M122: 0.1541 | N122: 0.1832 | O122: 0.2393 | W122: 0.0000 | X122: 0 | Y122: 0
L123: 114 | M123: 0.1535 | N123: 0.1824 | O123: 0.2383 | W123: 0.0000 | X123: 0 | Y123: 0
L124: 115 | M124: 0.1528 | N124: 0.1816 | O124: 0.2373 | W124: 0.0000 | X124: 0 | Y124: 0
L125: 116 | M125: 0.1522 | N125: 0.1809 | O125: 0.2363 | W125: 0.0000 | X125: 0 | Y125: 0
L126: 117 | M126: 0.1515 | N126: 0.1801 | O126: 0.2353 | W126: 0.0000 | X126: 0 | Y126: 0
L127: 118 | M127: 0.1509 | N127: 0.1793 | O127: 0.2343 | W127: 0.0000 | X127: 0 | Y127: 0
L128: 119 | M128: 0.1502 | N128: 0.1786 | O128: 0.2333 | W128: 0.0000 | X128: 0 | Y128: 0
L129: 120 | M129: 0.1496 | N129: 0.1779 | O129: 0.2324 | W129: 0.0000 | X129: 0 | Y129: 0
L130: 121 | M130: 0.1490 | N130: 0.1771 | O130: 0.2315 | W130: 0.0000 | X130: 0 | Y130: 0
L131: 122 | M131: 0.1484 | N131: 0.1764 | O131: 0.2305 | W131: 0.0000 | X131: 0 | Y131: 0
D132: =IF(B132="","",B132^2) ->  | E132: =IF(C132="","",C132^2) ->  | F132: =IF(B132="","",IF(C132="","",B132*C132)) ->  | L132: 123 | M132: 0.1478 | N132: 0.1757 | O132: 0.2296 | V132: =IF(ISBLANK(B132),"",(B132-$I$11)^2) ->  | W132: =IF(ISBLANK(B132),0,IF(ISBLANK(C132),0,(B132-$I$11)*(C132-$I$12))) -> 0.0000 | X132: =B132^3 -> 0 | Y132: =B132^4 -> 0 | Z132: =IF(C132="","",D132*C132) ->  | AB132: =IF(B132="","",$U$21+($U$23*B132)) ->  | AC132: =IF(B132="","",C132-AB132) ->  | AD132: =IF(B132="","",AC132^2) ->  | AE132: =IF(C132="","",(C132-$I$12)^2) ->  | AF132: =IF(C132="","",(AB132-$I$12)^2) ->  | AG132: =IF(C132="","",$U$25+(C132*$U$27)) ->  | AH132: =IF(C132="","",B132-AG132) ->  | AI132: =IF(C132="","",AH132^2) -> 
L133: 124 | M133: 0.1472 | N133: 0.1750 | O133: 0.2287 | W133: 0.0000 | X133: 0 | Y133: 0
L134: 125 | M134: 0.1466 | N134: 0.1743 | O134: 0.2278 | W134: 0.0000 | X134: 0 | Y134: 0
L135: 126 | M135: 0.1460 | N135: 0.1736 | O135: 0.2269 | W135: 0.0000 | X135: 0 | Y135: 0
L136: 127 | M136: 0.1455 | N136: 0.1729 | O136: 0.2260 | W136: 0.0000 | X136: 0 | Y136: 0
L137: 128 | M137: 0.1449 | N137: 0.1723 | O137: 0.2252 | W137: 0.0000 | X137: 0 | Y137: 0
K138: =IF(L138=($I$10-2),(IF($M$9=$N$7,(IF(M138<ABS($I$14),"YES","NO")),(IF($O$9=$N$7,(IF(O138<ABS($I$14),"YES","NO")),(IF(N138<ABS($I$14),"YES","NO")))))),"") ->  | L138: 129 | M138: 0.1443 | N138: 0.1716 | O138: 0.2243 | W138: 0.0000 | X138: 0 | Y138: 0
L139: 130 | M139: 0.1438 | N139: 0.1710 | O139: 0.2235 | W139: 0.0000 | X139: 0 | Y139: 0
L140: 131 | M140: 0.1432 | N140: 0.1703 | O140: 0.2226 | W140: 0.0000 | X140: 0 | Y140: 0
L141: 132 | M141: 0.1427 | N141: 0.1697 | O141: 0.2218 | W141: 0.0000 | X141: 0 | Y141: 0
L142: 133 | M142: 0.1422 | N142: 0.1690 | O142: 0.2210 | W142: 0.0000 | X142: 0 | Y142: 0
L143: 134 | M143: 0.1416 | N143: 0.1684 | O143: 0.2202 | W143: 0.0000 | X143: 0 | Y143: 0
L144: 135 | M144: 0.1411 | N144: 0.1678 | O144: 0.2194 | W144: 0.0000 | X144: 0 | Y144: 0
L145: 136 | M145: 0.1406 | N145: 0.1672 | O145: 0.2186 | W145: 0.0000 | X145: 0 | Y145: 0
L146: 137 | M146: 0.1401 | N146: 0.1666 | O146: 0.2178 | W146: 0.0000 | X146: 0 | Y146: 0
L147: 138 | M147: 0.1396 | N147: 0.1660 | O147: 0.2170 | W147: 0.0000 | X147: 0 | Y147: 0
L148: 139 | M148: 0.1391 | N148: 0.1654 | O148: 0.2163 | W148: 0.0000 | X148: 0 | Y148: 0
L149: 140 | M149: 0.1386 | N149: 0.1648 | O149: 0.2155 | W149: 0.0000 | X149: 0 | Y149: 0
L150: 141 | M150: 0.1381 | N150: 0.1642 | O150: 0.2148 | W150: 0.0000 | X150: 0 | Y150: 0
L151: 142 | M151: 0.1376 | N151: 0.1637 | O151: 0.2140 | W151: 0.0000 | X151: 0 | Y151: 0
L152: 143 | M152: 0.1371 | N152: 0.1631 | O152: 0.2133 | W152: 0.0000 | X152: 0 | Y152: 0
L153: 144 | M153: 0.1367 | N153: 0.1625 | O153: 0.2126 | W153: 0.0000 | X153: 0 | Y153: 0
L154: 145 | M154: 0.1362 | N154: 0.1620 | O154: 0.2118 | W154: 0.0000 | X154: 0 | Y154: 0
L155: 146 | M155: 0.1357 | N155: 0.1614 | O155: 0.2111 | W155: 0.0000 | X155: 0 | Y155: 0
L156: 147 | M156: 0.1353 | N156: 0.1609 | O156: 0.2104 | W156: 0.0000 | X156: 0 | Y156: 0
L157: 148 | M157: 0.1348 | N157: 0.1603 | O157: 0.2097 | W157: 0.0000 | X157: 0 | Y157: 0
L158: 149 | M158: 0.1344 | N158: 0.1598 | O158: 0.2090 | W158: 0.0000 | X158: 0 | Y158: 0
L159: 150 | M159: 0.1339 | N159: 0.1593 | O159: 0.2083 | W159: 0.0000 | X159: 0 | Y159: 0
L160: 151 | M160: 0.1335 | N160: 0.1587 | O160: 0.2077 | W160: 0.0000 | X160: 0 | Y160: 0
L161: 152 | M161: 0.1330 | N161: 0.1582 | O161: 0.2070 | W161: 0.0000 | X161: 0 | Y161: 0
L162: 153 | M162: 0.1326 | N162: 0.1577 | O162: 0.2063 | W162: 0.0000 | X162: 0 | Y162: 0
L163: 154 | M163: 0.1322 | N163: 0.1572 | O163: 0.2057 | W163: 0.0000 | X163: 0 | Y163: 0
L164: 155 | M164: 0.1318 | N164: 0.1567 | O164: 0.2050 | W164: 0.0000 | X164: 0 | Y164: 0
L165: 156 | M165: 0.1313 | N165: 0.1562 | O165: 0.2044 | W165: 0.0000 | X165: 0 | Y165: 0
L166: 157 | M166: 0.1309 | N166: 0.1557 | O166: 0.2037 | W166: 0.0000 | X166: 0 | Y166: 0
L167: 158 | M167: 0.1305 | N167: 0.1552 | O167: 0.2031 | W167: 0.0000 | X167: 0 | Y167: 0
L168: 159 | M168: 0.1301 | N168: 0.1547 | O168: 0.2025 | W168: 0.0000 | X168: 0 | Y168: 0
L169: 160 | M169: 0.1297 | N169: 0.1543 | O169: 0.2019 | W169: 0.0000 | X169: 0 | Y169: 0
L170: 161 | M170: 0.1293 | N170: 0.1538 | O170: 0.2012 | W170: 0.0000 | X170: 0 | Y170: 0
L171: 162 | M171: 0.1289 | N171: 0.1533 | O171: 0.2006 | W171: 0.0000 | X171: 0 | Y171: 0
L172: 163 | M172: 0.1285 | N172: 0.1528 | O172: 0.2000 | W172: 0.0000 | X172: 0 | Y172: 0
L173: 164 | M173: 0.1281 | N173: 0.1524 | O173: 0.1994 | W173: 0.0000 | X173: 0 | Y173: 0
L174: 165 | M174: 0.1277 | N174: 0.1519 | O174: 0.1988 | W174: 0.0000 | X174: 0 | Y174: 0
L175: 166 | M175: 0.1273 | N175: 0.1515 | O175: 0.1982 | W175: 0.0000 | X175: 0 | Y175: 0
L176: 167 | M176: 0.1270 | N176: 0.1510 | O176: 0.1976 | W176: 0.0000 | X176: 0 | Y176: 0
L177: 168 | M177: 0.1266 | N177: 0.1506 | O177: 0.1971 | W177: 0.0000 | X177: 0 | Y177: 0
L178: 169 | M178: 0.1262 | N178: 0.1501 | O178: 0.1965 | W178: 0.0000 | X178: 0 | Y178: 0
L179: 170 | M179: 0.1258 | N179: 0.1497 | O179: 0.1959 | W179: 0.0000 | X179: 0 | Y179: 0
L180: 171 | M180: 0.1255 | N180: 0.1493 | O180: 0.1954 | W180: 0.0000 | X180: 0 | Y180: 0
L181: 172 | M181: 0.1251 | N181: 0.1488 | O181: 0.1948 | W181: 0.0000 | X181: 0 | Y181: 0
L182: 173 | M182: 0.1247 | N182: 0.1484 | O182: 0.1942 | W182: 0.0000 | X182: 0 | Y182: 0
L183: 174 | M183: 0.1244 | N183: 0.1480 | O183: 0.1937 | W183: 0.0000 | X183: 0 | Y183: 0
L184: 175 | M184: 0.1240 | N184: 0.1476 | O184: 0.1932 | W184: 0.0000 | X184: 0 | Y184: 0
L185: 176 | M185: 0.1237 | N185: 0.1471 | O185: 0.1926 | W185: 0.0000 | X185: 0 | Y185: 0
L186: 177 | M186: 0.1233 | N186: 0.1467 | O186: 0.1921 | W186: 0.0000 | X186: 0 | Y186: 0
L187: 178 | M187: 0.1230 | N187: 0.1463 | O187: 0.1915 | W187: 0.0000 | X187: 0 | Y187: 0
L188: 179 | M188: 0.1226 | N188: 0.1459 | O188: 0.1910 | W188: 0.0000 | X188: 0 | Y188: 0
L189: 180 | M189: 0.1223 | N189: 0.1455 | O189: 0.1905 | W189: 0.0000 | X189: 0 | Y189: 0
L190: 181 | M190: 0.1220 | N190: 0.1451 | O190: 0.1900 | W190: 0.0000 | X190: 0 | Y190: 0
L191: 182 | M191: 0.1216 | N191: 0.1447 | O191: 0.1895 | W191: 0.0000 | X191: 0 | Y191: 0
L192: 183 | M192: 0.1213 | N192: 0.1443 | O192: 0.1890 | W192: 0.0000 | X192: 0 | Y192: 0
L193: 184 | M193: 0.1210 | N193: 0.1439 | O193: 0.1884 | W193: 0.0000 | X193: 0 | Y193: 0
L194: 185 | M194: 0.1207 | N194: 0.1435 | O194: 0.1879 | W194: 0.0000 | X194: 0 | Y194: 0
L195: 186 | M195: 0.1203 | N195: 0.1432 | O195: 0.1874 | W195: 0.0000 | X195: 0 | Y195: 0
D196: =IF(B196="","",B196^2) ->  | E196: =IF(C196="","",C196^2) ->  | F196: =IF(B196="","",IF(C196="","",B196*C196)) ->  | L196: 187 | M196: 0.1200 | N196: 0.1428 | O196: 0.1869 | V196: =IF(ISBLANK(B196),"",(B196-$I$11)^2) ->  | W196: =IF(ISBLANK(B196),0,IF(ISBLANK(C196),0,(B196-$I$11)*(C196-$I$12))) -> 0.0000 | X196: =B196^3 -> 0 | Y196: =B196^4 -> 0 | Z196: =IF(C196="","",D196*C196) ->  | AB196: =IF(B196="","",$U$21+($U$23*B196)) ->  | AC196: =IF(B196="","",C196-AB196) ->  | AD196: =IF(B196="","",AC196^2) ->  | AE196: =IF(C196="","",(C196-$I$12)^2) ->  | AF196: =IF(C196="","",(AB196-$I$12)^2) ->  | AG196: =IF(C196="","",$U$25+(C196*$U$27)) ->  | AH196: =IF(C196="","",B196-AG196) ->  | AI196: =IF(C196="","",AH196^2) -> 
L197: 188 | M197: 0.1197 | N197: 0.1424 | O197: 0.1865 | W197: 0.0000 | X197: 0 | Y197: 0
L198: 189 | M198: 0.1194 | N198: 0.1420 | O198: 0.1860 | W198: 0.0000 | X198: 0 | Y198: 0
L199: 190 | M199: 0.1191 | N199: 0.1417 | O199: 0.1855 | W199: 0.0000 | X199: 0 | Y199: 0
L200: 191 | M200: 0.1188 | N200: 0.1413 | O200: 0.1850 | W200: 0.0000 | X200: 0 | Y200: 0
... 1303 more rows

Sheet LeastSquares

Sheet Lines

Sheet Prediction
B1: If Y is the Dependent Variable | K1: If X is the Dependent Variable
B3: Y = | C3: =Simple!U21 -> 0.5610 | D3: + | E3: =Simple!U23 -> 11.9837 | F3: X | H3: X = | K3: X = | L3: =Simple!U25 -> 0.0933 | M3: + | N3: =Simple!U27 -> 0.0461 | O3: Y | Q3: Y = | V3: 0.0 | W3: =$C$3+($E$3*V3) -> 0.561044691
H4: Y = | I4: =IF(I3="","",C3+(E3*I3)) ->  | Q4: X = | R4: =IF(R3="","",L3+(N3*R3)) ->  | V4: =V8*0.2 -> 0.1 | W4: 1.810776204
V5: =V8*0.4 -> 0.2 | W5: 3.060507717
V6: =V8*0.6 -> 0.3 | W6: 4.31023923
V7: =V8*0.8 -> 0.4171428571 | W7: 5.559970742
V8: =Simple!T29 -> 0.5 | W8: 6.809702255

Sheet Parabola
K2: Y = | L2: When X = | M2: X | N2: Y
B3: Y = | C3: =Simple!AT13 -> 33.33805102 | D3: + | E3: =Simple!AT16 -> -233.2625225 | F3: X | G3: + | H3: =Simple!AT19 -> 350.4888 | I3: X2 | K3: =C3+(E3*L3)+(H3*(L3^2)) -> 33.3381 | M3: 0 | N3: =$C$3+($E$3*M3)+($H$3*(M3^2)) -> 33.33805102
M4: =M13*0.1 -> 0.05214285714 | N4: 22.12801282
M5: =M13*0.2 -> 0.1042857143 | N5: 12.82384703
M6: =M13*0.3 -> 0.1564285714 | N6: 5.425553623
M7: =M13*0.4 -> 0.2085714286 | N7: -0.066867385
M8: =M13*0.5 -> 0.2607142857 | N8: -3.653415998
M9: =M13*0.6 -> 0.3128571429 | N9: -5.334092216
M10: =M13*0.7 -> 0.365 | N10: -5.10889604
M11: =M13*0.8 -> 0.4171428571 | N11: -2.977827468
M12: =M13*0.9 -> 0.4692857143 | N12: 1.059113499
M13: =Simple!T29 -> 0.5214285714 | N13: 7.00192686

Sheet Spearman rho
D1: Spearman's rho | G1: N = | H1: =COUNTIF(C3:C500,">0") -> 19 | J1: BE SURE ALL UNUSED CELLS IN COL C & COL D | O1: WARNING: If you have more than 150 entries with the same values this will not work
B2: Rank | C2: X | D2: Y | E2: Rank | G2: d | H2: d2 | J2: ARE BLANK | L2: CTRL r to RANK | O2: =SUM(H3:H500) -> 204
A3: 4 | B3: 4 | C3: 460 | D3: 1.14 | E3: 1 | F3: =IF(ISBLANK(D3),"",IF(D3=D4,IF(D4=D5,IF(D5=D6,IF(D6=D7,IF(D7=D8,IF(D8=D9,AS3,(SUM(E3:E8)/6)),(SUM(E3:E7)/5)),(SUM(E3:E6)/4)),(SUM(E3:E5)/3)),(SUM(E3:E4)/2)),E3)) -> 1 | G3: =IF(ISBLANK(C3),"",ABS(A3-F3)) -> 3 | H3: =IF(ISBLANK(C3),"",G3^2) -> 9 | J3: rs = | K3: =1-((6*O2)/(O3*O4)) -> 0.8211 | M3: Signicance | O3: =H1 -> 19 | R3: =IF(ISBLANK(C3),"",IF(C3=C4,IF(C4=C5,IF(C5=C6,IF(C6=C7,IF(C7=C8,IF(C8=C9,S3,(SUM(B3:B8)/6)),(SUM(B3:B7)/5)),(SUM(B3:B6)/4)),(SUM(B3:B5)/3)),(SUM(B3:B4)/2)),B3)) -> 4 | S3: =IF(C9=C10,IF(C10=C11,IF(C11=C12,IF(C12=C13,IF(C13=C14,IF(C14=C15,IF(C15=C16,T3,(SUM(B3:B15)/13)),(SUM(B3:B14)/12)),(SUM(B3:B13)/11)),(SUM(B3:B12)/10)),(SUM(B3:B11)/9)),(SUM(B3:B10)/8)),(SUM(B3:B9)/7)) -> 4.571428571 | T3: =IF($C16=$C17,IF($C17=$C18,IF($C18=$C19,IF($C19=$C20,IF($C20=$C21,IF($C21=$C22,IF($C22=$C23,U3,(SUM($B3:$B22)/20)),(SUM($B3:$B21)/19)),(SUM($B3:$B20)/18)),(SUM($B3:$B19)/17)),(SUM($B3:$B18)/16)),(SUM($B3:$B17)/15)),(SUM($B3:B16)/14)) -> 7.785714286 | U3: =IF($C23=$C24,IF($C24=$C25,IF($C25=$C26,IF($C26=$C27,IF($C27=$C28,IF($C28=$C29,IF($C29=$C30,V3,(SUM($B3:$B29)/27)),(SUM($B3:$B28)/26)),(SUM($B3:$B27)/25)),(SUM($B3:$B26)/24)),(SUM($B3:$B25)/23)),(SUM($B3:$B24)/22)),(SUM($B3:$B23)/21)) -> 0 | V3: =IF($C30=$C31,IF($C31=$C32,IF($C32=$C33,IF($C33=$C34,IF($C34=$C35,IF($C35=$C36,IF($C36=$C37,W3,(SUM($B3:$B36)/34)),(SUM($B3:$B35)/33)),(SUM($B3:$B34)/32)),(SUM($B3:$B33)/31)),(SUM($B3:$B32)/30)),(SUM($B3:$B31)/29)),(SUM($B3:$B30)/28)) -> 0 | W3: =IF($C37=$C38,IF($C38=$C39,IF($C39=$C40,IF($C40=$C41,IF($C41=$C42,IF($C42=$C43,IF($C43=$C44,X3,(SUM($B3:$B43)/41)),(SUM($B3:$B42)/40)),(SUM($B3:$B41)/39)),(SUM($B3:$B40)/38)),(SUM($B3:$B39)/37)),(SUM($B3:$B38)/36)),(SUM($B3:$B37)/35)) -> 0 | X3: =IF($C44=$C45,IF($C45=$C46,IF($C46=$C47,IF($C47=$C48,IF($C48=$C49,IF($C49=$C50,IF($C50=$C51,Y3,(SUM($B3:$B50)/48)),(SUM($B3:$B49)/47)),(SUM($B3:$B48)/46)),(SUM($B3:$B47)/45)),(SUM($B3:$B46)/44)),(SUM($B3:$B45)/43)),(SUM($B3:$B44)/42)) -> 0 | Y3: =IF($C51=$C52,IF($C52=$C53,IF($C53=$C54,IF($C54=$C55,IF($C55=$C56,IF($C56=$C57,IF($C57=$C58,Z3,(SUM($B3:$B57)/55)),(SUM($B3:$B56)/54)),(SUM($B3:$B55)/53)),(SUM($B3:$B54)/52)),(SUM($B3:$B53)/51)),(SUM($B3:$B52)/50)),(SUM($B3:$B51)/49)) -> 0 | Z3: =IF($C58=$C59,IF($C59=$C60,IF($C60=$C61,IF($C61=$C62,IF($C62=$C63,IF($C63=$C64,IF($C64=$C65,AA3,(SUM($B3:$B64)/62)),(SUM($B3:$B63)/61)),(SUM($B3:$B62)/60)),(SUM($B3:$B61)/59)),(SUM($B3:$B60)/58)),(SUM($B3:$B59)/57)),(SUM($B3:$B58)/56)) -> 0 | AA3: =IF($C65=$C66,IF($C66=$C67,IF($C67=$C68,IF($C68=$C69,IF($C69=$C70,IF($C70=$C71,IF($C71=$C72,AB3,(SUM($B3:$B71)/69)),(SUM($B3:$B70)/68)),(SUM($B3:$B69)/67)),(SUM($B3:$B68)/66)),(SUM($B3:$B67)/65)),(SUM($B3:$B66)/64)),(SUM($B3:$B65)/63)) -> 0 | AB3: =IF($C72=$C73,IF($C73=$C74,IF($C74=$C75,IF($C75=$C76,IF($C76=$C77,IF($C77=$C78,IF($C78=$C79,AC3,(SUM($B3:$B78)/76)),(SUM($B3:$B77)/75)),(SUM($B3:$B76)/74)),(SUM($B3:$B75)/73)),(SUM($B3:$B74)/72)),(SUM($B3:$B73)/71)),(SUM($B3:$B72)/70)) -> 0 | AC3: =IF($C79=$C80,IF($C80=$C81,IF($C81=$C82,IF($C82=$C83,IF($C83=$C84,IF($C84=$C85,IF($C85=$C86,AD3,(SUM($B3:$B85)/83)),(SUM($B3:$B84)/82)),(SUM($B3:$B83)/81)),(SUM($B3:$B82)/80)),(SUM($B3:$B81)/79)),(SUM($B3:$B80)/78)),(SUM($B3:$B79)/77)) -> 0 | AD3: =IF($C86=$C87,IF($C87=$C88,IF($C88=$C89,IF($C89=$C90,IF($C90=$C91,IF($C91=$C92,IF($C92=$C93,AE3,(SUM($B3:$B92)/90)),(SUM($B3:$B91)/89)),(SUM($B3:$B90)/88)),(SUM($B3:$B89)/87)),(SUM($B3:$B88)/86)),(SUM($B3:$B87)/85)),(SUM($B3:$B86)/84)) -> 0 | AE3: =IF($C93=$C94,IF($C94=$C95,IF($C95=$C96,IF($C96=$C97,IF($C97=$C98,IF($C98=$C99,IF($C99=$C100,AF3,(SUM($B3:$B99)/97)),(SUM($B3:$B98)/96)),(SUM($B3:$B97)/95)),(SUM($B3:$B96)/94)),(SUM($B3:$B95)/93)),(SUM($B3:$B94)/92)),(SUM($B3:$B93)/91)) -> 0 | AF3: =IF($C100=$C101,IF($C101=$C102,IF($C102=$C103,IF($C103=$C104,IF($C104=$C105,IF($C105=$C106,IF($C106=$C107,AG3,(SUM($B3:$B106)/104)),(SUM($B3:$B105)/103)),(SUM($B3:$B104)/102)),(SUM($B3:$B103)/101)),(SUM($B3:$B102)/100)),(SUM($B3:$B101)/99)),(SUM($B3:$B100)/98)) -> 0 | AG3: =IF($C107=$C108,IF($C108=$C109,IF($C109=$C110,IF($C110=$C111,IF($C111=$C112,IF($C112=$C113,IF($C113=$C114,AH3,(SUM($B3:$B113)/111)),(SUM($B3:$B112)/110)),(SUM($B3:$B111)/109)),(SUM($B3:$B110)/108)),(SUM($B3:$B109)/107)),(SUM($B3:$B108)/106)),(SUM($B3:$B107)/105)) -> 0 | AH3: =IF($C114=$C115,IF($C115=$C116,IF($C116=$C117,IF($C117=$C118,IF($C118=$C119,IF($C119=$C120,IF($C120=$C121,AI3,(SUM($B3:$B120)/118)),(SUM($B3:$B119)/117)),(SUM($B3:$B118)/116)),(SUM($B3:$B117)/115)),(SUM($B3:$B116)/114)),(SUM($B3:$B115)/113)),(SUM($B3:$B114)/112)) -> 0 | AI3: =IF($C121=$C122,IF($C122=$C123,IF($C123=$C124,IF($C124=$C125,IF($C125=$C126,IF($C126=$C127,IF($C127=$C128,AJ3,(SUM($B3:$B127)/125)),(SUM($B3:$B126)/124)),(SUM($B3:$B125)/123)),(SUM($B3:$B124)/122)),(SUM($B3:$B123)/121)),(SUM($B3:$B122)/120)),(SUM($B3:$B121)/119)) -> 0 | AJ3: =IF($C128=$C129,IF($C129=$C130,IF($C130=$C131,IF($C131=$C132,IF($C132=$C133,IF($C133=$C134,IF($C134=$C135,AK3,(SUM($B3:$B134)/132)),(SUM($B3:$B133)/131)),(SUM($B3:$B132)/130)),(SUM($B3:$B131)/129)),(SUM($B3:$B130)/128)),(SUM($B3:$B129)/127)),(SUM($B3:$B128)/126)) -> 0 | AK3: =IF($C135=$C136,IF($C136=$C137,IF($C137=$C138,IF($C138=$C139,IF($C139=$C140,IF($C140=$C141,IF($C141=$C142,AL3,(SUM($B3:$B141)/139)),(SUM($B3:$B140)/138)),(SUM($B3:$B139)/137)),(SUM($B3:$B138)/136)),(SUM($B3:$B137)/135)),(SUM($B3:$B136)/134)),(SUM($B3:$B135)/133)) -> 0 | AL3: =IF($C142=$C143,IF($C143=$C144,IF($C144=$C145,IF($C145=$C146,IF($C146=$C147,IF($C147=$C148,IF($C148=$C149,AM3,(SUM($B3:$B148)/146)),(SUM($B3:$B147)/145)),(SUM($B3:$B146)/144)),(SUM($B3:$B145)/143)),(SUM($B3:$B144)/142)),(SUM($B3:$B143)/141)),(SUM($B3:$B142)/140)) -> 0 | AM3: =IF($C142=$C143,IF($C143=$C144,IF($C144=$C145,IF($C145=$C146,IF($C146=$C147,IF($C147=$C148,IF($C148=$C149,AN3,(SUM($B3:$B155)/153)),(SUM($B3:$B154)/152)),(SUM($B3:$B153)/151)),(SUM($B3:$B152)/150)),(SUM($B3:$B151)/149)),(SUM($B3:$B150)/148)),(SUM($B3:$B149)/147)) -> 0 | AS3: =IF(D8=D9,IF(D9=D10,IF(D10=D11,IF(D11=D12,IF(D12=D13,IF(D13=D14,IF(D14=D15,AT3,(SUM(E3:E14)/12)),(SUM(E3:E13)/11)),(SUM(E3:E12)/10)),(SUM(E3:E11)/9)),(SUM(E3:E10)/8)),(SUM(E3:E9)/7)),(SUM(E3:E8)/6)) -> 3.5 | AT3: =IF($D15=$D16,IF($D16=$D17,IF($D17=$D18,IF($D18=$D19,IF($D19=$D20,IF($D20=$D21,IF($D21=$D22,AU3,(SUM($E3:$E21)/19)),(SUM($E3:$E20)/18)),(SUM($E3:$E19)/17)),(SUM($E3:$E18)/16)),(SUM($E3:$E17)/15)),(SUM($E3:$E16)/14)),(SUM($E3:$E15)/13)) -> 7 | AU3: =IF($D22=$D23,IF($D23=$D24,IF($D24=$D25,IF($D25=$D26,IF($D26=$D27,IF($D27=$D28,IF($D28=$D29,AV3,(SUM($E3:$E28)/26)),(SUM($E3:$E27)/25)),(SUM($E3:$E26)/24)),(SUM($E3:$E25)/23)),(SUM($E3:$E24)/22)),(SUM($E3:$E23)/21)),(SUM($E3:$E22)/20)) -> 0 | AV3: =IF($D29=$D30,IF($D30=$D31,IF($D31=$D32,IF($D32=$D33,IF($D33=$D34,IF($D34=$D35,IF($D35=$D36,AW3,(SUM($E3:$E35)/33)),(SUM($E3:$E34)/32)),(SUM($E3:$E33)/31)),(SUM($E3:$E32)/30)),(SUM($E3:$E31)/29)),(SUM($E3:$E30)/28)),(SUM($E3:$E29)/27)) -> 0 | AW3: =IF($D36=$D37,IF($D37=$D38,IF($D38=$D39,IF($D39=$D40,IF($D40=$D41,IF($D41=$D42,IF($D42=$D43,AX3,(SUM($E3:$E42)/40)),(SUM($E3:$E41)/39)),(SUM($E3:$E40)/38)),(SUM($E3:$E39)/37)),(SUM($E3:$E38)/36)),(SUM($E3:$E37)/35)),(SUM($E3:$E36)/34)) -> 0 | AX3: =IF($D43=$D44,IF($D44=$D45,IF($D45=$D46,IF($D46=$D47,IF($D47=$D48,IF($D48=$D49,IF($D49=$D50,AY3,(SUM($E3:$E49)/47)),(SUM($E3:$E48)/46)),(SUM($E3:$E47)/45)),(SUM($E3:$E46)/44)),(SUM($E3:$E45)/43)),(SUM($E3:$E44)/42)),(SUM($E3:$E43)/41)) -> 0 | AY3: =IF($D50=$D51,IF($D51=$D52,IF($D52=$D53,IF($D53=$D54,IF($D54=$D55,IF($D55=$D56,IF($D56=$D57,AZ3,(SUM($E3:$E56)/54)),(SUM($E3:$E55)/53)),(SUM($E3:$E54)/52)),(SUM($E3:$E53)/51)),(SUM($E3:$E52)/50)),(SUM($E3:$E51)/49)),(SUM($E3:$E50)/48)) -> 0 | AZ3: =IF($D57=$D58,IF($D58=$D59,IF($D59=$D60,IF($D60=$D61,IF($D61=$D62,IF($D62=$D63,IF($D63=$D64,BA3,(SUM($E3:$E63)/61)),(SUM($E3:$E62)/60)),(SUM($E3:$E61)/59)),(SUM($E3:$E60)/58)),(SUM($E3:$E59)/57)),(SUM($E3:$E58)/56)),(SUM($E3:$E57)/55)) -> 0 | BA3: =IF($D64=$D65,IF($D65=$D66,IF($D66=$D67,IF($D67=$D68,IF($D68=$D69,IF($D69=$D70,IF($D70=$D71,BB3,(SUM($E3:$E70)/68)),(SUM($E3:$E69)/67)),(SUM($E3:$E68)/66)),(SUM($E3:$E67)/65)),(SUM($E3:$E66)/64)),(SUM($E3:$E65)/63)),(SUM($E3:$E64)/62)) -> 0 | BB3: =IF($D64=$D65,IF($D65=$D66,IF($D66=$D67,IF($D67=$D68,IF($D68=$D69,IF($D69=$D70,IF($D70=$D71,BC3,(SUM($E3:$E77)/75)),(SUM($E3:$E76)/74)),(SUM($E3:$E75)/73)),(SUM($E3:$E74)/72)),(SUM($E3:$E73)/71)),(SUM($E3:$E72)/70)),(SUM($E3:$E71)/69)) -> 0 | BC3: =IF($D71=$D72,IF($D72=$D73,IF($D73=$D74,IF($D74=$D75,IF($D75=$D76,IF($D76=$D77,IF($D77=$D78,BD3,(SUM($E3:$E84)/82)),(SUM($E3:$E83)/81)),(SUM($E3:$E82)/80)),(SUM($E3:$E81)/79)),(SUM($E3:$E80)/78)),(SUM($E3:$E79)/77)),(SUM($E3:$E78)/76)) -> 0 | BD3: =IF($D71=$D72,IF($D72=$D73,IF($D73=$D74,IF($D74=$D75,IF($D75=$D76,IF($D76=$D77,IF($D77=$D78,BE3,(SUM($E3:$E84)/82)),(SUM($E3:$E83)/81)),(SUM($E3:$E82)/80)),(SUM($E3:$E81)/79)),(SUM($E3:$E80)/78)),(SUM($E3:$E79)/77)),(SUM($E3:$E78)/76)) -> 0 | BE3: =IF($D78=$D79,IF($D79=$D80,IF($D80=$D81,IF($D81=$D82,IF($D82=$D83,IF($D83=$D84,IF($D84=$D85,BF3,(SUM($E3:$E91)/89)),(SUM($E3:$E90)/88)),(SUM($E3:$E89)/87)),(SUM($E3:$E88)/86)),(SUM($E3:$E87)/85)),(SUM($E3:$E86)/84)),(SUM($E3:$E85)/83)) -> 0 | BF3: =IF($D85=$D86,IF($D86=$D87,IF($D87=$D88,IF($D88=$D89,IF($D89=$D90,IF($D90=$D91,IF($D91=$D92,BG3,(SUM($E3:$E98)/96)),(SUM($E3:$E97)/95)),(SUM($E3:$E96)/94)),(SUM($E3:$E95)/93)),(SUM($E3:$E94)/92)),(SUM($E3:$E93)/91)),(SUM($E3:$E92)/90)) -> 0 | BG3: =IF($D99=$D100,IF($D100=$D101,IF($D101=$D102,IF($D102=$D103,IF($D103=$D104,IF($D104=$D105,IF($D105=$D106,BH3,(SUM($E3:$E105)/103)),(SUM($E3:$E104)/102)),(SUM($E3:$E103)/101)),(SUM($E3:$E102)/100)),(SUM($E3:$E101)/99)),(SUM($E3:$E100)/98)),(SUM($E3:$E99)/97)) -> 0 | BH3: =IF($D106=$D107,IF($D107=$D108,IF($D108=$D109,IF($D109=$D110,IF($D110=$D111,IF($D111=$D112,IF($D112=$D113,BI3,(SUM($E3:$E112)/110)),(SUM($E3:$E111)/109)),(SUM($E3:$E110)/108)),(SUM($E3:$E109)/107)),(SUM($E3:$E108)/106)),(SUM($E3:$E107)/105)),(SUM($E3:$E106)/104)) -> 0 | BI3: =IF($D113=$D114,IF($D114=$D115,IF($D115=$D116,IF($D116=$D117,IF($D117=$D118,IF($D118=$D119,IF($D119=$D120,BJ3,(SUM($E3:$E119)/117)),(SUM($E3:$E118)/116)),(SUM($E3:$E117)/115)),(SUM($E3:$E116)/114)),(SUM($E3:$E115)/113)),(SUM($E3:$E114)/112)),(SUM($E3:$E113)/111)) -> 0 | BJ3: =IF($D120=$D121,IF($D121=$D122,IF($D122=$D123,IF($D123=$D124,IF($D124=$D125,IF($D125=$D126,IF($D126=$D127,BK3,(SUM($E3:$E126)/124)),(SUM($E3:$E125)/123)),(SUM($E3:$E124)/122)),(SUM($E3:$E123)/121)),(SUM($E3:$E122)/120)),(SUM($E3:$E121)/119)),(SUM($E3:$E120)/118)) -> 0 | BK3: =IF($D127=$D128,IF($D128=$D129,IF($D129=$D130,IF($D130=$D131,IF($D131=$D132,IF($D132=$D133,IF($D133=$D134,BL3,(SUM($E3:$E133)/131)),(SUM($E3:$E132)/130)),(SUM($E3:$E131)/129)),(SUM($E3:$E130)/128)),(SUM($E3:$E129)/127)),(SUM($E3:$E128)/126)),(SUM($E3:$E127)/125)) -> 0 | BL3: =IF($D134=$D135,IF($D135=$D136,IF($D136=$D137,IF($D137=$D138,IF($D138=$D139,IF($D139=$D140,IF($D140=$D141,BM3,(SUM($E3:$E140)/138)),(SUM($E3:$E139)/137)),(SUM($E3:$E138)/136)),(SUM($E3:$E137)/135)),(SUM($E3:$E136)/134)),(SUM($E3:$E135)/133)),(SUM($E3:$E134)/132)) -> 0 | BM3: =IF($D141=$D142,IF($D142=$D143,IF($D143=$D144,IF($D144=$D145,IF($D145=$D146,IF($D146=$D147,IF($D147=$D148,BN3,(SUM($E3:$E147)/145)),(SUM($E3:$E146)/144)),(SUM($E3:$E145)/143)),(SUM($E3:$E144)/142)),(SUM($E3:$E143)/141)),(SUM($E3:$E142)/140)),(SUM($E3:$E141)/139)) -> 0 | BN3: =IF($D148=$D149,IF($D149=$D150,IF($D150=$D151,IF($D151=$D152,IF($D152=$D153,IF($D153=$D154,IF($D154=$D155,BO3,(SUM($E3:$E154)/152)),(SUM($E3:$E153)/151)),(SUM($E3:$E152)/150)),(SUM($E3:$E151)/149)),(SUM($E3:$E150)/148)),(SUM($E3:$E149)/147)),(SUM($E3:$E148)/146)) -> 0
A4: 1 | B4: 1 | C4: 440 | D4: 1.57 | E4: 2 | F4: =IF(ISBLANK(D4),"",IF(D4=D3,F3,IF(D4=D5,IF(D5=D6,IF(D6=D7,IF(D7=D8,IF(D8=D9,AS4,(SUM(E4:E8)/5)),(SUM(E4:E7)/4)),(SUM(E4:E6)/3)),(SUM(E4:E5)/2)),E4))) -> 2 | G4: =IF(ISBLANK(C4),"",ABS(A4-F4)) -> 1 | H4: =IF(ISBLANK(C4),"",G4^2) -> 1 | M4: Level | N4: 0.05 | O4: =H1^2-1 -> 360 | R4: =IF(ISBLANK(C4),"",IF(C4=C3,R3,IF(C4=C5,IF(C5=C6,IF(C6=C7,IF(C7=C8,IF(C8=C9,S4,(SUM(B4:B8)/5)),(SUM(B4:B7)/4)),(SUM(B4:B6)/3)),(SUM(B4:B5)/2)),B4))) -> 1 | S4: =IF(C9=C10,IF(C10=C11,IF(C11=C12,IF(C12=C13,IF(C13=C14,IF(C14=C15,IF(C15=C16,T4,(SUM(B4:B15)/12)),(SUM(B4:B14)/11)),(SUM(B4:B13)/10)),(SUM(B4:B12)/9)),(SUM(B4:B11)/8)),(SUM(B4:B10)/7)),(SUM(B4:B9)/6)) -> 4.666666667 | T4: =IF($C16=$C17,IF($C17=$C18,IF($C18=$C19,IF($C19=$C20,IF($C20=$C21,IF($C21=$C22,IF($C22=$C23,U4,(SUM($B4:$B22)/19)),(SUM($B4:$B21)/18)),(SUM($B4:$B20)/17)),(SUM($B4:$B19)/16)),(SUM($B4:$B18)/15)),(SUM($B4:$B17)/14)),(SUM($B4:$B16)/13)) -> 8.076923077 | U4: =IF($C23=$C24,IF($C24=$C25,IF($C25=$C26,IF($C26=$C27,IF($C27=$C28,IF($C28=$C29,IF($C29=$C30,V4,(SUM($B4:$B29)/26)),(SUM($B4:$B28)/25)),(SUM($B4:$B27)/24)),(SUM($B4:$B26)/23)),(SUM($B4:$B25)/22)),(SUM($B4:$B24)/21)),(SUM($B4:$B23)/20)) -> 0 | V4: =IF($C30=$C31,IF($C31=$C32,IF($C32=$C33,IF($C33=$C34,IF($C34=$C35,IF($C35=$C36,IF($C36=$C37,W4,(SUM($B4:$B36)/33)),(SUM($B4:$B35)/32)),(SUM($B4:$B34)/31)),(SUM($B4:$B33)/30)),(SUM($B4:$B32)/29)),(SUM($B4:$B31)/28)),(SUM($B4:$B30)/27)) -> 0 | W4: =IF($C37=$C38,IF($C38=$C39,IF($C39=$C40,IF($C40=$C41,IF($C41=$C42,IF($C42=$C43,IF($C43=$C44,X4,(SUM($B4:$B43)/40)),(SUM($B4:$B42)/39)),(SUM($B4:$B41)/38)),(SUM($B4:$B40)/37)),(SUM($B4:$B39)/36)),(SUM($B4:$B38)/35)),(SUM($B4:$B37)/34)) -> 0 | X4: =IF($C44=$C45,IF($C45=$C46,IF($C46=$C47,IF($C47=$C48,IF($C48=$C49,IF($C49=$C50,IF($C50=$C51,Y4,(SUM($B4:$B50)/47)),(SUM($B4:$B49)/46)),(SUM($B4:$B48)/45)),(SUM($B4:$B47)/44)),(SUM($B4:$B46)/43)),(SUM($B4:$B45)/42)),(SUM($B4:$B44)/41)) -> 0 | Y4: =IF($C51=$C52,IF($C52=$C53,IF($C53=$C54,IF($C54=$C55,IF($C55=$C56,IF($C56=$C57,IF($C57=$C58,Z4,(SUM($B4:$B57)/54)),(SUM($B4:$B56)/53)),(SUM($B4:$B55)/52)),(SUM($B4:$B54)/51)),(SUM($B4:$B53)/50)),(SUM($B4:$B52)/49)),(SUM($B4:$B51)/48)) -> 0 | Z4: =IF($C58=$C59,IF($C59=$C60,IF($C60=$C61,IF($C61=$C62,IF($C62=$C63,IF($C63=$C64,IF($C64=$C65,AA4,(SUM($B4:$B64)/61)),(SUM($B4:$B63)/60)),(SUM($B4:$B62)/59)),(SUM($B4:$B61)/58)),(SUM($B4:$B60)/57)),(SUM($B4:$B59)/56)),(SUM($B4:$B58)/55)) -> 0 | AA4: =IF($C65=$C66,IF($C66=$C67,IF($C67=$C68,IF($C68=$C69,IF($C69=$C70,IF($C70=$C71,IF($C71=$C72,AB4,(SUM($B4:$B71)/68)),(SUM($B4:$B70)/67)),(SUM($B4:$B69)/66)),(SUM($B4:$B68)/65)),(SUM($B4:$B67)/64)),(SUM($B4:$B66)/63)),(SUM($B4:$B65)/62)) -> 0 | AB4: =IF($C72=$C73,IF($C73=$C74,IF($C74=$C75,IF($C75=$C76,IF($C76=$C77,IF($C77=$C78,IF($C78=$C79,AC4,(SUM($B4:$B78)/75)),(SUM($B4:$B77)/74)),(SUM($B4:$B76)/73)),(SUM($B4:$B75)/72)),(SUM($B4:$B74)/71)),(SUM($B4:$B73)/70)),(SUM($B4:$B72)/69)) -> 0 | AC4: =IF($C79=$C80,IF($C80=$C81,IF($C81=$C82,IF($C82=$C83,IF($C83=$C84,IF($C84=$C85,IF($C85=$C86,AD4,(SUM($B4:$B85)/82)),(SUM($B4:$B84)/81)),(SUM($B4:$B83)/80)),(SUM($B4:$B82)/79)),(SUM($B4:$B81)/78)),(SUM($B4:$B80)/77)),(SUM($B4:$B79)/76)) -> 0 | AD4: =IF($C86=$C87,IF($C87=$C88,IF($C88=$C89,IF($C89=$C90,IF($C90=$C91,IF($C91=$C92,IF($C92=$C93,AE4,(SUM($B4:$B92)/89)),(SUM($B4:$B91)/88)),(SUM($B4:$B90)/87)),(SUM($B4:$B89)/86)),(SUM($B4:$B88)/85)),(SUM($B4:$B87)/84)),(SUM($B4:$B86)/83)) -> 0 | AE4: =IF($C93=$C94,IF($C94=$C95,IF($C95=$C96,IF($C96=$C97,IF($C97=$C98,IF($C98=$C99,IF($C99=$C100,AF4,(SUM($B4:$B99)/96)),(SUM($B4:$B98)/95)),(SUM($B4:$B97)/94)),(SUM($B4:$B96)/93)),(SUM($B4:$B95)/92)),(SUM($B4:$B94)/91)),(SUM($B4:$B93)/90)) -> 0 | AF4: =IF($C100=$C101,IF($C101=$C102,IF($C102=$C103,IF($C103=$C104,IF($C104=$C105,IF($C105=$C106,IF($C106=$C107,AG4,(SUM($B4:$B106)/103)),(SUM($B4:$B105)/102)),(SUM($B4:$B104)/101)),(SUM($B4:$B103)/100)),(SUM($B4:$B102)/99)),(SUM($B4:$B101)/98)),(SUM($B4:$B100)/97)) -> 0 | AG4: =IF($C107=$C108,IF($C108=$C109,IF($C109=$C110,IF($C110=$C111,IF($C111=$C112,IF($C112=$C113,IF($C113=$C114,AH4,(SUM($B4:$B113)/110)),(SUM($B4:$B112)/109)),(SUM($B4:$B111)/108)),(SUM($B4:$B110)/107)),(SUM($B4:$B109)/106)),(SUM($B4:$B108)/105)),(SUM($B4:$B107)/104)) -> 0 | AH4: =IF($C114=$C115,IF($C115=$C116,IF($C116=$C117,IF($C117=$C118,IF($C118=$C119,IF($C119=$C120,IF($C120=$C121,AI4,(SUM($B4:$B120)/117)),(SUM($B4:$B119)/116)),(SUM($B4:$B118)/115)),(SUM($B4:$B117)/114)),(SUM($B4:$B116)/113)),(SUM($B4:$B115)/112)),(SUM($B4:$B114)/111)) -> 0 | AI4: =IF($C121=$C122,IF($C122=$C123,IF($C123=$C124,IF($C124=$C125,IF($C125=$C126,IF($C126=$C127,IF($C127=$C128,AJ4,(SUM($B4:$B127)/124)),(SUM($B4:$B126)/123)),(SUM($B4:$B125)/122)),(SUM($B4:$B124)/121)),(SUM($B4:$B123)/120)),(SUM($B4:$B122)/119)),(SUM($B4:$B121)/118)) -> 0 | AJ4: =IF($C128=$C129,IF($C129=$C130,IF($C130=$C131,IF($C131=$C132,IF($C132=$C133,IF($C133=$C134,IF($C134=$C135,AK4,(SUM($B4:$B134)/131)),(SUM($B4:$B133)/130)),(SUM($B4:$B132)/129)),(SUM($B4:$B131)/128)),(SUM($B4:$B130)/127)),(SUM($B4:$B129)/126)),(SUM($B4:$B128)/125)) -> 0 | AK4: =IF($C135=$C136,IF($C136=$C137,IF($C137=$C138,IF($C138=$C139,IF($C139=$C140,IF($C140=$C141,IF($C141=$C142,AL4,(SUM($B4:$B141)/138)),(SUM($B4:$B140)/137)),(SUM($B4:$B139)/136)),(SUM($B4:$B138)/135)),(SUM($B4:$B137)/134)),(SUM($B4:$B136)/133)),(SUM($B4:$B135)/132)) -> 0 | AL4: =IF($C142=$C143,IF($C143=$C144,IF($C144=$C145,IF($C145=$C146,IF($C146=$C147,IF($C147=$C148,IF($C148=$C149,AM4,(SUM($B4:$B148)/145)),(SUM($B4:$B147)/144)),(SUM($B4:$B146)/143)),(SUM($B4:$B145)/142)),(SUM($B4:$B144)/141)),(SUM($B4:$B143)/140)),(SUM($B4:$B142)/139)) -> 0 | AM4: =IF($C149=$C150,IF($C150=$C151,IF($C151=$C152,IF($C152=$C153,IF($C153=$C154,IF($C154=$C155,IF($C155=$C156,AN4,(SUM($B4:$B155)/152)),(SUM($B4:$B154)/151)),(SUM($B4:$B153)/150)),(SUM($B4:$B152)/149)),(SUM($B4:$B151)/148)),(SUM($B4:$B150)/147)),(SUM($B4:$B149)/146)) -> 0 | AS4: =IF(D9=D10,IF(D10=D11,IF(D11=D12,IF(D12=D13,IF(D13=D14,IF(D14=D15,IF(D15=D16,AT4,(SUM(E4:E15)/12)),(SUM(E4:E14)/11)),(SUM(E4:E13)/10)),(SUM(E4:E12)/9)),(SUM(E4:E11)/8)),(SUM(E4:E10)/7)),(SUM(E4:E9)/6)) -> 4.5 | AT4: =IF($D16=$D17,IF($D17=$D18,IF($D18=$D19,IF($D19=$D20,IF($D20=$D21,IF($D21=$D22,IF($D22=$D23,AU4,(SUM($E4:$E22)/19)),(SUM($E4:$E21)/18)),(SUM($E4:$E20)/17)),(SUM($E4:$E19)/16)),(SUM($E4:$E18)/15)),(SUM($E4:$E17)/14)),(SUM($E4:$E16)/13)) -> 8 | AU4: =IF($D23=$D24,IF($D24=$D25,IF($D25=$D26,IF($D26=$D27,IF($D27=$D28,IF($D28=$D29,IF($D29=$D30,AV4,(SUM($E4:$E29)/26)),(SUM($E4:$E28)/25)),(SUM($E4:$E27)/24)),(SUM($E4:$E26)/23)),(SUM($E4:$E25)/22)),(SUM($E4:$E24)/21)),(SUM($E4:$E23)/20)) -> 0 | AV4: =IF($D30=$D31,IF($D31=$D32,IF($D32=$D33,IF($D33=$D34,IF($D34=$D35,IF($D35=$D36,IF($D36=$D37,AW4,(SUM($E4:$E36)/33)),(SUM($E4:$E35)/32)),(SUM($E4:$E34)/31)),(SUM($E4:$E33)/30)),(SUM($E4:$E32)/29)),(SUM($E4:$E31)/28)),(SUM($E4:$E30)/27)) -> 0 | AW4: =IF($D37=$D38,IF($D38=$D39,IF($D39=$D40,IF($D40=$D41,IF($D41=$D42,IF($D42=$D43,IF($D43=$D44,AX4,(SUM($E4:$E43)/40)),(SUM($E4:$E42)/39)),(SUM($E4:$E41)/38)),(SUM($E4:$E40)/37)),(SUM($E4:$E39)/36)),(SUM($E4:$E38)/35)),(SUM($E4:$E37)/34)) -> 0 | AX4: =IF($D44=$D45,IF($D45=$D46,IF($D46=$D47,IF($D47=$D48,IF($D48=$D49,IF($D49=$D50,IF($D50=$D51,AY4,(SUM($E4:$E50)/47)),(SUM($E4:$E49)/46)),(SUM($E4:$E48)/45)),(SUM($E4:$E47)/44)),(SUM($E4:$E46)/43)),(SUM($E4:$E45)/42)),(SUM($E4:$E44)/41)) -> 0 | AY4: =IF($D51=$D52,IF($D52=$D53,IF($D53=$D54,IF($D54=$D55,IF($D55=$D56,IF($D56=$D57,IF($D57=$D58,AZ4,(SUM($E4:$E57)/54)),(SUM($E4:$E56)/53)),(SUM($E4:$E55)/52)),(SUM($E4:$E54)/51)),(SUM($E4:$E53)/50)),(SUM($E4:$E52)/49)),(SUM($E4:$E51)/48)) -> 0 | AZ4: =IF($D58=$D59,IF($D59=$D60,IF($D60=$D61,IF($D61=$D62,IF($D62=$D63,IF($D63=$D64,IF($D64=$D65,BA4,(SUM($E4:$E64)/61)),(SUM($E4:$E63)/60)),(SUM($E4:$E62)/59)),(SUM($E4:$E61)/58)),(SUM($E4:$E60)/57)),(SUM($E4:$E59)/56)),(SUM($E4:$E58)/55)) -> 0 | BA4: =IF($D65=$D66,IF($D66=$D67,IF($D67=$D68,IF($D68=$D69,IF($D69=$D70,IF($D70=$D71,IF($D71=$D72,BB4,(SUM($E4:$E71)/68)),(SUM($E4:$E70)/67)),(SUM($E4:$E69)/66)),(SUM($E4:$E68)/65)),(SUM($E4:$E67)/64)),(SUM($E4:$E66)/63)),(SUM($E4:$E65)/62)) -> 0 | BB4: =IF($D72=$D73,IF($D73=$D74,IF($D74=$D75,IF($D75=$D76,IF($D76=$D77,IF($D77=$D78,IF($D78=$D79,BC4,(SUM($E4:$E78)/75)),(SUM($E4:$E77)/74)),(SUM($E4:$E76)/73)),(SUM($E4:$E75)/72)),(SUM($E4:$E74)/71)),(SUM($E4:$E73)/70)),(SUM($E4:$E72)/69)) -> 0 | BC4: =IF($D79=$D80,IF($D80=$D81,IF($D81=$D82,IF($D82=$D83,IF($D83=$D84,IF($D84=$D85,IF($D85=$D86,BD4,(SUM($E4:$E85)/82)),(SUM($E4:$E84)/81)),(SUM($E4:$E83)/80)),(SUM($E4:$E82)/79)),(SUM($E4:$E81)/78)),(SUM($E4:$E80)/77)),(SUM($E4:$E79)/76)) -> 0 | BD4: =IF($D86=$D87,IF($D87=$D88,IF($D88=$D89,IF($D89=$D90,IF($D90=$D91,IF($D91=$D92,IF($D92=$D93,BE4,(SUM($E4:$E92)/89)),(SUM($E4:$E91)/88)),(SUM($E4:$E90)/87)),(SUM($E4:$E89)/86)),(SUM($E4:$E88)/85)),(SUM($E4:$E87)/84)),(SUM($E4:$E86)/83)) -> 0 | BE4: =IF($D93=$D94,IF($D94=$D95,IF($D95=$D96,IF($D96=$D97,IF($D97=$D98,IF($D98=$D99,IF($D99=$D100,BF4,(SUM($E4:$E99)/96)),(SUM($E4:$E98)/95)),(SUM($E4:$E97)/94)),(SUM($E4:$E96)/93)),(SUM($E4:$E95)/92)),(SUM($E4:$E94)/91)),(SUM($E4:$E93)/90)) -> 0 | BF4: =IF($D100=$D101,IF($D101=$D102,IF($D102=$D103,IF($D103=$D104,IF($D104=$D105,IF($D105=$D106,IF($D106=$D107,BG4,(SUM($E4:$E106)/103)),(SUM($E4:$E105)/102)),(SUM($E4:$E104)/101)),(SUM($E4:$E103)/100)),(SUM($E4:$E102)/99)),(SUM($E4:$E101)/98)),(SUM($E4:$E100)/97)) -> 0 | BG4: =IF($D107=$D108,IF($D108=$D109,IF($D109=$D110,IF($D110=$D111,IF($D111=$D112,IF($D112=$D113,IF($D113=$D114,BH4,(SUM($E4:$E113)/110)),(SUM($E4:$E112)/109)),(SUM($E4:$E111)/108)),(SUM($E4:$E110)/107)),(SUM($E4:$E109)/106)),(SUM($E4:$E108)/105)),(SUM($E4:$E107)/104)) -> 0 | BH4: =IF($D114=$D115,IF($D115=$D116,IF($D116=$D117,IF($D117=$D118,IF($D118=$D119,IF($D119=$D120,IF($D120=$D121,BI4,(SUM($E4:$E120)/117)),(SUM($E4:$E119)/116)),(SUM($E4:$E118)/115)),(SUM($E4:$E117)/114)),(SUM($E4:$E116)/113)),(SUM($E4:$E115)/112)),(SUM($E4:$E114)/111)) -> 0 | BI4: =IF($D121=$D122,IF($D122=$D123,IF($D123=$D124,IF($D124=$D125,IF($D125=$D126,IF($D126=$D127,IF($D127=$D128,BJ4,(SUM($E4:$E127)/124)),(SUM($E4:$E126)/123)),(SUM($E4:$E125)/122)),(SUM($E4:$E124)/121)),(SUM($E4:$E123)/120)),(SUM($E4:$E122)/119)),(SUM($E4:$E121)/118)) -> 0 | BJ4: =IF($D128=$D129,IF($D129=$D130,IF($D130=$D131,IF($D131=$D132,IF($D132=$D133,IF($D133=$D134,IF($D134=$D135,BK4,(SUM($E4:$E134)/131)),(SUM($E4:$E133)/130)),(SUM($E4:$E132)/129)),(SUM($E4:$E131)/128)),(SUM($E4:$E130)/127)),(SUM($E4:$E129)/126)),(SUM($E4:$E128)/125)) -> 0 | BK4: =IF($D135=$D136,IF($D136=$D137,IF($D137=$D138,IF($D138=$D139,IF($D139=$D140,IF($D140=$D141,IF($D141=$D142,BL4,(SUM($E4:$E141)/138)),(SUM($E4:$E140)/137)),(SUM($E4:$E139)/136)),(SUM($E4:$E138)/135)),(SUM($E4:$E137)/134)),(SUM($E4:$E136)/133)),(SUM($E4:$E135)/132)) -> 0 | BL4: =IF($D142=$D143,IF($D143=$D144,IF($D144=$D145,IF($D145=$D146,IF($D146=$D147,IF($D147=$D148,IF($D148=$D149,BM4,(SUM($E4:$E148)/145)),(SUM($E4:$E147)/144)),(SUM($E4:$E146)/143)),(SUM($E4:$E145)/142)),(SUM($E4:$E144)/141)),(SUM($E4:$E143)/140)),(SUM($E4:$E142)/139)) -> 0 | BM4: =IF($D149=$D150,IF($D150=$D151,IF($D151=$D152,IF($D152=$D153,IF($D153=$D154,IF($D154=$D155,IF($D155=$D156,BN4,(SUM($E4:$E155)/152)),(SUM($E4:$E154)/151)),(SUM($E4:$E153)/150)),(SUM($E4:$E152)/149)),(SUM($E4:$E151)/148)),(SUM($E4:$E150)/147)),(SUM($E4:$E149)/146)) -> 0 | BN4: =IF($D156=$D157,IF($D157=$D158,IF($D158=$D159,IF($D159=$D160,IF($D160=$D161,IF($D161=$D162,IF($D162=$D163,BO4,(SUM($E4:$E162)/159)),(SUM($E4:$E161)/158)),(SUM($E4:$E160)/157)),(SUM($E4:$E159)/156)),(SUM($E4:$E158)/155)),(SUM($E4:$E157)/154)),(SUM($E4:$E156)/153)) -> 0
A5: 6 | B5: 6 | C5: 485 | D5: 1.65 | E5: 3 | F5: =IF(ISBLANK(D5),"",IF(D5=D4,F4,IF(D5=D6,IF(D6=D7,IF(D7=D8,IF(D8=D9,IF(D9=D10,AS5,(SUM(E5:E9)/5)),(SUM(E5:E8)/4)),(SUM(E5:E7)/3)),(SUM(E5:E6)/2)),E5))) -> 3 | G5: 3 | H5: 9 | R5: =IF(ISBLANK(C5),"",IF(C5=C4,R4,IF(C5=C6,IF(C6=C7,IF(C7=C8,IF(C8=C9,IF(C9=C10,S5,(SUM(B5:B9)/5)),(SUM(B5:B8)/4)),(SUM(B5:B7)/3)),(SUM(B5:B6)/2)),B5))) -> 6 | S5: =IF(C10=C11,IF(C11=C12,IF(C12=C13,IF(C13=C14,IF(C14=C15,IF(C15=C16,IF(C16=C17,T5,(SUM(B5:B16)/12)),(SUM(B5:B15)/11)),(SUM(B5:B14)/10)),(SUM(B5:B13)/9)),(SUM(B5:B12)/8)),(SUM(B5:B11)/7)),(SUM(B5:B10)/6)) -> 6.333333333 | T5: =IF($C17=$C18,IF($C18=$C19,IF($C19=$C20,IF($C20=$C21,IF($C21=$C22,IF($C22=$C23,IF($C23=$C24,U5,(SUM($B5:$B23)/19)),(SUM($B5:$B22)/18)),(SUM($B5:$B21)/17)),(SUM($B5:$B20)/16)),(SUM($B5:$B19)/15)),(SUM($B5:$B18)/14)),(SUM($B5:$B17)/13)) -> 9.461538462 | U5: =IF($C24=$C25,IF($C25=$C26,IF($C26=$C27,IF($C27=$C28,IF($C28=$C29,IF($C29=$C30,IF($C30=$C31,V5,(SUM($B5:$B30)/26)),(SUM($B5:$B29)/25)),(SUM($B5:$B28)/24)),(SUM($B5:$B27)/23)),(SUM($B5:$B26)/22)),(SUM($B5:$B25)/21)),(SUM($B5:$B24)/20)) -> 0 | V5: =IF($C31=$C32,IF($C32=$C33,IF($C33=$C34,IF($C34=$C35,IF($C35=$C36,IF($C36=$C37,IF($C37=$C38,W5,(SUM($B5:$B37)/33)),(SUM($B5:$B36)/32)),(SUM($B5:$B35)/31)),(SUM($B5:$B34)/30)),(SUM($B5:$B33)/29)),(SUM($B5:$B32)/28)),(SUM($B5:$B31)/27)) -> 0 | W5: =IF($C38=$C39,IF($C39=$C40,IF($C40=$C41,IF($C41=$C42,IF($C42=$C43,IF($C43=$C44,IF($C44=$C45,X5,(SUM($B5:$B44)/40)),(SUM($B5:$B43)/39)),(SUM($B5:$B42)/38)),(SUM($B5:$B41)/37)),(SUM($B5:$B40)/36)),(SUM($B5:$B39)/35)),(SUM($B5:$B38)/34)) -> 0 | X5: =IF($C45=$C46,IF($C46=$C47,IF($C47=$C48,IF($C48=$C49,IF($C49=$C50,IF($C50=$C51,IF($C51=$C52,Y5,(SUM($B5:$B51)/47)),(SUM($B5:$B50)/46)),(SUM($B5:$B49)/45)),(SUM($B5:$B48)/44)),(SUM($B5:$B47)/43)),(SUM($B5:$B46)/42)),(SUM($B5:$B45)/41)) -> 0 | Y5: =IF($C52=$C53,IF($C53=$C54,IF($C54=$C55,IF($C55=$C56,IF($C56=$C57,IF($C57=$C58,IF($C58=$C59,Z5,(SUM($B5:$B58)/54)),(SUM($B5:$B57)/53)),(SUM($B5:$B56)/52)),(SUM($B5:$B55)/51)),(SUM($B5:$B54)/50)),(SUM($B5:$B53)/49)),(SUM($B5:$B52)/48)) -> 0 | Z5: =IF($C59=$C60,IF($C60=$C61,IF($C61=$C62,IF($C62=$C63,IF($C63=$C64,IF($C64=$C65,IF($C65=$C66,AA5,(SUM($B5:$B65)/61)),(SUM($B5:$B64)/60)),(SUM($B5:$B63)/59)),(SUM($B5:$B62)/58)),(SUM($B5:$B61)/57)),(SUM($B5:$B60)/56)),(SUM($B5:$B59)/55)) -> 0 | AA5: =IF($C66=$C67,IF($C67=$C68,IF($C68=$C69,IF($C69=$C70,IF($C70=$C71,IF($C71=$C72,IF($C72=$C73,AB5,(SUM($B5:$B72)/68)),(SUM($B5:$B71)/67)),(SUM($B5:$B70)/66)),(SUM($B5:$B69)/65)),(SUM($B5:$B68)/64)),(SUM($B5:$B67)/63)),(SUM($B5:$B66)/62)) -> 0 | AB5: =IF($C73=$C74,IF($C74=$C75,IF($C75=$C76,IF($C76=$C77,IF($C77=$C78,IF($C78=$C79,IF($C79=$C80,AC5,(SUM($B5:$B79)/75)),(SUM($B5:$B78)/74)),(SUM($B5:$B77)/73)),(SUM($B5:$B76)/72)),(SUM($B5:$B75)/71)),(SUM($B5:$B74)/70)),(SUM($B5:$B73)/69)) -> 0 | AC5: =IF($C80=$C81,IF($C81=$C82,IF($C82=$C83,IF($C83=$C84,IF($C84=$C85,IF($C85=$C86,IF($C86=$C87,AD5,(SUM($B5:$B86)/82)),(SUM($B5:$B85)/81)),(SUM($B5:$B84)/80)),(SUM($B5:$B83)/79)),(SUM($B5:$B82)/78)),(SUM($B5:$B81)/77)),(SUM($B5:$B80)/76)) -> 0 | AD5: =IF($C87=$C88,IF($C88=$C89,IF($C89=$C90,IF($C90=$C91,IF($C91=$C92,IF($C92=$C93,IF($C93=$C94,AE5,(SUM($B5:$B93)/89)),(SUM($B5:$B92)/88)),(SUM($B5:$B91)/87)),(SUM($B5:$B90)/86)),(SUM($B5:$B89)/85)),(SUM($B5:$B88)/84)),(SUM($B5:$B87)/83)) -> 0 | AE5: =IF($C94=$C95,IF($C95=$C96,IF($C96=$C97,IF($C97=$C98,IF($C98=$C99,IF($C99=$C100,IF($C100=$C101,AF5,(SUM($B5:$B100)/96)),(SUM($B5:$B99)/95)),(SUM($B5:$B98)/94)),(SUM($B5:$B97)/93)),(SUM($B5:$B96)/92)),(SUM($B5:$B95)/91)),(SUM($B5:$B94)/90)) -> 0 | AF5: =IF($C101=$C102,IF($C102=$C103,IF($C103=$C104,IF($C104=$C105,IF($C105=$C106,IF($C106=$C107,IF($C107=$C108,AG5,(SUM($B5:$B107)/103)),(SUM($B5:$B106)/102)),(SUM($B5:$B105)/101)),(SUM($B5:$B104)/100)),(SUM($B5:$B103)/99)),(SUM($B5:$B102)/98)),(SUM($B5:$B101)/97)) -> 0 | AG5: =IF($C108=$C109,IF($C109=$C110,IF($C110=$C111,IF($C111=$C112,IF($C112=$C113,IF($C113=$C114,IF($C114=$C115,AH5,(SUM($B5:$B114)/110)),(SUM($B5:$B113)/109)),(SUM($B5:$B112)/108)),(SUM($B5:$B111)/107)),(SUM($B5:$B110)/106)),(SUM($B5:$B109)/105)),(SUM($B5:$B108)/104)) -> 0 | AH5: =IF($C115=$C116,IF($C116=$C117,IF($C117=$C118,IF($C118=$C119,IF($C119=$C120,IF($C120=$C121,IF($C121=$C122,AI5,(SUM($B5:$B121)/117)),(SUM($B5:$B120)/116)),(SUM($B5:$B119)/115)),(SUM($B5:$B118)/114)),(SUM($B5:$B117)/113)),(SUM($B5:$B116)/112)),(SUM($B5:$B115)/111)) -> 0 | AI5: =IF($C122=$C123,IF($C123=$C124,IF($C124=$C125,IF($C125=$C126,IF($C126=$C127,IF($C127=$C128,IF($C128=$C129,AJ5,(SUM($B5:$B128)/124)),(SUM($B5:$B127)/123)),(SUM($B5:$B126)/122)),(SUM($B5:$B125)/121)),(SUM($B5:$B124)/120)),(SUM($B5:$B123)/119)),(SUM($B5:$B122)/118)) -> 0 | AJ5: =IF($C129=$C130,IF($C130=$C131,IF($C131=$C132,IF($C132=$C133,IF($C133=$C134,IF($C134=$C135,IF($C135=$C136,AK5,(SUM($B5:$B135)/131)),(SUM($B5:$B134)/130)),(SUM($B5:$B133)/129)),(SUM($B5:$B132)/128)),(SUM($B5:$B131)/127)),(SUM($B5:$B130)/126)),(SUM($B5:$B129)/125)) -> 0 | AK5: =IF($C136=$C137,IF($C137=$C138,IF($C138=$C139,IF($C139=$C140,IF($C140=$C141,IF($C141=$C142,IF($C142=$C143,AL5,(SUM($B5:$B142)/138)),(SUM($B5:$B141)/137)),(SUM($B5:$B140)/136)),(SUM($B5:$B139)/135)),(SUM($B5:$B138)/134)),(SUM($B5:$B137)/133)),(SUM($B5:$B136)/132)) -> 0 | AL5: =IF($C143=$C144,IF($C144=$C145,IF($C145=$C146,IF($C146=$C147,IF($C147=$C148,IF($C148=$C149,IF($C149=$C150,AM5,(SUM($B5:$B149)/145)),(SUM($B5:$B148)/144)),(SUM($B5:$B147)/143)),(SUM($B5:$B146)/142)),(SUM($B5:$B145)/141)),(SUM($B5:$B144)/140)),(SUM($B5:$B143)/139)) -> 0 | AM5: =IF($C150=$C151,IF($C151=$C152,IF($C152=$C153,IF($C153=$C154,IF($C154=$C155,IF($C155=$C156,IF($C156=$C157,AN5,(SUM($B5:$B156)/152)),(SUM($B5:$B155)/151)),(SUM($B5:$B154)/150)),(SUM($B5:$B153)/149)),(SUM($B5:$B152)/148)),(SUM($B5:$B151)/147)),(SUM($B5:$B150)/146)) -> 0 | AS5: =IF(D10=D11,IF(D11=D12,IF(D12=D13,IF(D13=D14,IF(D14=D15,IF(D15=D16,IF(D16=D17,AT5,(SUM(E5:E16)/12)),(SUM(E5:E15)/11)),(SUM(E5:E14)/10)),(SUM(E5:E13)/9)),(SUM(E5:E12)/8)),(SUM(E5:E11)/7)),(SUM(E5:E10)/6)) -> 5.5 | AT5: =IF($D17=$D18,IF($D18=$D19,IF($D19=$D20,IF($D20=$D21,IF($D21=$D22,IF($D22=$D23,IF($D23=$D24,AU5,(SUM($E5:$E23)/19)),(SUM($E5:$E22)/18)),(SUM($E5:$E21)/17)),(SUM($E5:$E20)/16)),(SUM($E5:$E19)/15)),(SUM($E5:$E18)/14)),(SUM($E5:$E17)/13)) -> 9 | AU5: =IF($D24=$D25,IF($D25=$D26,IF($D26=$D27,IF($D27=$D28,IF($D28=$D29,IF($D29=$D30,IF($D30=$D31,AV5,(SUM($E5:$E30)/26)),(SUM($E5:$E29)/25)),(SUM($E5:$E28)/24)),(SUM($E5:$E27)/23)),(SUM($E5:$E26)/22)),(SUM($E5:$E25)/21)),(SUM($E5:$E24)/20)) -> 0 | AV5: =IF($D31=$D32,IF($D32=$D33,IF($D33=$D34,IF($D34=$D35,IF($D35=$D36,IF($D36=$D37,IF($D37=$D38,AW5,(SUM($E5:$E37)/33)),(SUM($E5:$E36)/32)),(SUM($E5:$E35)/31)),(SUM($E5:$E34)/30)),(SUM($E5:$E33)/29)),(SUM($E5:$E32)/28)),(SUM($E5:$E31)/27)) -> 0 | AW5: =IF($D38=$D39,IF($D39=$D40,IF($D40=$D41,IF($D41=$D42,IF($D42=$D43,IF($D43=$D44,IF($D44=$D45,AX5,(SUM($E5:$E44)/40)),(SUM($E5:$E43)/39)),(SUM($E5:$E42)/38)),(SUM($E5:$E41)/37)),(SUM($E5:$E40)/36)),(SUM($E5:$E39)/35)),(SUM($E5:$E38)/34)) -> 0 | AX5: =IF($D45=$D46,IF($D46=$D47,IF($D47=$D48,IF($D48=$D49,IF($D49=$D50,IF($D50=$D51,IF($D51=$D52,AY5,(SUM($E5:$E51)/47)),(SUM($E5:$E50)/46)),(SUM($E5:$E49)/45)),(SUM($E5:$E48)/44)),(SUM($E5:$E47)/43)),(SUM($E5:$E46)/42)),(SUM($E5:$E45)/41)) -> 0 | AY5: =IF($D52=$D53,IF($D53=$D54,IF($D54=$D55,IF($D55=$D56,IF($D56=$D57,IF($D57=$D58,IF($D58=$D59,AZ5,(SUM($E5:$E58)/54)),(SUM($E5:$E57)/53)),(SUM($E5:$E56)/52)),(SUM($E5:$E55)/51)),(SUM($E5:$E54)/50)),(SUM($E5:$E53)/49)),(SUM($E5:$E52)/48)) -> 0 | AZ5: =IF($D59=$D60,IF($D60=$D61,IF($D61=$D62,IF($D62=$D63,IF($D63=$D64,IF($D64=$D65,IF($D65=$D66,BA5,(SUM($E5:$E65)/61)),(SUM($E5:$E64)/60)),(SUM($E5:$E63)/59)),(SUM($E5:$E62)/58)),(SUM($E5:$E61)/57)),(SUM($E5:$E60)/56)),(SUM($E5:$E59)/55)) -> 0 | BA5: =IF($D66=$D67,IF($D67=$D68,IF($D68=$D69,IF($D69=$D70,IF($D70=$D71,IF($D71=$D72,IF($D72=$D73,BB5,(SUM($E5:$E72)/68)),(SUM($E5:$E71)/67)),(SUM($E5:$E70)/66)),(SUM($E5:$E69)/65)),(SUM($E5:$E68)/64)),(SUM($E5:$E67)/63)),(SUM($E5:$E66)/62)) -> 0 | BB5: =IF($D73=$D74,IF($D74=$D75,IF($D75=$D76,IF($D76=$D77,IF($D77=$D78,IF($D78=$D79,IF($D79=$D80,BC5,(SUM($E5:$E79)/75)),(SUM($E5:$E78)/74)),(SUM($E5:$E77)/73)),(SUM($E5:$E76)/72)),(SUM($E5:$E75)/71)),(SUM($E5:$E74)/70)),(SUM($E5:$E73)/69)) -> 0 | BC5: =IF($D80=$D81,IF($D81=$D82,IF($D82=$D83,IF($D83=$D84,IF($D84=$D85,IF($D85=$D86,IF($D86=$D87,BD5,(SUM($E5:$E86)/82)),(SUM($E5:$E85)/81)),(SUM($E5:$E84)/80)),(SUM($E5:$E83)/79)),(SUM($E5:$E82)/78)),(SUM($E5:$E81)/77)),(SUM($E5:$E80)/76)) -> 0 | BD5: =IF($D87=$D88,IF($D88=$D89,IF($D89=$D90,IF($D90=$D91,IF($D91=$D92,IF($D92=$D93,IF($D93=$D94,BE5,(SUM($E5:$E93)/89)),(SUM($E5:$E92)/88)),(SUM($E5:$E91)/87)),(SUM($E5:$E90)/86)),(SUM($E5:$E89)/85)),(SUM($E5:$E88)/84)),(SUM($E5:$E87)/83)) -> 0 | BE5: =IF($D94=$D95,IF($D95=$D96,IF($D96=$D97,IF($D97=$D98,IF($D98=$D99,IF($D99=$D100,IF($D100=$D101,BF5,(SUM($E5:$E100)/96)),(SUM($E5:$E99)/95)),(SUM($E5:$E98)/94)),(SUM($E5:$E97)/93)),(SUM($E5:$E96)/92)),(SUM($E5:$E95)/91)),(SUM($E5:$E94)/90)) -> 0 | BF5: =IF($D101=$D102,IF($D102=$D103,IF($D103=$D104,IF($D104=$D105,IF($D105=$D106,IF($D106=$D107,IF($D107=$D108,BG5,(SUM($E5:$E107)/103)),(SUM($E5:$E106)/102)),(SUM($E5:$E105)/101)),(SUM($E5:$E104)/100)),(SUM($E5:$E103)/99)),(SUM($E5:$E102)/98)),(SUM($E5:$E101)/97)) -> 0 | BG5: =IF($D108=$D109,IF($D109=$D110,IF($D110=$D111,IF($D111=$D112,IF($D112=$D113,IF($D113=$D114,IF($D114=$D115,BH5,(SUM($E5:$E114)/110)),(SUM($E5:$E113)/109)),(SUM($E5:$E112)/108)),(SUM($E5:$E111)/107)),(SUM($E5:$E110)/106)),(SUM($E5:$E109)/105)),(SUM($E5:$E108)/104)) -> 0 | BH5: =IF($D115=$D116,IF($D116=$D117,IF($D117=$D118,IF($D118=$D119,IF($D119=$D120,IF($D120=$D121,IF($D121=$D122,BI5,(SUM($E5:$E121)/117)),(SUM($E5:$E120)/116)),(SUM($E5:$E119)/115)),(SUM($E5:$E118)/114)),(SUM($E5:$E117)/113)),(SUM($E5:$E116)/112)),(SUM($E5:$E115)/111)) -> 0 | BI5: =IF($D122=$D123,IF($D123=$D124,IF($D124=$D125,IF($D125=$D126,IF($D126=$D127,IF($D127=$D128,IF($D128=$D129,BJ5,(SUM($E5:$E128)/124)),(SUM($E5:$E127)/123)),(SUM($E5:$E126)/122)),(SUM($E5:$E125)/121)),(SUM($E5:$E124)/120)),(SUM($E5:$E123)/119)),(SUM($E5:$E122)/118)) -> 0 | BJ5: =IF($D129=$D130,IF($D130=$D131,IF($D131=$D132,IF($D132=$D133,IF($D133=$D134,IF($D134=$D135,IF($D135=$D136,BK5,(SUM($E5:$E135)/131)),(SUM($E5:$E134)/130)),(SUM($E5:$E133)/129)),(SUM($E5:$E132)/128)),(SUM($E5:$E131)/127)),(SUM($E5:$E130)/126)),(SUM($E5:$E129)/125)) -> 0 | BK5: =IF($D136=$D137,IF($D137=$D138,IF($D138=$D139,IF($D139=$D140,IF($D140=$D141,IF($D141=$D142,IF($D142=$D143,BL5,(SUM($E5:$E142)/138)),(SUM($E5:$E141)/137)),(SUM($E5:$E140)/136)),(SUM($E5:$E139)/135)),(SUM($E5:$E138)/134)),(SUM($E5:$E137)/133)),(SUM($E5:$E136)/132)) -> 0 | BL5: =IF($D143=$D144,IF($D144=$D145,IF($D145=$D146,IF($D146=$D147,IF($D147=$D148,IF($D148=$D149,IF($D149=$D150,BM5,(SUM($E5:$E149)/145)),(SUM($E5:$E148)/144)),(SUM($E5:$E147)/143)),(SUM($E5:$E146)/142)),(SUM($E5:$E145)/141)),(SUM($E5:$E144)/140)),(SUM($E5:$E143)/139)) -> 0 | BM5: =IF($D150=$D151,IF($D151=$D152,IF($D152=$D153,IF($D153=$D154,IF($D154=$D155,IF($D155=$D156,IF($D156=$D157,BN5,(SUM($E5:$E156)/152)),(SUM($E5:$E155)/151)),(SUM($E5:$E154)/150)),(SUM($E5:$E153)/149)),(SUM($E5:$E152)/148)),(SUM($E5:$E151)/147)),(SUM($E5:$E150)/146)) -> 0 | BN5: =IF($D157=$D158,IF($D158=$D159,IF($D159=$D160,IF($D160=$D161,IF($D161=$D162,IF($D162=$D163,IF($D163=$D164,BO5,(SUM($E5:$E163)/159)),(SUM($E5:$E162)/158)),(SUM($E5:$E161)/157)),(SUM($E5:$E160)/156)),(SUM($E5:$E159)/155)),(SUM($E5:$E158)/154)),(SUM($E5:$E157)/153)) -> 0
A6: 9 | B6: 9 | C6: 512 | D6: 1.79 | E6: 4 | F6: 4 | G6: 5 | H6: 25 | K6: n | L6: 0.10 | M6: 0.05 | N6: 0.01 | R6: 9 | S6: 7.333333333 | T6: 10.15384615 | U6: 0 | V6: 0 | W6: 0 | X6: 0 | Y6: 0 | Z6: 0 | AA6: 0 | AB6: 0 | AC6: 0 | AD6: 0 | AE6: 0 | AF6: 0 | AG6: 0 | AH6: 0 | AI6: 0 | AJ6: 0 | AK6: 0 | AL6: 0 | AM6: 0 | AS6: 6.5 | AT6: 10 | AU6: 0 | AV6: 0 | AW6: 0 | AX6: 0 | AY6: 0 | AZ6: 0 | BA6: 0 | BB6: 0 | BC6: 0 | BD6: 0 | BE6: 0 | BF6: 0 | BG6: 0 | BH6: 0 | BI6: 0 | BJ6: 0 | BK6: 0 | BL6: 0 | BM6: 0 | BN6: 0
A7: 2 | B7: 2 | C7: 448 | D7: 1.83 | E7: 5 | F7: 5 | G7: 3 | H7: 9 | J7: =IF($H$1=K7,IF($N$4=$L$6,IF(ABS($K$3)>L7,"YES","NO"),IF($N$4=$M$6,IF(ABS($K$3)>M7,"YES","NO"),IF($N$4=$N$6,IF(ABS($K$3)>N7,"YES","NO"),""))),"") ->  | K7: 5 | L7: 0.900 | R7: 2 | S7: 7.5 | T7: 10.69230769 | U7: 0 | V7: 0 | W7: 0 | X7: 0 | Y7: 0 | Z7: 0 | AA7: 0 | AB7: 0 | AC7: 0 | AD7: 0 | AE7: 0 | AF7: 0 | AG7: 0 | AH7: 0 | AI7: 0 | AJ7: 0 | AK7: 0 | AL7: 0 | AM7: 0 | AS7: 7.5 | AT7: 11 | AU7: 0 | AV7: 0 | AW7: 0 | AX7: 0 | AY7: 0 | AZ7: 0 | BA7: 0 | BB7: 0 | BC7: 0 | BD7: 0 | BE7: 0 | BF7: 0 | BG7: 0 | BH7: 0 | BI7: 0 | BJ7: 0 | BK7: 0 | BL7: 0 | BM7: 0 | BN7: 0
A8: 7 | B8: 7 | C8: 489 | D8: 2.02 | E8: 6 | F8: 6 | G8: 1 | H8: 1 | K8: 6 | L8: 0.829 | M8: 0.886 | R8: 7 | S8: 8 | T8: 11.61538462 | U8: 0 | V8: 0 | W8: 0 | X8: 0 | Y8: 0 | Z8: 0 | AA8: 0 | AB8: 0 | AC8: 0 | AD8: 0 | AE8: 0 | AF8: 0 | AG8: 0 | AH8: 0 | AI8: 0 | AJ8: 0 | AK8: 0 | AL8: 0 | AM8: 0 | AS8: 8.5 | AT8: 12 | AU8: 0 | AV8: 0 | AW8: 0 | AX8: 0 | AY8: 0 | AZ8: 0 | BA8: 0 | BB8: 0 | BC8: 0 | BD8: 0 | BE8: 0 | BF8: 0 | BG8: 0 | BH8: 0 | BI8: 0 | BJ8: 0 | BK8: 0 | BL8: 0 | BM8: 0 | BN8: 0
A9: 3 | B9: 3 | C9: 455 | D9: 2.05 | E9: 7 | F9: 7 | G9: 4 | H9: 16 | K9: 7 | L9: 0.714 | M9: 0.786 | R9: 3 | S9: 8.166666667 | T9: 12.38461538 | U9: 0 | V9: 0 | W9: 0 | X9: 0 | Y9: 0 | Z9: 0 | AA9: 0 | AB9: 0 | AC9: 0 | AD9: 0 | AE9: 0 | AF9: 0 | AG9: 0 | AH9: 0 | AI9: 0 | AJ9: 0 | AK9: 0 | AL9: 0 | AM9: 0 | AS9: 9.5 | AT9: 13 | AU9: 0 | AV9: 0 | AW9: 0 | AX9: 0 | AY9: 0 | AZ9: 0 | BA9: 0 | BB9: 0 | BC9: 0 | BD9: 0 | BE9: 0 | BF9: 0 | BG9: 0 | BH9: 0 | BI9: 0 | BJ9: 0 | BK9: 0 | BL9: 0 | BM9: 0 | BN9: 0
A10: 11 | B10: 11 | C10: 528 | D10: 2.08 | E10: 8 | F10: 8 | G10: 3 | H10: 9 | K10: 8 | L10: 0.643 | M10: 0.738 | N10: 0.981 | R10: 11 | S10: 10.66666667 | T10: 0 | U10: 0 | V10: 0 | W10: 0 | X10: 0 | Y10: 0 | Z10: 0 | AA10: 0 | AB10: 0 | AC10: 0 | AD10: 0 | AE10: 0 | AF10: 0 | AG10: 0 | AH10: 0 | AI10: 0 | AJ10: 0 | AK10: 0 | AL10: 0 | AM10: 0 | AS10: 10.5 | AT10: 0 | AU10: 0 | AV10: 0 | AW10: 0 | AX10: 0 | AY10: 0 | AZ10: 0 | BA10: 0 | BB10: 0 | BC10: 0 | BD10: 0 | BE10: 0 | BF10: 0 | BG10: 0 | BH10: 0 | BI10: 0 | BJ10: 0 | BK10: 0 | BL10: 0 | BM10: 0 | BN10: 0
A11: 12 | B11: 12 | C11: 550 | D11: 2.15 | E11: 9 | F11: 9 | G11: 3 | H11: 9 | K11: 9 | L11: 0.600 | M11: 0.683 | N11: 0.933 | R11: 12 | S11: 11 | T11: 0 | U11: 0 | V11: 0 | W11: 0 | X11: 0 | Y11: 0 | Z11: 0 | AA11: 0 | AB11: 0 | AC11: 0 | AD11: 0 | AE11: 0 | AF11: 0 | AG11: 0 | AH11: 0 | AI11: 0 | AJ11: 0 | AK11: 0 | AL11: 0 | AM11: 0 | AS11: 11.5 | AT11: 0 | AU11: 0 | AV11: 0 | AW11: 0 | AX11: 0 | AY11: 0 | AZ11: 0 | BA11: 0 | BB11: 0 | BC11: 0 | BD11: 0 | BE11: 0 | BF11: 0 | BG11: 0 | BH11: 0 | BI11: 0 | BJ11: 0 | BK11: 0 | BL11: 0 | BM11: 0 | BN11: 0
A12: 10 | B12: 10 | C12: 518 | D12: 2.63 | E12: 10 | F12: 10 | G12: 0 | H12: 0 | K12: 10 | L12: 0.564 | M12: 0.648 | N12: 0.894 | R12: 10 | S12: 12.16666667 | T12: 0 | U12: 0 | V12: 0 | W12: 0 | X12: 0 | Y12: 0 | Z12: 0 | AA12: 0 | AB12: 0 | AC12: 0 | AD12: 0 | AE12: 0 | AF12: 0 | AG12: 0 | AH12: 0 | AI12: 0 | AJ12: 0 | AK12: 0 | AL12: 0 | AM12: 0 | AS12: 12.5 | AT12: 0 | AU12: 0 | AV12: 0 | AW12: 0 | AX12: 0 | AY12: 0 | AZ12: 0 | BA12: 0 | BB12: 0 | BC12: 0 | BD12: 0 | BE12: 0 | BF12: 0 | BG12: 0 | BH12: 0 | BI12: 0 | BJ12: 0 | BK12: 0 | BL12: 0 | BM12: 0 | BN12: 0
A13: 5 | B13: 5 | C13: 473 | D13: 2.73 | E13: 11 | F13: 11 | G13: 6 | H13: 36 | K13: 11 | L13: 0.523 | M13: 0.623 | N13: 0.818 | R13: 5 | S13: 13 | T13: 0 | U13: 0 | V13: 0 | W13: 0 | X13: 0 | Y13: 0 | Z13: 0 | AA13: 0 | AB13: 0 | AC13: 0 | AD13: 0 | AE13: 0 | AF13: 0 | AG13: 0 | AH13: 0 | AI13: 0 | AJ13: 0 | AK13: 0 | AL13: 0 | AM13: 0 | AS13: 13.5 | AT13: 0 | AU13: 0 | AV13: 0 | AW13: 0 | AX13: 0 | AY13: 0 | AZ13: 0 | BA13: 0 | BB13: 0 | BC13: 0 | BD13: 0 | BE13: 0 | BF13: 0 | BG13: 0 | BH13: 0 | BI13: 0 | BJ13: 0 | BK13: 0 | BL13: 0 | BM13: 0 | BN13: 0
A14: 8 | B14: 8 | C14: 500 | D14: 2.98 | E14: 12 | F14: 12 | G14: 4 | H14: 16 | K14: 12 | L14: 0.497 | M14: 0.591 | N14: 0.780 | R14: 8 | S14: 14.83333333 | T14: 0 | U14: 0 | V14: 0 | W14: 0 | X14: 0 | Y14: 0 | Z14: 0 | AA14: 0 | AB14: 0 | AC14: 0 | AD14: 0 | AE14: 0 | AF14: 0 | AG14: 0 | AH14: 0 | AI14: 0 | AJ14: 0 | AK14: 0 | AL14: 0 | AM14: 0 | AS14: 14.5 | AT14: 0 | AU14: 0 | AV14: 0 | AW14: 0 | AX14: 0 | AY14: 0 | AZ14: 0 | BA14: 0 | BB14: 0 | BC14: 0 | BD14: 0 | BE14: 0 | BF14: 0 | BG14: 0 | BH14: 0 | BI14: 0 | BJ14: 0 | BK14: 0 | BL14: 0 | BM14: 0 | BN14: 0
A15: 18 | B15: 18 | C15: 650 | D15: 3 | E15: 13 | F15: 13 | G15: 5 | H15: 25 | K15: 13 | L15: 0.475 | M15: 0.566 | N15: 0.745 | R15: 18 | S15: 15.83333333 | T15: 0 | U15: 0 | V15: 0 | W15: 0 | X15: 0 | Y15: 0 | Z15: 0 | AA15: 0 | AB15: 0 | AC15: 0 | AD15: 0 | AE15: 0 | AF15: 0 | AG15: 0 | AH15: 0 | AI15: 0 | AJ15: 0 | AK15: 0 | AL15: 0 | AM15: 0 | AS15: 15.5 | AT15: 0 | AU15: 0 | AV15: 0 | AW15: 0 | AX15: 0 | AY15: 0 | AZ15: 0 | BA15: 0 | BB15: 0 | BC15: 0 | BD15: 0 | BE15: 0 | BF15: 0 | BG15: 0 | BH15: 0 | BI15: 0 | BJ15: 0 | BK15: 0 | BL15: 0 | BM15: 0 | BN15: 0
A16: 13 | B16: 13 | C16: 569 | D16: 3.05 | E16: 14 | F16: 14 | G16: 1 | H16: 1 | K16: 14 | L16: 0.457 | M16: 0.545 | N16: 0.716 | R16: 13 | S16: 15.66666667 | T16: 0 | U16: 0 | V16: 0 | W16: 0 | X16: 0 | Y16: 0 | Z16: 0 | AA16: 0 | AB16: 0 | AC16: 0 | AD16: 0 | AE16: 0 | AF16: 0 | AG16: 0 | AH16: 0 | AI16: 0 | AJ16: 0 | AK16: 0 | AL16: 0 | AM16: 0 | AS16: 16.5 | AT16: 0 | AU16: 0 | AV16: 0 | AW16: 0 | AX16: 0 | AY16: 0 | AZ16: 0 | BA16: 0 | BB16: 0 | BC16: 0 | BD16: 0 | BE16: 0 | BF16: 0 | BG16: 0 | BH16: 0 | BI16: 0 | BJ16: 0 | BK16: 0 | BL16: 0 | BM16: 0 | BN16: 0
A17: 19 | B17: 19 | C17: 690 | D17: 3.12 | E17: 15 | F17: 15 | G17: 4 | H17: 16 | K17: 15 | L17: 0.441 | M17: 0.525 | N17: 0.689 | R17: 19 | S17: 0 | T17: 0 | U17: 0 | V17: 0 | W17: 0 | X17: 0 | Y17: 0 | Z17: 0 | AA17: 0 | AB17: 0 | AC17: 0 | AD17: 0 | AE17: 0 | AF17: 0 | AG17: 0 | AH17: 0 | AI17: 0 | AJ17: 0 | AK17: 0 | AL17: 0 | AM17: 0 | AS17: 0 | AT17: 0 | AU17: 0 | AV17: 0 | AW17: 0 | AX17: 0 | AY17: 0 | AZ17: 0 | BA17: 0 | BB17: 0 | BC17: 0 | BD17: 0 | BE17: 0 | BF17: 0 | BG17: 0 | BH17: 0 | BI17: 0 | BJ17: 0 | BK17: 0 | BL17: 0 | BM17: 0 | BN17: 0
A18: 15 | B18: 15 | C18: 585 | D18: 3.19 | E18: 16 | F18: 16 | G18: 1 | H18: 1 | K18: 16 | L18: 0.425 | M18: 0.507 | N18: 0.666 | R18: 15 | S18: 0 | T18: 0 | U18: 0 | V18: 0 | W18: 0 | X18: 0 | Y18: 0 | Z18: 0 | AA18: 0 | AB18: 0 | AC18: 0 | AD18: 0 | AE18: 0 | AF18: 0 | AG18: 0 | AH18: 0 | AI18: 0 | AJ18: 0 | AK18: 0 | AL18: 0 | AM18: 0 | AS18: 0 | AT18: 0 | AU18: 0 | AV18: 0 | AW18: 0 | AX18: 0 | AY18: 0 | AZ18: 0 | BA18: 0 | BB18: 0 | BC18: 0 | BD18: 0 | BE18: 0 | BF18: 0 | BG18: 0 | BH18: 0 | BI18: 0 | BJ18: 0 | BK18: 0 | BL18: 0 | BM18: 0 | BN18: 0
A19: 16 | B19: 16 | C19: 593 | D19: 3.42 | E19: 17 | F19: 17 | G19: 1 | H19: 1 | K19: 17 | L19: 0.412 | M19: 0.490 | N19: 0.645 | R19: 16 | S19: 0 | T19: 0 | U19: 0 | V19: 0 | W19: 0 | X19: 0 | Y19: 0 | Z19: 0 | AA19: 0 | AB19: 0 | AC19: 0 | AD19: 0 | AE19: 0 | AF19: 0 | AG19: 0 | AH19: 0 | AI19: 0 | AJ19: 0 | AK19: 0 | AL19: 0 | AM19: 0 | AS19: 0 | AT19: 0 | AU19: 0 | AV19: 0 | AW19: 0 | AX19: 0 | AY19: 0 | AZ19: 0 | BA19: 0 | BB19: 0 | BC19: 0 | BD19: 0 | BE19: 0 | BF19: 0 | BG19: 0 | BH19: 0 | BI19: 0 | BJ19: 0 | BK19: 0 | BL19: 0 | BM19: 0 | BN19: 0
A20: 14 | B20: 14 | C20: 582 | D20: 3.44 | E20: 18 | F20: 18 | G20: 4 | H20: 16 | K20: 18 | L20: 0.399 | M20: 0.476 | N20: 0.625 | R20: 14 | S20: 0 | T20: 0 | U20: 0 | V20: 0 | W20: 0 | X20: 0 | Y20: 0 | Z20: 0 | AA20: 0 | AB20: 0 | AC20: 0 | AD20: 0 | AE20: 0 | AF20: 0 | AG20: 0 | AH20: 0 | AI20: 0 | AJ20: 0 | AK20: 0 | AL20: 0 | AM20: 0 | AS20: 0 | AT20: 0 | AU20: 0 | AV20: 0 | AW20: 0 | AX20: 0 | AY20: 0 | AZ20: 0 | BA20: 0 | BB20: 0 | BC20: 0 | BD20: 0 | BE20: 0 | BF20: 0 | BG20: 0 | BH20: 0 | BI20: 0 | BJ20: 0 | BK20: 0 | BL20: 0 | BM20: 0 | BN20: 0
A21: 17 | B21: 17 | C21: 620 | D21: 3.87 | E21: 19 | F21: 19 | G21: 2 | H21: 4 | J21: YES | K21: 19 | L21: 0.388 | M21: 0.462 | N21: 0.608 | R21: 17 | S21: 0 | T21: 0 | U21: 0 | V21: 0 | W21: 0 | X21: 0 | Y21: 0 | Z21: 0 | AA21: 0 | AB21: 0 | AC21: 0 | AD21: 0 | AE21: 0 | AF21: 0 | AG21: 0 | AH21: 0 | AI21: 0 | AJ21: 0 | AK21: 0 | AL21: 0 | AM21: 0 | AS21: 0 | AT21: 0 | AU21: 0 | AV21: 0 | AW21: 0 | AX21: 0 | AY21: 0 | AZ21: 0 | BA21: 0 | BB21: 0 | BC21: 0 | BD21: 0 | BE21: 0 | BF21: 0 | BG21: 0 | BH21: 0 | BI21: 0 | BJ21: 0 | BK21: 0 | BL21: 0 | BM21: 0 | BN21: 0
B22: 20 | E22: 20 | K22: 20 | L22: 0.377 | M22: 0.450 | N22: 0.591 | S22: 0 | T22: 0 | U22: 0 | V22: 0 | W22: 0 | X22: 0 | Y22: 0 | Z22: 0 | AA22: 0 | AB22: 0 | AC22: 0 | AD22: 0 | AE22: 0 | AF22: 0 | AG22: 0 | AH22: 0 | AI22: 0 | AJ22: 0 | AK22: 0 | AL22: 0 | AM22: 0 | AS22: 0 | AT22: 0 | AU22: 0 | AV22: 0 | AW22: 0 | AX22: 0 | AY22: 0 | AZ22: 0 | BA22: 0 | BB22: 0 | BC22: 0 | BD22: 0 | BE22: 0 | BF22: 0 | BG22: 0 | BH22: 0 | BI22: 0 | BJ22: 0 | BK22: 0 | BL22: 0 | BM22: 0 | BN22: 0
B23: 21 | E23: 21 | K23: 21 | L23: 0.368 | M23: 0.438 | N23: 0.576 | S23: 0 | T23: 0 | U23: 0 | V23: 0 | W23: 0 | X23: 0 | Y23: 0 | Z23: 0 | AA23: 0 | AB23: 0 | AC23: 0 | AD23: 0 | AE23: 0 | AF23: 0 | AG23: 0 | AH23: 0 | AI23: 0 | AJ23: 0 | AK23: 0 | AL23: 0 | AM23: 0 | AS23: 0 | AT23: 0 | AU23: 0 | AV23: 0 | AW23: 0 | AX23: 0 | AY23: 0 | AZ23: 0 | BA23: 0 | BB23: 0 | BC23: 0 | BD23: 0 | BE23: 0 | BF23: 0 | BG23: 0 | BH23: 0 | BI23: 0 | BJ23: 0 | BK23: 0 | BL23: 0 | BM23: 0 | BN23: 0
B24: 22 | E24: 22 | K24: 22 | L24: 0.359 | M24: 0.428 | N24: 0.562 | S24: 0 | T24: 0 | U24: 0 | V24: 0 | W24: 0 | X24: 0 | Y24: 0 | Z24: 0 | AA24: 0 | AB24: 0 | AC24: 0 | AD24: 0 | AE24: 0 | AF24: 0 | AG24: 0 | AH24: 0 | AI24: 0 | AJ24: 0 | AK24: 0 | AL24: 0 | AM24: 0 | AS24: 0 | AT24: 0 | AU24: 0 | AV24: 0 | AW24: 0 | AX24: 0 | AY24: 0 | AZ24: 0 | BA24: 0 | BB24: 0 | BC24: 0 | BD24: 0 | BE24: 0 | BF24: 0 | BG24: 0 | BH24: 0 | BI24: 0 | BJ24: 0 | BK24: 0 | BL24: 0 | BM24: 0 | BN24: 0
B25: 23 | E25: 23 | K25: 23 | L25: 0.351 | M25: 0.418 | N25: 0.549 | S25: 0 | T25: 0 | U25: 0 | V25: 0 | W25: 0 | X25: 0 | Y25: 0 | Z25: 0 | AA25: 0 | AB25: 0 | AC25: 0 | AD25: 0 | AE25: 0 | AF25: 0 | AG25: 0 | AH25: 0 | AI25: 0 | AJ25: 0 | AK25: 0 | AL25: 0 | AM25: 0 | AS25: 0 | AT25: 0 | AU25: 0 | AV25: 0 | AW25: 0 | AX25: 0 | AY25: 0 | AZ25: 0 | BA25: 0 | BB25: 0 | BC25: 0 | BD25: 0 | BE25: 0 | BF25: 0 | BG25: 0 | BH25: 0 | BI25: 0 | BJ25: 0 | BK25: 0 | BL25: 0 | BM25: 0 | BN25: 0
B26: 24 | E26: 24 | K26: 24 | L26: 0.343 | M26: 0.409 | N26: 0.537 | S26: 0 | T26: 0 | U26: 0 | V26: 0 | W26: 0 | X26: 0 | Y26: 0 | Z26: 0 | AA26: 0 | AB26: 0 | AC26: 0 | AD26: 0 | AE26: 0 | AF26: 0 | AG26: 0 | AH26: 0 | AI26: 0 | AJ26: 0 | AK26: 0 | AL26: 0 | AM26: 0 | AS26: 0 | AT26: 0 | AU26: 0 | AV26: 0 | AW26: 0 | AX26: 0 | AY26: 0 | AZ26: 0 | BA26: 0 | BB26: 0 | BC26: 0 | BD26: 0 | BE26: 0 | BF26: 0 | BG26: 0 | BH26: 0 | BI26: 0 | BJ26: 0 | BK26: 0 | BL26: 0 | BM26: 0 | BN26: 0
B27: 25 | E27: 25 | K27: 25 | L27: 0.336 | M27: 0.400 | N27: 0.526 | S27: 0 | T27: 0 | U27: 0 | V27: 0 | W27: 0 | X27: 0 | Y27: 0 | Z27: 0 | AA27: 0 | AB27: 0 | AC27: 0 | AD27: 0 | AE27: 0 | AF27: 0 | AG27: 0 | AH27: 0 | AI27: 0 | AJ27: 0 | AK27: 0 | AL27: 0 | AM27: 0 | AS27: 0 | AT27: 0 | AU27: 0 | AV27: 0 | AW27: 0 | AX27: 0 | AY27: 0 | AZ27: 0 | BA27: 0 | BB27: 0 | BC27: 0 | BD27: 0 | BE27: 0 | BF27: 0 | BG27: 0 | BH27: 0 | BI27: 0 | BJ27: 0 | BK27: 0 | BL27: 0 | BM27: 0 | BN27: 0
B28: 26 | E28: 26 | K28: 26 | L28: 0.329 | M28: 0.392 | N28: 0.515 | S28: 0 | T28: 0 | U28: 0 | V28: 0 | W28: 0 | X28: 0 | Y28: 0 | Z28: 0 | AA28: 0 | AB28: 0 | AC28: 0 | AD28: 0 | AE28: 0 | AF28: 0 | AG28: 0 | AH28: 0 | AI28: 0 | AJ28: 0 | AK28: 0 | AL28: 0 | AM28: 0 | AS28: 0 | AT28: 0 | AU28: 0 | AV28: 0 | AW28: 0 | AX28: 0 | AY28: 0 | AZ28: 0 | BA28: 0 | BB28: 0 | BC28: 0 | BD28: 0 | BE28: 0 | BF28: 0 | BG28: 0 | BH28: 0 | BI28: 0 | BJ28: 0 | BK28: 0 | BL28: 0 | BM28: 0 | BN28: 0
B29: 27 | E29: 27 | K29: 27 | L29: 0.323 | M29: 0.385 | N29: 0.505 | S29: 0 | T29: 0 | U29: 0 | V29: 0 | W29: 0 | X29: 0 | Y29: 0 | Z29: 0 | AA29: 0 | AB29: 0 | AC29: 0 | AD29: 0 | AE29: 0 | AF29: 0 | AG29: 0 | AH29: 0 | AI29: 0 | AJ29: 0 | AK29: 0 | AL29: 0 | AM29: 0 | AS29: 0 | AT29: 0 | AU29: 0 | AV29: 0 | AW29: 0 | AX29: 0 | AY29: 0 | AZ29: 0 | BA29: 0 | BB29: 0 | BC29: 0 | BD29: 0 | BE29: 0 | BF29: 0 | BG29: 0 | BH29: 0 | BI29: 0 | BJ29: 0 | BK29: 0 | BL29: 0 | BM29: 0 | BN29: 0
B30: 28 | E30: 28 | K30: 28 | L30: 0.317 | M30: 0.377 | N30: 0.496 | S30: 0 | T30: 0 | U30: 0 | V30: 0 | W30: 0 | X30: 0 | Y30: 0 | Z30: 0 | AA30: 0 | AB30: 0 | AC30: 0 | AD30: 0 | AE30: 0 | AF30: 0 | AG30: 0 | AH30: 0 | AI30: 0 | AJ30: 0 | AK30: 0 | AL30: 0 | AM30: 0 | AS30: 0 | AT30: 0 | AU30: 0 | AV30: 0 | AW30: 0 | AX30: 0 | AY30: 0 | AZ30: 0 | BA30: 0 | BB30: 0 | BC30: 0 | BD30: 0 | BE30: 0 | BF30: 0 | BG30: 0 | BH30: 0 | BI30: 0 | BJ30: 0 | BK30: 0 | BL30: 0 | BM30: 0 | BN30: 0
B31: 29 | E31: 29 | G31: =IF(ISBLANK(C31),"",ABS(A31-F31)) ->  | H31: =IF(ISBLANK(C31),"",G31^2) ->  | K31: 29 | L31: 0.311 | M31: 0.370 | N31: 0.487 | S31: 0 | T31: 0 | U31: 0 | V31: 0 | W31: 0 | X31: 0 | Y31: 0 | Z31: 0 | AA31: 0 | AB31: 0 | AC31: 0 | AD31: 0 | AE31: 0 | AF31: 0 | AG31: 0 | AH31: 0 | AI31: 0 | AJ31: 0 | AK31: 0 | AL31: 0 | AM31: 0 | AS31: 0 | AT31: 0 | AU31: 0 | AV31: 0 | AW31: 0 | AX31: 0 | AY31: 0 | AZ31: 0 | BA31: 0 | BB31: 0 | BC31: 0 | BD31: 0 | BE31: 0 | BF31: 0 | BG31: 0 | BH31: 0 | BI31: 0 | BJ31: 0 | BK31: 0 | BL31: 0 | BM31: 0 | BN31: 0
B32: 30 | E32: 30 | J32: =IF($H$1>K31,IF($N$4=$L$6,IF(ABS($K$3)>L32,"YES","NO"),IF($N$4=$M$6,IF(ABS($K$3)>M32,"YES","NO"),IF($N$4=$N$6,IF(ABS($K$3)>N32,"YES","NO"),""))),"") ->  | K32: 30 | L32: 0.305 | M32: 0.364 | N32: 0.478 | S32: 0 | T32: 0 | U32: 0 | V32: 0 | W32: 0 | X32: 0 | Y32: 0 | Z32: 0 | AA32: 0 | AB32: 0 | AC32: 0 | AD32: 0 | AE32: 0 | AF32: 0 | AG32: 0 | AH32: 0 | AI32: 0 | AJ32: 0 | AK32: 0 | AL32: 0 | AM32: 0 | AS32: 0 | AT32: 0 | AU32: 0 | AV32: 0 | AW32: 0 | AX32: 0 | AY32: 0 | AZ32: 0 | BA32: 0 | BB32: 0 | BC32: 0 | BD32: 0 | BE32: 0 | BF32: 0 | BG32: 0 | BH32: 0 | BI32: 0 | BJ32: 0 | BK32: 0 | BL32: 0 | BM32: 0 | BN32: 0
B33: 31 | E33: 31 | S33: 0 | T33: 0 | U33: 0 | V33: 0 | W33: 0 | X33: 0 | Y33: 0 | Z33: 0 | AA33: 0 | AB33: 0 | AC33: 0 | AD33: 0 | AE33: 0 | AF33: 0 | AG33: 0 | AH33: 0 | AI33: 0 | AJ33: 0 | AK33: 0 | AL33: 0 | AM33: 0 | AS33: 0 | AT33: 0 | AU33: 0 | AV33: 0 | AW33: 0 | AX33: 0 | AY33: 0 | AZ33: 0 | BA33: 0 | BB33: 0 | BC33: 0 | BD33: 0 | BE33: 0 | BF33: 0 | BG33: 0 | BH33: 0 | BI33: 0 | BJ33: 0 | BK33: 0 | BL33: 0 | BM33: 0 | BN33: 0
B34: 32 | E34: 32 | S34: 0 | T34: 0 | U34: 0 | V34: 0 | W34: 0 | X34: 0 | Y34: 0 | Z34: 0 | AA34: 0 | AB34: 0 | AC34: 0 | AD34: 0 | AE34: 0 | AF34: 0 | AG34: 0 | AH34: 0 | AI34: 0 | AJ34: 0 | AK34: 0 | AL34: 0 | AM34: 0 | AS34: 0 | AT34: 0 | AU34: 0 | AV34: 0 | AW34: 0 | AX34: 0 | AY34: 0 | AZ34: 0 | BA34: 0 | BB34: 0 | BC34: 0 | BD34: 0 | BE34: 0 | BF34: 0 | BG34: 0 | BH34: 0 | BI34: 0 | BJ34: 0 | BK34: 0 | BL34: 0 | BM34: 0 | BN34: 0
B35: 33 | E35: 33 | S35: 0 | T35: 0 | U35: 0 | V35: 0 | W35: 0 | X35: 0 | Y35: 0 | Z35: 0 | AA35: 0 | AB35: 0 | AC35: 0 | AD35: 0 | AE35: 0 | AF35: 0 | AG35: 0 | AH35: 0 | AI35: 0 | AJ35: 0 | AK35: 0 | AL35: 0 | AM35: 0 | AS35: 0 | AT35: 0 | AU35: 0 | AV35: 0 | AW35: 0 | AX35: 0 | AY35: 0 | AZ35: 0 | BA35: 0 | BB35: 0 | BC35: 0 | BD35: 0 | BE35: 0 | BF35: 0 | BG35: 0 | BH35: 0 | BI35: 0 | BJ35: 0 | BK35: 0 | BL35: 0 | BM35: 0 | BN35: 0
B36: 34 | E36: 34 | S36: 0 | T36: 0 | U36: 0 | V36: 0 | W36: 0 | X36: 0 | Y36: 0 | Z36: 0 | AA36: 0 | AB36: 0 | AC36: 0 | AD36: 0 | AE36: 0 | AF36: 0 | AG36: 0 | AH36: 0 | AI36: 0 | AJ36: 0 | AK36: 0 | AL36: 0 | AM36: 0 | AS36: 0 | AT36: 0 | AU36: 0 | AV36: 0 | AW36: 0 | AX36: 0 | AY36: 0 | AZ36: 0 | BA36: 0 | BB36: 0 | BC36: 0 | BD36: 0 | BE36: 0 | BF36: 0 | BG36: 0 | BH36: 0 | BI36: 0 | BJ36: 0 | BK36: 0 | BL36: 0 | BM36: 0 | BN36: 0
B37: 35 | E37: 35 | S37: 0 | T37: 0 | U37: 0 | V37: 0 | W37: 0 | X37: 0 | Y37: 0 | Z37: 0 | AA37: 0 | AB37: 0 | AC37: 0 | AD37: 0 | AE37: 0 | AF37: 0 | AG37: 0 | AH37: 0 | AI37: 0 | AJ37: 0 | AK37: 0 | AL37: 0 | AM37: 0 | AS37: 0 | AT37: 0 | AU37: 0 | AV37: 0 | AW37: 0 | AX37: 0 | AY37: 0 | AZ37: 0 | BA37: 0 | BB37: 0 | BC37: 0 | BD37: 0 | BE37: 0 | BF37: 0 | BG37: 0 | BH37: 0 | BI37: 0 | BJ37: 0 | BK37: 0 | BL37: 0 | BM37: 0 | BN37: 0
B38: 36 | E38: 36 | S38: 0 | T38: 0 | U38: 0 | V38: 0 | W38: 0 | X38: 0 | Y38: 0 | Z38: 0 | AA38: 0 | AB38: 0 | AC38: 0 | AD38: 0 | AE38: 0 | AF38: 0 | AG38: 0 | AH38: 0 | AI38: 0 | AJ38: 0 | AK38: 0 | AL38: 0 | AM38: 0 | AS38: 0 | AT38: 0 | AU38: 0 | AV38: 0 | AW38: 0 | AX38: 0 | AY38: 0 | AZ38: 0 | BA38: 0 | BB38: 0 | BC38: 0 | BD38: 0 | BE38: 0 | BF38: 0 | BG38: 0 | BH38: 0 | BI38: 0 | BJ38: 0 | BK38: 0 | BL38: 0 | BM38: 0 | BN38: 0
B39: 37 | E39: 37 | S39: 0 | T39: 0 | U39: 0 | V39: 0 | W39: 0 | X39: 0 | Y39: 0 | Z39: 0 | AA39: 0 | AB39: 0 | AC39: 0 | AD39: 0 | AE39: 0 | AF39: 0 | AG39: 0 | AH39: 0 | AI39: 0 | AJ39: 0 | AK39: 0 | AL39: 0 | AM39: 0 | AS39: 0 | AT39: 0 | AU39: 0 | AV39: 0 | AW39: 0 | AX39: 0 | AY39: 0 | AZ39: 0 | BA39: 0 | BB39: 0 | BC39: 0 | BD39: 0 | BE39: 0 | BF39: 0 | BG39: 0 | BH39: 0 | BI39: 0 | BJ39: 0 | BK39: 0 | BL39: 0 | BM39: 0 | BN39: 0
B40: 38 | E40: 38 | F40: =IF(ISBLANK(D40),"",IF(D40=D39,F39,IF(D40=D41,IF(D41=D42,IF(D42=D43,IF(D43=D44,IF(D44=D45,AS40,(SUM(E40:E44)/5)),(SUM(E40:E43)/4)),(SUM(E40:E42)/3)),(SUM(E40:E41)/2)),E40))) ->  | G40: =IF(ISBLANK(C40),"",ABS(A40-F40)) ->  | H40: =IF(ISBLANK(C40),"",G40^2) ->  | S40: 0 | T40: 0 | U40: 0 | V40: 0 | W40: 0 | X40: 0 | Y40: 0 | Z40: 0 | AA40: 0 | AB40: 0 | AC40: 0 | AD40: 0 | AE40: 0 | AF40: 0 | AG40: 0 | AH40: 0 | AI40: 0 | AJ40: 0 | AK40: 0 | AL40: 0 | AM40: 0 | AS40: 0 | AT40: 0 | AU40: 0 | AV40: 0 | AW40: 0 | AX40: 0 | AY40: 0 | AZ40: 0 | BA40: 0 | BB40: 0 | BC40: 0 | BD40: 0 | BE40: 0 | BF40: 0 | BG40: 0 | BH40: 0 | BI40: 0 | BJ40: 0 | BK40: 0 | BL40: 0 | BM40: 0 | BN40: 0
B41: 39 | E41: 39 | S41: 0 | T41: 0 | U41: 0 | V41: 0 | W41: 0 | X41: 0 | Y41: 0 | Z41: 0 | AA41: 0 | AB41: 0 | AC41: 0 | AD41: 0 | AE41: 0 | AF41: 0 | AG41: 0 | AH41: 0 | AI41: 0 | AJ41: 0 | AK41: 0 | AL41: 0 | AM41: 0 | AS41: 0 | AT41: 0 | AU41: 0 | AV41: 0 | AW41: 0 | AX41: 0 | AY41: 0 | AZ41: 0 | BA41: 0 | BB41: 0 | BC41: 0 | BD41: 0 | BE41: 0 | BF41: 0 | BG41: 0 | BH41: 0 | BI41: 0 | BJ41: 0 | BK41: 0 | BL41: 0 | BM41: 0 | BN41: 0
B42: 40 | E42: 40 | S42: 0 | T42: 0 | U42: 0 | V42: 0 | W42: 0 | X42: 0 | Y42: 0 | Z42: 0 | AA42: 0 | AB42: 0 | AC42: 0 | AD42: 0 | AE42: 0 | AF42: 0 | AG42: 0 | AH42: 0 | AI42: 0 | AJ42: 0 | AK42: 0 | AL42: 0 | AM42: 0 | AS42: 0 | AT42: 0 | AU42: 0 | AV42: 0 | AW42: 0 | AX42: 0 | AY42: 0 | AZ42: 0 | BA42: 0 | BB42: 0 | BC42: 0 | BD42: 0 | BE42: 0 | BF42: 0 | BG42: 0 | BH42: 0 | BI42: 0 | BJ42: 0 | BK42: 0 | BL42: 0 | BM42: 0 | BN42: 0
B43: 41 | E43: 41 | S43: 0 | T43: 0 | U43: 0 | V43: 0 | W43: 0 | X43: 0 | Y43: 0 | Z43: 0 | AA43: 0 | AB43: 0 | AC43: 0 | AD43: 0 | AE43: 0 | AF43: 0 | AG43: 0 | AH43: 0 | AI43: 0 | AJ43: 0 | AK43: 0 | AL43: 0 | AM43: 0 | AS43: 0 | AT43: 0 | AU43: 0 | AV43: 0 | AW43: 0 | AX43: 0 | AY43: 0 | AZ43: 0 | BA43: 0 | BB43: 0 | BC43: 0 | BD43: 0 | BE43: 0 | BF43: 0 | BG43: 0 | BH43: 0 | BI43: 0 | BJ43: 0 | BK43: 0 | BL43: 0 | BM43: 0 | BN43: 0
B44: 42 | E44: 42 | S44: 0 | T44: 0 | U44: 0 | V44: 0 | W44: 0 | X44: 0 | Y44: 0 | Z44: 0 | AA44: 0 | AB44: 0 | AC44: 0 | AD44: 0 | AE44: 0 | AF44: 0 | AG44: 0 | AH44: 0 | AI44: 0 | AJ44: 0 | AK44: 0 | AL44: 0 | AM44: 0 | AS44: 0 | AT44: 0 | AU44: 0 | AV44: 0 | AW44: 0 | AX44: 0 | AY44: 0 | AZ44: 0 | BA44: 0 | BB44: 0 | BC44: 0 | BD44: 0 | BE44: 0 | BF44: 0 | BG44: 0 | BH44: 0 | BI44: 0 | BJ44: 0 | BK44: 0 | BL44: 0 | BM44: 0 | BN44: 0
B45: 43 | E45: 43 | S45: 0 | T45: 0 | U45: 0 | V45: 0 | W45: 0 | X45: 0 | Y45: 0 | Z45: 0 | AA45: 0 | AB45: 0 | AC45: 0 | AD45: 0 | AE45: 0 | AF45: 0 | AG45: 0 | AH45: 0 | AI45: 0 | AJ45: 0 | AK45: 0 | AL45: 0 | AM45: 0 | AS45: 0 | AT45: 0 | AU45: 0 | AV45: 0 | AW45: 0 | AX45: 0 | AY45: 0 | AZ45: 0 | BA45: 0 | BB45: 0 | BC45: 0 | BD45: 0 | BE45: 0 | BF45: 0 | BG45: 0 | BH45: 0 | BI45: 0 | BJ45: 0 | BK45: 0 | BL45: 0 | BM45: 0 | BN45: 0
B46: 44 | E46: 44 | S46: 0 | T46: 0 | U46: 0 | V46: 0 | W46: 0 | X46: 0 | Y46: 0 | Z46: 0 | AA46: 0 | AB46: 0 | AC46: 0 | AD46: 0 | AE46: 0 | AF46: 0 | AG46: 0 | AH46: 0 | AI46: 0 | AJ46: 0 | AK46: 0 | AL46: 0 | AM46: 0 | AS46: 0 | AT46: 0 | AU46: 0 | AV46: 0 | AW46: 0 | AX46: 0 | AY46: 0 | AZ46: 0 | BA46: 0 | BB46: 0 | BC46: 0 | BD46: 0 | BE46: 0 | BF46: 0 | BG46: 0 | BH46: 0 | BI46: 0 | BJ46: 0 | BK46: 0 | BL46: 0 | BM46: 0 | BN46: 0
B47: 45 | E47: 45 | S47: 0 | T47: 0 | U47: 0 | V47: 0 | W47: 0 | X47: 0 | Y47: 0 | Z47: 0 | AA47: 0 | AB47: 0 | AC47: 0 | AD47: 0 | AE47: 0 | AF47: 0 | AG47: 0 | AH47: 0 | AI47: 0 | AJ47: 0 | AK47: 0 | AL47: 0 | AM47: 0 | AS47: 0 | AT47: 0 | AU47: 0 | AV47: 0 | AW47: 0 | AX47: 0 | AY47: 0 | AZ47: 0 | BA47: 0 | BB47: 0 | BC47: 0 | BD47: 0 | BE47: 0 | BF47: 0 | BG47: 0 | BH47: 0 | BI47: 0 | BJ47: 0 | BK47: 0 | BL47: 0 | BM47: 0 | BN47: 0
B48: 46 | E48: 46 | S48: 0 | T48: 0 | U48: 0 | V48: 0 | W48: 0 | X48: 0 | Y48: 0 | Z48: 0 | AA48: 0 | AB48: 0 | AC48: 0 | AD48: 0 | AE48: 0 | AF48: 0 | AG48: 0 | AH48: 0 | AI48: 0 | AJ48: 0 | AK48: 0 | AL48: 0 | AM48: 0 | AS48: 0 | AT48: 0 | AU48: 0 | AV48: 0 | AW48: 0 | AX48: 0 | AY48: 0 | AZ48: 0 | BA48: 0 | BB48: 0 | BC48: 0 | BD48: 0 | BE48: 0 | BF48: 0 | BG48: 0 | BH48: 0 | BI48: 0 | BJ48: 0 | BK48: 0 | BL48: 0 | BM48: 0 | BN48: 0
B49: 47 | E49: 47 | S49: 0 | T49: 0 | U49: 0 | V49: 0 | W49: 0 | X49: 0 | Y49: 0 | Z49: 0 | AA49: 0 | AB49: 0 | AC49: 0 | AD49: 0 | AE49: 0 | AF49: 0 | AG49: 0 | AH49: 0 | AI49: 0 | AJ49: 0 | AK49: 0 | AL49: 0 | AM49: 0 | AS49: 0 | AT49: 0 | AU49: 0 | AV49: 0 | AW49: 0 | AX49: 0 | AY49: 0 | AZ49: 0 | BA49: 0 | BB49: 0 | BC49: 0 | BD49: 0 | BE49: 0 | BF49: 0 | BG49: 0 | BH49: 0 | BI49: 0 | BJ49: 0 | BK49: 0 | BL49: 0 | BM49: 0 | BN49: 0
B50: 48 | E50: 48 | S50: 0 | T50: 0 | U50: 0 | V50: 0 | W50: 0 | X50: 0 | Y50: 0 | Z50: 0 | AA50: 0 | AB50: 0 | AC50: 0 | AD50: 0 | AE50: 0 | AF50: 0 | AG50: 0 | AH50: 0 | AI50: 0 | AJ50: 0 | AK50: 0 | AL50: 0 | AM50: 0 | AS50: 0 | AT50: 0 | AU50: 0 | AV50: 0 | AW50: 0 | AX50: 0 | AY50: 0 | AZ50: 0 | BA50: 0 | BB50: 0 | BC50: 0 | BD50: 0 | BE50: 0 | BF50: 0 | BG50: 0 | BH50: 0 | BI50: 0 | BJ50: 0 | BK50: 0 | BL50: 0 | BM50: 0 | BN50: 0
B51: 49 | E51: 49 | S51: 0 | T51: 0 | U51: 0 | V51: 0 | W51: 0 | X51: 0 | Y51: 0 | Z51: 0 | AA51: 0 | AB51: 0 | AC51: 0 | AD51: 0 | AE51: 0 | AF51: 0 | AG51: 0 | AH51: 0 | AI51: 0 | AJ51: 0 | AK51: 0 | AL51: 0 | AM51: 0 | AS51: 0 | AT51: 0 | AU51: 0 | AV51: 0 | AW51: 0 | AX51: 0 | AY51: 0 | AZ51: 0 | BA51: 0 | BB51: 0 | BC51: 0 | BD51: 0 | BE51: 0 | BF51: 0 | BG51: 0 | BH51: 0 | BI51: 0 | BJ51: 0 | BK51: 0 | BL51: 0 | BM51: 0 | BN51: 0
B52: 50 | E52: 50 | S52: 0 | T52: 0 | U52: 0 | V52: 0 | W52: 0 | X52: 0 | Y52: 0 | Z52: 0 | AA52: 0 | AB52: 0 | AC52: 0 | AD52: 0 | AE52: 0 | AF52: 0 | AG52: 0 | AH52: 0 | AI52: 0 | AJ52: 0 | AK52: 0 | AL52: 0 | AM52: 0 | AS52: 0 | AT52: 0 | AU52: 0 | AV52: 0 | AW52: 0 | AX52: 0 | AY52: 0 | AZ52: 0 | BA52: 0 | BB52: 0 | BC52: 0 | BD52: 0 | BE52: 0 | BF52: 0 | BG52: 0 | BH52: 0 | BI52: 0 | BJ52: 0 | BK52: 0 | BL52: 0 | BM52: 0 | BN52: 0
B53: 51 | E53: 51 | S53: 0 | T53: 0 | U53: 0 | V53: 0 | W53: 0 | X53: 0 | Y53: 0 | Z53: 0 | AA53: 0 | AB53: 0 | AC53: 0 | AD53: 0 | AE53: 0 | AF53: 0 | AG53: 0 | AH53: 0 | AI53: 0 | AJ53: 0 | AK53: 0 | AL53: 0 | AM53: 0 | AS53: 0 | AT53: 0 | AU53: 0 | AV53: 0 | AW53: 0 | AX53: 0 | AY53: 0 | AZ53: 0 | BA53: 0 | BB53: 0 | BC53: 0 | BD53: 0 | BE53: 0 | BF53: 0 | BG53: 0 | BH53: 0 | BI53: 0 | BJ53: 0 | BK53: 0 | BL53: 0 | BM53: 0 | BN53: 0
B54: 52 | E54: 52 | S54: 0 | T54: 0 | U54: 0 | V54: 0 | W54: 0 | X54: 0 | Y54: 0 | Z54: 0 | AA54: 0 | AB54: 0 | AC54: 0 | AD54: 0 | AE54: 0 | AF54: 0 | AG54: 0 | AH54: 0 | AI54: 0 | AJ54: 0 | AK54: 0 | AL54: 0 | AM54: 0 | AS54: 0 | AT54: 0 | AU54: 0 | AV54: 0 | AW54: 0 | AX54: 0 | AY54: 0 | AZ54: 0 | BA54: 0 | BB54: 0 | BC54: 0 | BD54: 0 | BE54: 0 | BF54: 0 | BG54: 0 | BH54: 0 | BI54: 0 | BJ54: 0 | BK54: 0 | BL54: 0 | BM54: 0 | BN54: 0
B55: 53 | E55: 53 | S55: 0 | T55: 0 | U55: 0 | V55: 0 | W55: 0 | X55: 0 | Y55: 0 | Z55: 0 | AA55: 0 | AB55: 0 | AC55: 0 | AD55: 0 | AE55: 0 | AF55: 0 | AG55: 0 | AH55: 0 | AI55: 0 | AJ55: 0 | AK55: 0 | AL55: 0 | AM55: 0 | AS55: 0 | AT55: 0 | AU55: 0 | AV55: 0 | AW55: 0 | AX55: 0 | AY55: 0 | AZ55: 0 | BA55: 0 | BB55: 0 | BC55: 0 | BD55: 0 | BE55: 0 | BF55: 0 | BG55: 0 | BH55: 0 | BI55: 0 | BJ55: 0 | BK55: 0 | BL55: 0 | BM55: 0 | BN55: 0
B56: 54 | E56: 54 | S56: 0 | T56: 0 | U56: 0 | V56: 0 | W56: 0 | X56: 0 | Y56: 0 | Z56: 0 | AA56: 0 | AB56: 0 | AC56: 0 | AD56: 0 | AE56: 0 | AF56: 0 | AG56: 0 | AH56: 0 | AI56: 0 | AJ56: 0 | AK56: 0 | AL56: 0 | AM56: 0 | AS56: 0 | AT56: 0 | AU56: 0 | AV56: 0 | AW56: 0 | AX56: 0 | AY56: 0 | AZ56: 0 | BA56: 0 | BB56: 0 | BC56: 0 | BD56: 0 | BE56: 0 | BF56: 0 | BG56: 0 | BH56: 0 | BI56: 0 | BJ56: 0 | BK56: 0 | BL56: 0 | BM56: 0 | BN56: 0
B57: 55 | E57: 55 | S57: 0 | T57: 0 | U57: 0 | V57: 0 | W57: 0 | X57: 0 | Y57: 0 | Z57: 0 | AA57: 0 | AB57: 0 | AC57: 0 | AD57: 0 | AE57: 0 | AF57: 0 | AG57: 0 | AH57: 0 | AI57: 0 | AJ57: 0 | AK57: 0 | AL57: 0 | AM57: 0 | AS57: 0 | AT57: 0 | AU57: 0 | AV57: 0 | AW57: 0 | AX57: 0 | AY57: 0 | AZ57: 0 | BA57: 0 | BB57: 0 | BC57: 0 | BD57: 0 | BE57: 0 | BF57: 0 | BG57: 0 | BH57: 0 | BI57: 0 | BJ57: 0 | BK57: 0 | BL57: 0 | BM57: 0 | BN57: 0
B58: 56 | E58: 56 | S58: 0 | T58: 0 | U58: 0 | V58: 0 | W58: 0 | X58: 0 | Y58: 0 | Z58: 0 | AA58: 0 | AB58: 0 | AC58: 0 | AD58: 0 | AE58: 0 | AF58: 0 | AG58: 0 | AH58: 0 | AI58: 0 | AJ58: 0 | AK58: 0 | AL58: 0 | AM58: 0 | AS58: 0 | AT58: 0 | AU58: 0 | AV58: 0 | AW58: 0 | AX58: 0 | AY58: 0 | AZ58: 0 | BA58: 0 | BB58: 0 | BC58: 0 | BD58: 0 | BE58: 0 | BF58: 0 | BG58: 0 | BH58: 0 | BI58: 0 | BJ58: 0 | BK58: 0 | BL58: 0 | BM58: 0 | BN58: 0
B59: 57 | E59: 57 | S59: 0 | T59: 0 | U59: 0 | V59: 0 | W59: 0 | X59: 0 | Y59: 0 | Z59: 0 | AA59: 0 | AB59: 0 | AC59: 0 | AD59: 0 | AE59: 0 | AF59: 0 | AG59: 0 | AH59: 0 | AI59: 0 | AJ59: 0 | AK59: 0 | AL59: 0 | AM59: 0 | AS59: 0 | AT59: 0 | AU59: 0 | AV59: 0 | AW59: 0 | AX59: 0 | AY59: 0 | AZ59: 0 | BA59: 0 | BB59: 0 | BC59: 0 | BD59: 0 | BE59: 0 | BF59: 0 | BG59: 0 | BH59: 0 | BI59: 0 | BJ59: 0 | BK59: 0 | BL59: 0 | BM59: 0 | BN59: 0
B60: 58 | E60: 58 | S60: 0 | T60: 0 | U60: 0 | V60: 0 | W60: 0 | X60: 0 | Y60: 0 | Z60: 0 | AA60: 0 | AB60: 0 | AC60: 0 | AD60: 0 | AE60: 0 | AF60: 0 | AG60: 0 | AH60: 0 | AI60: 0 | AJ60: 0 | AK60: 0 | AL60: 0 | AM60: 0 | AS60: 0 | AT60: 0 | AU60: 0 | AV60: 0 | AW60: 0 | AX60: 0 | AY60: 0 | AZ60: 0 | BA60: 0 | BB60: 0 | BC60: 0 | BD60: 0 | BE60: 0 | BF60: 0 | BG60: 0 | BH60: 0 | BI60: 0 | BJ60: 0 | BK60: 0 | BL60: 0 | BM60: 0 | BN60: 0
B61: 59 | E61: 59 | S61: 0 | T61: 0 | U61: 0 | V61: 0 | W61: 0 | X61: 0 | Y61: 0 | Z61: 0 | AA61: 0 | AB61: 0 | AC61: 0 | AD61: 0 | AE61: 0 | AF61: 0 | AG61: 0 | AH61: 0 | AI61: 0 | AJ61: 0 | AK61: 0 | AL61: 0 | AM61: 0 | AS61: 0 | AT61: 0 | AU61: 0 | AV61: 0 | AW61: 0 | AX61: 0 | AY61: 0 | AZ61: 0 | BA61: 0 | BB61: 0 | BC61: 0 | BD61: 0 | BE61: 0 | BF61: 0 | BG61: 0 | BH61: 0 | BI61: 0 | BJ61: 0 | BK61: 0 | BL61: 0 | BM61: 0 | BN61: 0
B62: 60 | E62: 60 | S62: 0 | T62: 0 | U62: 0 | V62: 0 | W62: 0 | X62: 0 | Y62: 0 | Z62: 0 | AA62: 0 | AB62: 0 | AC62: 0 | AD62: 0 | AE62: 0 | AF62: 0 | AG62: 0 | AH62: 0 | AI62: 0 | AJ62: 0 | AK62: 0 | AL62: 0 | AM62: 0 | AS62: 0 | AT62: 0 | AU62: 0 | AV62: 0 | AW62: 0 | AX62: 0 | AY62: 0 | AZ62: 0 | BA62: 0 | BB62: 0 | BC62: 0 | BD62: 0 | BE62: 0 | BF62: 0 | BG62: 0 | BH62: 0 | BI62: 0 | BJ62: 0 | BK62: 0 | BL62: 0 | BM62: 0 | BN62: 0
B63: 61 | E63: 61 | S63: 0 | T63: 0 | U63: 0 | V63: 0 | W63: 0 | X63: 0 | Y63: 0 | Z63: 0 | AA63: 0 | AB63: 0 | AC63: 0 | AD63: 0 | AE63: 0 | AF63: 0 | AG63: 0 | AH63: 0 | AI63: 0 | AJ63: 0 | AK63: 0 | AL63: 0 | AM63: 0 | AS63: 0 | AT63: 0 | AU63: 0 | AV63: 0 | AW63: 0 | AX63: 0 | AY63: 0 | AZ63: 0 | BA63: 0 | BB63: 0 | BC63: 0 | BD63: 0 | BE63: 0 | BF63: 0 | BG63: 0 | BH63: 0 | BI63: 0 | BJ63: 0 | BK63: 0 | BL63: 0 | BM63: 0 | BN63: 0
B64: 62 | E64: 62 | S64: 0 | T64: 0 | U64: 0 | V64: 0 | W64: 0 | X64: 0 | Y64: 0 | Z64: 0 | AA64: 0 | AB64: 0 | AC64: 0 | AD64: 0 | AE64: 0 | AF64: 0 | AG64: 0 | AH64: 0 | AI64: 0 | AJ64: 0 | AK64: 0 | AL64: 0 | AM64: 0 | AS64: 0 | AT64: 0 | AU64: 0 | AV64: 0 | AW64: 0 | AX64: 0 | AY64: 0 | AZ64: 0 | BA64: 0 | BB64: 0 | BC64: 0 | BD64: 0 | BE64: 0 | BF64: 0 | BG64: 0 | BH64: 0 | BI64: 0 | BJ64: 0 | BK64: 0 | BL64: 0 | BM64: 0 | BN64: 0
B65: 63 | E65: 63 | S65: 0 | T65: 0 | U65: 0 | V65: 0 | W65: 0 | X65: 0 | Y65: 0 | Z65: 0 | AA65: 0 | AB65: 0 | AC65: 0 | AD65: 0 | AE65: 0 | AF65: 0 | AG65: 0 | AH65: 0 | AI65: 0 | AJ65: 0 | AK65: 0 | AL65: 0 | AM65: 0 | AS65: 0 | AT65: 0 | AU65: 0 | AV65: 0 | AW65: 0 | AX65: 0 | AY65: 0 | AZ65: 0 | BA65: 0 | BB65: 0 | BC65: 0 | BD65: 0 | BE65: 0 | BF65: 0 | BG65: 0 | BH65: 0 | BI65: 0 | BJ65: 0 | BK65: 0 | BL65: 0 | BM65: 0 | BN65: 0
B66: 64 | E66: 64 | S66: 0 | T66: 0 | U66: 0 | V66: 0 | W66: 0 | X66: 0 | Y66: 0 | Z66: 0 | AA66: 0 | AB66: 0 | AC66: 0 | AD66: 0 | AE66: 0 | AF66: 0 | AG66: 0 | AH66: 0 | AI66: 0 | AJ66: 0 | AK66: 0 | AL66: 0 | AM66: 0 | AS66: 0 | AT66: 0 | AU66: 0 | AV66: 0 | AW66: 0 | AX66: 0 | AY66: 0 | AZ66: 0 | BA66: 0 | BB66: 0 | BC66: 0 | BD66: 0 | BE66: 0 | BF66: 0 | BG66: 0 | BH66: 0 | BI66: 0 | BJ66: 0 | BK66: 0 | BL66: 0 | BM66: 0 | BN66: 0
B67: 65 | E67: 65 | S67: 0 | T67: 0 | U67: 0 | V67: 0 | W67: 0 | X67: 0 | Y67: 0 | Z67: 0 | AA67: 0 | AB67: 0 | AC67: 0 | AD67: 0 | AE67: 0 | AF67: 0 | AG67: 0 | AH67: 0 | AI67: 0 | AJ67: 0 | AK67: 0 | AL67: 0 | AM67: 0 | AS67: 0 | AT67: 0 | AU67: 0 | AV67: 0 | AW67: 0 | AX67: 0 | AY67: 0 | AZ67: 0 | BA67: 0 | BB67: 0 | BC67: 0 | BD67: 0 | BE67: 0 | BF67: 0 | BG67: 0 | BH67: 0 | BI67: 0 | BJ67: 0 | BK67: 0 | BL67: 0 | BM67: 0 | BN67: 0
B68: 66 | E68: 66 | S68: 0 | T68: 0 | U68: 0 | V68: 0 | W68: 0 | X68: 0 | Y68: 0 | Z68: 0 | AA68: 0 | AB68: 0 | AC68: 0 | AD68: 0 | AE68: 0 | AF68: 0 | AG68: 0 | AH68: 0 | AI68: 0 | AJ68: 0 | AK68: 0 | AL68: 0 | AM68: 0 | AS68: 0 | AT68: 0 | AU68: 0 | AV68: 0 | AW68: 0 | AX68: 0 | AY68: 0 | AZ68: 0 | BA68: 0 | BB68: 0 | BC68: 0 | BD68: 0 | BE68: 0 | BF68: 0 | BG68: 0 | BH68: 0 | BI68: 0 | BJ68: 0 | BK68: 0 | BL68: 0 | BM68: 0 | BN68: 0
B69: 67 | E69: 67 | R69: =IF(ISBLANK(C69),"",IF(C69=C68,R68,IF(C69=C70,IF(C70=C71,IF(C71=C72,IF(C72=C73,IF(C73=C74,S69,(SUM(B69:B73)/5)),(SUM(B69:B72)/4)),(SUM(B69:B71)/3)),(SUM(B69:B70)/2)),B69))) ->  | S69: =IF(C74=C75,IF(C75=C76,IF(C76=C77,IF(C77=C78,IF(C78=C79,IF(C79=C80,IF(C80=C81,T69,(SUM(B69:B80)/12)),(SUM(B69:B79)/11)),(SUM(B69:B78)/10)),(SUM(B69:B77)/9)),(SUM(B69:B76)/8)),(SUM(B69:B75)/7)),(SUM(B69:B74)/6)) -> 0 | T69: =IF($C81=$C82,IF($C82=$C83,IF($C83=$C84,IF($C84=$C85,IF($C85=$C86,IF($C86=$C87,IF($C87=$C88,U69,(SUM($B69:$B87)/19)),(SUM($B69:$B86)/18)),(SUM($B69:$B85)/17)),(SUM($B69:$B84)/16)),(SUM($B69:$B83)/15)),(SUM($B69:$B82)/14)),(SUM($B69:$B81)/13)) -> 0 | U69: =IF($C88=$C89,IF($C89=$C90,IF($C90=$C91,IF($C91=$C92,IF($C92=$C93,IF($C93=$C94,IF($C94=$C95,V69,(SUM($B69:$B94)/26)),(SUM($B69:$B93)/25)),(SUM($B69:$B92)/24)),(SUM($B69:$B91)/23)),(SUM($B69:$B90)/22)),(SUM($B69:$B89)/21)),(SUM($B69:$B88)/20)) -> 0 | V69: =IF($C95=$C96,IF($C96=$C97,IF($C97=$C98,IF($C98=$C99,IF($C99=$C100,IF($C100=$C101,IF($C101=$C102,W69,(SUM($B69:$B101)/33)),(SUM($B69:$B100)/32)),(SUM($B69:$B99)/31)),(SUM($B69:$B98)/30)),(SUM($B69:$B97)/29)),(SUM($B69:$B96)/28)),(SUM($B69:$B95)/27)) -> 0 | W69: =IF($C102=$C103,IF($C103=$C104,IF($C104=$C105,IF($C105=$C106,IF($C106=$C107,IF($C107=$C108,IF($C108=$C109,X69,(SUM($B69:$B108)/40)),(SUM($B69:$B107)/39)),(SUM($B69:$B106)/38)),(SUM($B69:$B105)/37)),(SUM($B69:$B104)/36)),(SUM($B69:$B103)/35)),(SUM($B69:$B102)/34)) -> 0 | X69: =IF($C109=$C110,IF($C110=$C111,IF($C111=$C112,IF($C112=$C113,IF($C113=$C114,IF($C114=$C115,IF($C115=$C116,Y69,(SUM($B69:$B115)/47)),(SUM($B69:$B114)/46)),(SUM($B69:$B113)/45)),(SUM($B69:$B112)/44)),(SUM($B69:$B111)/43)),(SUM($B69:$B110)/42)),(SUM($B69:$B109)/41)) -> 0 | Y69: =IF($C116=$C117,IF($C117=$C118,IF($C118=$C119,IF($C119=$C120,IF($C120=$C121,IF($C121=$C122,IF($C122=$C123,Z69,(SUM($B69:$B122)/54)),(SUM($B69:$B121)/53)),(SUM($B69:$B120)/52)),(SUM($B69:$B119)/51)),(SUM($B69:$B118)/50)),(SUM($B69:$B117)/49)),(SUM($B69:$B116)/48)) -> 0 | Z69: =IF($C123=$C124,IF($C124=$C125,IF($C125=$C126,IF($C126=$C127,IF($C127=$C128,IF($C128=$C129,IF($C129=$C130,AA69,(SUM($B69:$B129)/61)),(SUM($B69:$B128)/60)),(SUM($B69:$B127)/59)),(SUM($B69:$B126)/58)),(SUM($B69:$B125)/57)),(SUM($B69:$B124)/56)),(SUM($B69:$B123)/55)) -> 0 | AA69: =IF($C130=$C131,IF($C131=$C132,IF($C132=$C133,IF($C133=$C134,IF($C134=$C135,IF($C135=$C136,IF($C136=$C137,AB69,(SUM($B69:$B136)/68)),(SUM($B69:$B135)/67)),(SUM($B69:$B134)/66)),(SUM($B69:$B133)/65)),(SUM($B69:$B132)/64)),(SUM($B69:$B131)/63)),(SUM($B69:$B130)/62)) -> 0 | AB69: =IF($C137=$C138,IF($C138=$C139,IF($C139=$C140,IF($C140=$C141,IF($C141=$C142,IF($C142=$C143,IF($C143=$C144,AC69,(SUM($B69:$B143)/75)),(SUM($B69:$B142)/74)),(SUM($B69:$B141)/73)),(SUM($B69:$B140)/72)),(SUM($B69:$B139)/71)),(SUM($B69:$B138)/70)),(SUM($B69:$B137)/69)) -> 0 | AC69: =IF($C144=$C145,IF($C145=$C146,IF($C146=$C147,IF($C147=$C148,IF($C148=$C149,IF($C149=$C150,IF($C150=$C151,AD69,(SUM($B69:$B150)/82)),(SUM($B69:$B149)/81)),(SUM($B69:$B148)/80)),(SUM($B69:$B147)/79)),(SUM($B69:$B146)/78)),(SUM($B69:$B145)/77)),(SUM($B69:$B144)/76)) -> 0 | AD69: =IF($C151=$C152,IF($C152=$C153,IF($C153=$C154,IF($C154=$C155,IF($C155=$C156,IF($C156=$C157,IF($C157=$C158,AE69,(SUM($B69:$B157)/89)),(SUM($B69:$B156)/88)),(SUM($B69:$B155)/87)),(SUM($B69:$B154)/86)),(SUM($B69:$B153)/85)),(SUM($B69:$B152)/84)),(SUM($B69:$B151)/83)) -> 0 | AE69: =IF($C158=$C159,IF($C159=$C160,IF($C160=$C161,IF($C161=$C162,IF($C162=$C163,IF($C163=$C164,IF($C164=$C165,AF69,(SUM($B69:$B164)/96)),(SUM($B69:$B163)/95)),(SUM($B69:$B162)/94)),(SUM($B69:$B161)/93)),(SUM($B69:$B160)/92)),(SUM($B69:$B159)/91)),(SUM($B69:$B158)/90)) -> 0 | AF69: =IF($C165=$C166,IF($C166=$C167,IF($C167=$C168,IF($C168=$C169,IF($C169=$C170,IF($C170=$C171,IF($C171=$C172,AG69,(SUM($B69:$B171)/103)),(SUM($B69:$B170)/102)),(SUM($B69:$B169)/101)),(SUM($B69:$B168)/100)),(SUM($B69:$B167)/99)),(SUM($B69:$B166)/98)),(SUM($B69:$B165)/97)) -> 0 | AG69: =IF($C172=$C173,IF($C173=$C174,IF($C174=$C175,IF($C175=$C176,IF($C176=$C177,IF($C177=$C178,IF($C178=$C179,AH69,(SUM($B69:$B178)/110)),(SUM($B69:$B177)/109)),(SUM($B69:$B176)/108)),(SUM($B69:$B175)/107)),(SUM($B69:$B174)/106)),(SUM($B69:$B173)/105)),(SUM($B69:$B172)/104)) -> 0 | AH69: =IF($C179=$C180,IF($C180=$C181,IF($C181=$C182,IF($C182=$C183,IF($C183=$C184,IF($C184=$C185,IF($C185=$C186,AI69,(SUM($B69:$B185)/117)),(SUM($B69:$B184)/116)),(SUM($B69:$B183)/115)),(SUM($B69:$B182)/114)),(SUM($B69:$B181)/113)),(SUM($B69:$B180)/112)),(SUM($B69:$B179)/111)) -> 0 | AI69: =IF($C186=$C187,IF($C187=$C188,IF($C188=$C189,IF($C189=$C190,IF($C190=$C191,IF($C191=$C192,IF($C192=$C193,AJ69,(SUM($B69:$B192)/124)),(SUM($B69:$B191)/123)),(SUM($B69:$B190)/122)),(SUM($B69:$B189)/121)),(SUM($B69:$B188)/120)),(SUM($B69:$B187)/119)),(SUM($B69:$B186)/118)) -> 0 | AJ69: =IF($C193=$C194,IF($C194=$C195,IF($C195=$C196,IF($C196=$C197,IF($C197=$C198,IF($C198=$C199,IF($C199=$C200,AK69,(SUM($B69:$B199)/131)),(SUM($B69:$B198)/130)),(SUM($B69:$B197)/129)),(SUM($B69:$B196)/128)),(SUM($B69:$B195)/127)),(SUM($B69:$B194)/126)),(SUM($B69:$B193)/125)) -> 0 | AK69: =IF($C200=$C201,IF($C201=$C202,IF($C202=$C203,IF($C203=$C204,IF($C204=$C205,IF($C205=$C206,IF($C206=$C207,AL69,(SUM($B69:$B206)/138)),(SUM($B69:$B205)/137)),(SUM($B69:$B204)/136)),(SUM($B69:$B203)/135)),(SUM($B69:$B202)/134)),(SUM($B69:$B201)/133)),(SUM($B69:$B200)/132)) -> 0 | AL69: =IF($C207=$C208,IF($C208=$C209,IF($C209=$C210,IF($C210=$C211,IF($C211=$C212,IF($C212=$C213,IF($C213=$C214,AM69,(SUM($B69:$B213)/145)),(SUM($B69:$B212)/144)),(SUM($B69:$B211)/143)),(SUM($B69:$B210)/142)),(SUM($B69:$B209)/141)),(SUM($B69:$B208)/140)),(SUM($B69:$B207)/139)) -> 0 | AM69: =IF($C214=$C215,IF($C215=$C216,IF($C216=$C217,IF($C217=$C218,IF($C218=$C219,IF($C219=$C220,IF($C220=$C221,AN69,(SUM($B69:$B220)/152)),(SUM($B69:$B219)/151)),(SUM($B69:$B218)/150)),(SUM($B69:$B217)/149)),(SUM($B69:$B216)/148)),(SUM($B69:$B215)/147)),(SUM($B69:$B214)/146)) -> 0 | AS69: =IF(D74=D75,IF(D75=D76,IF(D76=D77,IF(D77=D78,IF(D78=D79,IF(D79=D80,IF(D80=D81,AT69,(SUM(E69:E80)/12)),(SUM(E69:E79)/11)),(SUM(E69:E78)/10)),(SUM(E69:E77)/9)),(SUM(E69:E76)/8)),(SUM(E69:E75)/7)),(SUM(E69:E74)/6)) -> 0 | AT69: =IF($D81=$D82,IF($D82=$D83,IF($D83=$D84,IF($D84=$D85,IF($D85=$D86,IF($D86=$D87,IF($D87=$D88,AU69,(SUM($E69:$E87)/19)),(SUM($E69:$E86)/18)),(SUM($E69:$E85)/17)),(SUM($E69:$E84)/16)),(SUM($E69:$E83)/15)),(SUM($E69:$E82)/14)),(SUM($E69:$E81)/13)) -> 0 | AU69: =IF($D88=$D89,IF($D89=$D90,IF($D90=$D91,IF($D91=$D92,IF($D92=$D93,IF($D93=$D94,IF($D94=$D95,AV69,(SUM($E69:$E94)/26)),(SUM($E69:$E93)/25)),(SUM($E69:$E92)/24)),(SUM($E69:$E91)/23)),(SUM($E69:$E90)/22)),(SUM($E69:$E89)/21)),(SUM($E69:$E88)/20)) -> 0 | AV69: =IF($D95=$D96,IF($D96=$D97,IF($D97=$D98,IF($D98=$D99,IF($D99=$D100,IF($D100=$D101,IF($D101=$D102,AW69,(SUM($E69:$E101)/33)),(SUM($E69:$E100)/32)),(SUM($E69:$E99)/31)),(SUM($E69:$E98)/30)),(SUM($E69:$E97)/29)),(SUM($E69:$E96)/28)),(SUM($E69:$E95)/27)) -> 0 | AW69: =IF($D102=$D103,IF($D103=$D104,IF($D104=$D105,IF($D105=$D106,IF($D106=$D107,IF($D107=$D108,IF($D108=$D109,AX69,(SUM($E69:$E108)/40)),(SUM($E69:$E107)/39)),(SUM($E69:$E106)/38)),(SUM($E69:$E105)/37)),(SUM($E69:$E104)/36)),(SUM($E69:$E103)/35)),(SUM($E69:$E102)/34)) -> 0 | AX69: =IF($D109=$D110,IF($D110=$D111,IF($D111=$D112,IF($D112=$D113,IF($D113=$D114,IF($D114=$D115,IF($D115=$D116,AY69,(SUM($E69:$E115)/47)),(SUM($E69:$E114)/46)),(SUM($E69:$E113)/45)),(SUM($E69:$E112)/44)),(SUM($E69:$E111)/43)),(SUM($E69:$E110)/42)),(SUM($E69:$E109)/41)) -> 0 | AY69: =IF($D116=$D117,IF($D117=$D118,IF($D118=$D119,IF($D119=$D120,IF($D120=$D121,IF($D121=$D122,IF($D122=$D123,AZ69,(SUM($E69:$E122)/54)),(SUM($E69:$E121)/53)),(SUM($E69:$E120)/52)),(SUM($E69:$E119)/51)),(SUM($E69:$E118)/50)),(SUM($E69:$E117)/49)),(SUM($E69:$E116)/48)) -> 0 | AZ69: =IF($D123=$D124,IF($D124=$D125,IF($D125=$D126,IF($D126=$D127,IF($D127=$D128,IF($D128=$D129,IF($D129=$D130,BA69,(SUM($E69:$E129)/61)),(SUM($E69:$E128)/60)),(SUM($E69:$E127)/59)),(SUM($E69:$E126)/58)),(SUM($E69:$E125)/57)),(SUM($E69:$E124)/56)),(SUM($E69:$E123)/55)) -> 0 | BA69: =IF($D130=$D131,IF($D131=$D132,IF($D132=$D133,IF($D133=$D134,IF($D134=$D135,IF($D135=$D136,IF($D136=$D137,BB69,(SUM($E69:$E136)/68)),(SUM($E69:$E135)/67)),(SUM($E69:$E134)/66)),(SUM($E69:$E133)/65)),(SUM($E69:$E132)/64)),(SUM($E69:$E131)/63)),(SUM($E69:$E130)/62)) -> 0 | BB69: =IF($D137=$D138,IF($D138=$D139,IF($D139=$D140,IF($D140=$D141,IF($D141=$D142,IF($D142=$D143,IF($D143=$D144,BC69,(SUM($E69:$E143)/75)),(SUM($E69:$E142)/74)),(SUM($E69:$E141)/73)),(SUM($E69:$E140)/72)),(SUM($E69:$E139)/71)),(SUM($E69:$E138)/70)),(SUM($E69:$E137)/69)) -> 0 | BC69: =IF($D144=$D145,IF($D145=$D146,IF($D146=$D147,IF($D147=$D148,IF($D148=$D149,IF($D149=$D150,IF($D150=$D151,BD69,(SUM($E69:$E150)/82)),(SUM($E69:$E149)/81)),(SUM($E69:$E148)/80)),(SUM($E69:$E147)/79)),(SUM($E69:$E146)/78)),(SUM($E69:$E145)/77)),(SUM($E69:$E144)/76)) -> 0 | BD69: =IF($D151=$D152,IF($D152=$D153,IF($D153=$D154,IF($D154=$D155,IF($D155=$D156,IF($D156=$D157,IF($D157=$D158,BE69,(SUM($E69:$E157)/89)),(SUM($E69:$E156)/88)),(SUM($E69:$E155)/87)),(SUM($E69:$E154)/86)),(SUM($E69:$E153)/85)),(SUM($E69:$E152)/84)),(SUM($E69:$E151)/83)) -> 0 | BE69: =IF($D158=$D159,IF($D159=$D160,IF($D160=$D161,IF($D161=$D162,IF($D162=$D163,IF($D163=$D164,IF($D164=$D165,BF69,(SUM($E69:$E164)/96)),(SUM($E69:$E163)/95)),(SUM($E69:$E162)/94)),(SUM($E69:$E161)/93)),(SUM($E69:$E160)/92)),(SUM($E69:$E159)/91)),(SUM($E69:$E158)/90)) -> 0 | BF69: =IF($D165=$D166,IF($D166=$D167,IF($D167=$D168,IF($D168=$D169,IF($D169=$D170,IF($D170=$D171,IF($D171=$D172,BG69,(SUM($E69:$E171)/103)),(SUM($E69:$E170)/102)),(SUM($E69:$E169)/101)),(SUM($E69:$E168)/100)),(SUM($E69:$E167)/99)),(SUM($E69:$E166)/98)),(SUM($E69:$E165)/97)) -> 0 | BG69: =IF($D172=$D173,IF($D173=$D174,IF($D174=$D175,IF($D175=$D176,IF($D176=$D177,IF($D177=$D178,IF($D178=$D179,BH69,(SUM($E69:$E178)/110)),(SUM($E69:$E177)/109)),(SUM($E69:$E176)/108)),(SUM($E69:$E175)/107)),(SUM($E69:$E174)/106)),(SUM($E69:$E173)/105)),(SUM($E69:$E172)/104)) -> 0 | BH69: =IF($D179=$D180,IF($D180=$D181,IF($D181=$D182,IF($D182=$D183,IF($D183=$D184,IF($D184=$D185,IF($D185=$D186,BI69,(SUM($E69:$E185)/117)),(SUM($E69:$E184)/116)),(SUM($E69:$E183)/115)),(SUM($E69:$E182)/114)),(SUM($E69:$E181)/113)),(SUM($E69:$E180)/112)),(SUM($E69:$E179)/111)) -> 0 | BI69: =IF($D186=$D187,IF($D187=$D188,IF($D188=$D189,IF($D189=$D190,IF($D190=$D191,IF($D191=$D192,IF($D192=$D193,BJ69,(SUM($E69:$E192)/124)),(SUM($E69:$E191)/123)),(SUM($E69:$E190)/122)),(SUM($E69:$E189)/121)),(SUM($E69:$E188)/120)),(SUM($E69:$E187)/119)),(SUM($E69:$E186)/118)) -> 0 | BJ69: =IF($D193=$D194,IF($D194=$D195,IF($D195=$D196,IF($D196=$D197,IF($D197=$D198,IF($D198=$D199,IF($D199=$D200,BK69,(SUM($E69:$E199)/131)),(SUM($E69:$E198)/130)),(SUM($E69:$E197)/129)),(SUM($E69:$E196)/128)),(SUM($E69:$E195)/127)),(SUM($E69:$E194)/126)),(SUM($E69:$E193)/125)) -> 0 | BK69: =IF($D200=$D201,IF($D201=$D202,IF($D202=$D203,IF($D203=$D204,IF($D204=$D205,IF($D205=$D206,IF($D206=$D207,BL69,(SUM($E69:$E206)/138)),(SUM($E69:$E205)/137)),(SUM($E69:$E204)/136)),(SUM($E69:$E203)/135)),(SUM($E69:$E202)/134)),(SUM($E69:$E201)/133)),(SUM($E69:$E200)/132)) -> 0 | BL69: =IF($D207=$D208,IF($D208=$D209,IF($D209=$D210,IF($D210=$D211,IF($D211=$D212,IF($D212=$D213,IF($D213=$D214,BM69,(SUM($E69:$E213)/145)),(SUM($E69:$E212)/144)),(SUM($E69:$E211)/143)),(SUM($E69:$E210)/142)),(SUM($E69:$E209)/141)),(SUM($E69:$E208)/140)),(SUM($E69:$E207)/139)) -> 0 | BM69: =IF($D214=$D215,IF($D215=$D216,IF($D216=$D217,IF($D217=$D218,IF($D218=$D219,IF($D219=$D220,IF($D220=$D221,BN69,(SUM($E69:$E220)/152)),(SUM($E69:$E219)/151)),(SUM($E69:$E218)/150)),(SUM($E69:$E217)/149)),(SUM($E69:$E216)/148)),(SUM($E69:$E215)/147)),(SUM($E69:$E214)/146)) -> 0 | BN69: =IF($D221=$D222,IF($D222=$D223,IF($D223=$D224,IF($D224=$D225,IF($D225=$D226,IF($D226=$D227,IF($D227=$D228,BO69,(SUM($E69:$E227)/159)),(SUM($E69:$E226)/158)),(SUM($E69:$E225)/157)),(SUM($E69:$E224)/156)),(SUM($E69:$E223)/155)),(SUM($E69:$E222)/154)),(SUM($E69:$E221)/153)) -> 0
B70: 68 | E70: 68 | S70: 0 | T70: 0 | U70: 0 | V70: 0 | W70: 0 | X70: 0 | Y70: 0 | Z70: 0 | AA70: 0 | AB70: 0 | AC70: 0 | AD70: 0 | AE70: 0 | AF70: 0 | AG70: 0 | AH70: 0 | AI70: 0 | AJ70: 0 | AK70: 0 | AL70: 0 | AM70: 0 | AS70: 0 | AT70: 0 | AU70: 0 | AV70: 0 | AW70: 0 | AX70: 0 | AY70: 0 | AZ70: 0 | BA70: 0 | BB70: 0 | BC70: 0 | BD70: 0 | BE70: 0 | BF70: 0 | BG70: 0 | BH70: 0 | BI70: 0 | BJ70: 0 | BK70: 0 | BL70: 0 | BM70: 0 | BN70: 0
B71: 69 | E71: 69 | S71: 0 | T71: 0 | U71: 0 | V71: 0 | W71: 0 | X71: 0 | Y71: 0 | Z71: 0 | AA71: 0 | AB71: 0 | AC71: 0 | AD71: 0 | AE71: 0 | AF71: 0 | AG71: 0 | AH71: 0 | AI71: 0 | AJ71: 0 | AK71: 0 | AL71: 0 | AM71: 0 | AS71: 0 | AT71: 0 | AU71: 0 | AV71: 0 | AW71: 0 | AX71: 0 | AY71: 0 | AZ71: 0 | BA71: 0 | BB71: 0 | BC71: 0 | BD71: 0 | BE71: 0 | BF71: 0 | BG71: 0 | BH71: 0 | BI71: 0 | BJ71: 0 | BK71: 0 | BL71: 0 | BM71: 0 | BN71: 0
B72: 70 | E72: 70 | S72: 0 | T72: 0 | U72: 0 | V72: 0 | W72: 0 | X72: 0 | Y72: 0 | Z72: 0 | AA72: 0 | AB72: 0 | AC72: 0 | AD72: 0 | AE72: 0 | AF72: 0 | AG72: 0 | AH72: 0 | AI72: 0 | AJ72: 0 | AK72: 0 | AL72: 0 | AM72: 0 | AS72: 0 | AT72: 0 | AU72: 0 | AV72: 0 | AW72: 0 | AX72: 0 | AY72: 0 | AZ72: 0 | BA72: 0 | BB72: 0 | BC72: 0 | BD72: 0 | BE72: 0 | BF72: 0 | BG72: 0 | BH72: 0 | BI72: 0 | BJ72: 0 | BK72: 0 | BL72: 0 | BM72: 0 | BN72: 0
B73: 71 | E73: 71 | S73: 0 | T73: 0 | U73: 0 | V73: 0 | W73: 0 | X73: 0 | Y73: 0 | Z73: 0 | AA73: 0 | AB73: 0 | AC73: 0 | AD73: 0 | AE73: 0 | AF73: 0 | AG73: 0 | AH73: 0 | AI73: 0 | AJ73: 0 | AK73: 0 | AL73: 0 | AM73: 0 | AS73: 0 | AT73: 0 | AU73: 0 | AV73: 0 | AW73: 0 | AX73: 0 | AY73: 0 | AZ73: 0 | BA73: 0 | BB73: 0 | BC73: 0 | BD73: 0 | BE73: 0 | BF73: 0 | BG73: 0 | BH73: 0 | BI73: 0 | BJ73: 0 | BK73: 0 | BL73: 0 | BM73: 0 | BN73: 0
B74: 72 | E74: 72 | S74: 0 | T74: 0 | U74: 0 | V74: 0 | W74: 0 | X74: 0 | Y74: 0 | Z74: 0 | AA74: 0 | AB74: 0 | AC74: 0 | AD74: 0 | AE74: 0 | AF74: 0 | AG74: 0 | AH74: 0 | AI74: 0 | AJ74: 0 | AK74: 0 | AL74: 0 | AM74: 0 | AS74: 0 | AT74: 0 | AU74: 0 | AV74: 0 | AW74: 0 | AX74: 0 | AY74: 0 | AZ74: 0 | BA74: 0 | BB74: 0 | BC74: 0 | BD74: 0 | BE74: 0 | BF74: 0 | BG74: 0 | BH74: 0 | BI74: 0 | BJ74: 0 | BK74: 0 | BL74: 0 | BM74: 0 | BN74: 0
B75: 73 | E75: 73 | S75: 0 | T75: 0 | U75: 0 | V75: 0 | W75: 0 | X75: 0 | Y75: 0 | Z75: 0 | AA75: 0 | AB75: 0 | AC75: 0 | AD75: 0 | AE75: 0 | AF75: 0 | AG75: 0 | AH75: 0 | AI75: 0 | AJ75: 0 | AK75: 0 | AL75: 0 | AM75: 0 | AS75: 0 | AT75: 0 | AU75: 0 | AV75: 0 | AW75: 0 | AX75: 0 | AY75: 0 | AZ75: 0 | BA75: 0 | BB75: 0 | BC75: 0 | BD75: 0 | BE75: 0 | BF75: 0 | BG75: 0 | BH75: 0 | BI75: 0 | BJ75: 0 | BK75: 0 | BL75: 0 | BM75: 0 | BN75: 0
B76: 74 | E76: 74 | S76: 0 | T76: 0 | U76: 0 | V76: 0 | W76: 0 | X76: 0 | Y76: 0 | Z76: 0 | AA76: 0 | AB76: 0 | AC76: 0 | AD76: 0 | AE76: 0 | AF76: 0 | AG76: 0 | AH76: 0 | AI76: 0 | AJ76: 0 | AK76: 0 | AL76: 0 | AM76: 0 | AS76: 0 | AT76: 0 | AU76: 0 | AV76: 0 | AW76: 0 | AX76: 0 | AY76: 0 | AZ76: 0 | BA76: 0 | BB76: 0 | BC76: 0 | BD76: 0 | BE76: 0 | BF76: 0 | BG76: 0 | BH76: 0 | BI76: 0 | BJ76: 0 | BK76: 0 | BL76: 0 | BM76: 0 | BN76: 0
B77: 75 | E77: 75 | S77: 0 | T77: 0 | U77: 0 | V77: 0 | W77: 0 | X77: 0 | Y77: 0 | Z77: 0 | AA77: 0 | AB77: 0 | AC77: 0 | AD77: 0 | AE77: 0 | AF77: 0 | AG77: 0 | AH77: 0 | AI77: 0 | AJ77: 0 | AK77: 0 | AL77: 0 | AM77: 0 | AS77: 0 | AT77: 0 | AU77: 0 | AV77: 0 | AW77: 0 | AX77: 0 | AY77: 0 | AZ77: 0 | BA77: 0 | BB77: 0 | BC77: 0 | BD77: 0 | BE77: 0 | BF77: 0 | BG77: 0 | BH77: 0 | BI77: 0 | BJ77: 0 | BK77: 0 | BL77: 0 | BM77: 0 | BN77: 0
B78: 76 | E78: 76 | S78: 0 | T78: 0 | U78: 0 | V78: 0 | W78: 0 | X78: 0 | Y78: 0 | Z78: 0 | AA78: 0 | AB78: 0 | AC78: 0 | AD78: 0 | AE78: 0 | AF78: 0 | AG78: 0 | AH78: 0 | AI78: 0 | AJ78: 0 | AK78: 0 | AL78: 0 | AM78: 0 | AS78: 0 | AT78: 0 | AU78: 0 | AV78: 0 | AW78: 0 | AX78: 0 | AY78: 0 | AZ78: 0 | BA78: 0 | BB78: 0 | BC78: 0 | BD78: 0 | BE78: 0 | BF78: 0 | BG78: 0 | BH78: 0 | BI78: 0 | BJ78: 0 | BK78: 0 | BL78: 0 | BM78: 0 | BN78: 0
B79: 77 | E79: 77 | S79: 0 | T79: 0 | U79: 0 | V79: 0 | W79: 0 | X79: 0 | Y79: 0 | Z79: 0 | AA79: 0 | AB79: 0 | AC79: 0 | AD79: 0 | AE79: 0 | AF79: 0 | AG79: 0 | AH79: 0 | AI79: 0 | AJ79: 0 | AK79: 0 | AL79: 0 | AM79: 0 | AS79: 0 | AT79: 0 | AU79: 0 | AV79: 0 | AW79: 0 | AX79: 0 | AY79: 0 | AZ79: 0 | BA79: 0 | BB79: 0 | BC79: 0 | BD79: 0 | BE79: 0 | BF79: 0 | BG79: 0 | BH79: 0 | BI79: 0 | BJ79: 0 | BK79: 0 | BL79: 0 | BM79: 0 | BN79: 0
B80: 78 | E80: 78 | S80: 0 | T80: 0 | U80: 0 | V80: 0 | W80: 0 | X80: 0 | Y80: 0 | Z80: 0 | AA80: 0 | AB80: 0 | AC80: 0 | AD80: 0 | AE80: 0 | AF80: 0 | AG80: 0 | AH80: 0 | AI80: 0 | AJ80: 0 | AK80: 0 | AL80: 0 | AM80: 0 | AS80: 0 | AT80: 0 | AU80: 0 | AV80: 0 | AW80: 0 | AX80: 0 | AY80: 0 | AZ80: 0 | BA80: 0 | BB80: 0 | BC80: 0 | BD80: 0 | BE80: 0 | BF80: 0 | BG80: 0 | BH80: 0 | BI80: 0 | BJ80: 0 | BK80: 0 | BL80: 0 | BM80: 0 | BN80: 0
B81: 79 | E81: 79 | S81: 0 | T81: 0 | U81: 0 | V81: 0 | W81: 0 | X81: 0 | Y81: 0 | Z81: 0 | AA81: 0 | AB81: 0 | AC81: 0 | AD81: 0 | AE81: 0 | AF81: 0 | AG81: 0 | AH81: 0 | AI81: 0 | AJ81: 0 | AK81: 0 | AL81: 0 | AM81: 0 | AS81: 0 | AT81: 0 | AU81: 0 | AV81: 0 | AW81: 0 | AX81: 0 | AY81: 0 | AZ81: 0 | BA81: 0 | BB81: 0 | BC81: 0 | BD81: 0 | BE81: 0 | BF81: 0 | BG81: 0 | BH81: 0 | BI81: 0 | BJ81: 0 | BK81: 0 | BL81: 0 | BM81: 0 | BN81: 0
B82: 80 | E82: 80 | S82: 0 | T82: 0 | U82: 0 | V82: 0 | W82: 0 | X82: 0 | Y82: 0 | Z82: 0 | AA82: 0 | AB82: 0 | AC82: 0 | AD82: 0 | AE82: 0 | AF82: 0 | AG82: 0 | AH82: 0 | AI82: 0 | AJ82: 0 | AK82: 0 | AL82: 0 | AM82: 0 | AS82: 0 | AT82: 0 | AU82: 0 | AV82: 0 | AW82: 0 | AX82: 0 | AY82: 0 | AZ82: 0 | BA82: 0 | BB82: 0 | BC82: 0 | BD82: 0 | BE82: 0 | BF82: 0 | BG82: 0 | BH82: 0 | BI82: 0 | BJ82: 0 | BK82: 0 | BL82: 0 | BM82: 0 | BN82: 0
B83: 81 | E83: 81 | S83: 0 | T83: 0 | U83: 0 | V83: 0 | W83: 0 | X83: 0 | Y83: 0 | Z83: 0 | AA83: 0 | AB83: 0 | AC83: 0 | AD83: 0 | AE83: 0 | AF83: 0 | AG83: 0 | AH83: 0 | AI83: 0 | AJ83: 0 | AK83: 0 | AL83: 0 | AM83: 0 | AS83: 0 | AT83: 0 | AU83: 0 | AV83: 0 | AW83: 0 | AX83: 0 | AY83: 0 | AZ83: 0 | BA83: 0 | BB83: 0 | BC83: 0 | BD83: 0 | BE83: 0 | BF83: 0 | BG83: 0 | BH83: 0 | BI83: 0 | BJ83: 0 | BK83: 0 | BL83: 0 | BM83: 0 | BN83: 0
B84: 82 | E84: 82 | S84: 0 | T84: 0 | U84: 0 | V84: 0 | W84: 0 | X84: 0 | Y84: 0 | Z84: 0 | AA84: 0 | AB84: 0 | AC84: 0 | AD84: 0 | AE84: 0 | AF84: 0 | AG84: 0 | AH84: 0 | AI84: 0 | AJ84: 0 | AK84: 0 | AL84: 0 | AM84: 0 | AS84: 0 | AT84: 0 | AU84: 0 | AV84: 0 | AW84: 0 | AX84: 0 | AY84: 0 | AZ84: 0 | BA84: 0 | BB84: 0 | BC84: 0 | BD84: 0 | BE84: 0 | BF84: 0 | BG84: 0 | BH84: 0 | BI84: 0 | BJ84: 0 | BK84: 0 | BL84: 0 | BM84: 0 | BN84: 0
B85: 83 | E85: 83 | S85: 0 | T85: 0 | U85: 0 | V85: 0 | W85: 0 | X85: 0 | Y85: 0 | Z85: 0 | AA85: 0 | AB85: 0 | AC85: 0 | AD85: 0 | AE85: 0 | AF85: 0 | AG85: 0 | AH85: 0 | AI85: 0 | AJ85: 0 | AK85: 0 | AL85: 0 | AM85: 0 | AS85: 0 | AT85: 0 | AU85: 0 | AV85: 0 | AW85: 0 | AX85: 0 | AY85: 0 | AZ85: 0 | BA85: 0 | BB85: 0 | BC85: 0 | BD85: 0 | BE85: 0 | BF85: 0 | BG85: 0 | BH85: 0 | BI85: 0 | BJ85: 0 | BK85: 0 | BL85: 0 | BM85: 0 | BN85: 0
B86: 84 | E86: 84 | S86: 0 | T86: 0 | U86: 0 | V86: 0 | W86: 0 | X86: 0 | Y86: 0 | Z86: 0 | AA86: 0 | AB86: 0 | AC86: 0 | AD86: 0 | AE86: 0 | AF86: 0 | AG86: 0 | AH86: 0 | AI86: 0 | AJ86: 0 | AK86: 0 | AL86: 0 | AM86: 0 | AS86: 0 | AT86: 0 | AU86: 0 | AV86: 0 | AW86: 0 | AX86: 0 | AY86: 0 | AZ86: 0 | BA86: 0 | BB86: 0 | BC86: 0 | BD86: 0 | BE86: 0 | BF86: 0 | BG86: 0 | BH86: 0 | BI86: 0 | BJ86: 0 | BK86: 0 | BL86: 0 | BM86: 0 | BN86: 0
B87: 85 | E87: 85 | S87: 0 | T87: 0 | U87: 0 | V87: 0 | W87: 0 | X87: 0 | Y87: 0 | Z87: 0 | AA87: 0 | AB87: 0 | AC87: 0 | AD87: 0 | AE87: 0 | AF87: 0 | AG87: 0 | AH87: 0 | AI87: 0 | AJ87: 0 | AK87: 0 | AL87: 0 | AM87: 0 | AS87: 0 | AT87: 0 | AU87: 0 | AV87: 0 | AW87: 0 | AX87: 0 | AY87: 0 | AZ87: 0 | BA87: 0 | BB87: 0 | BC87: 0 | BD87: 0 | BE87: 0 | BF87: 0 | BG87: 0 | BH87: 0 | BI87: 0 | BJ87: 0 | BK87: 0 | BL87: 0 | BM87: 0 | BN87: 0
B88: 86 | E88: 86 | S88: 0 | T88: 0 | U88: 0 | V88: 0 | W88: 0 | X88: 0 | Y88: 0 | Z88: 0 | AA88: 0 | AB88: 0 | AC88: 0 | AD88: 0 | AE88: 0 | AF88: 0 | AG88: 0 | AH88: 0 | AI88: 0 | AJ88: 0 | AK88: 0 | AL88: 0 | AM88: 0 | AS88: 0 | AT88: 0 | AU88: 0 | AV88: 0 | AW88: 0 | AX88: 0 | AY88: 0 | AZ88: 0 | BA88: 0 | BB88: 0 | BC88: 0 | BD88: 0 | BE88: 0 | BF88: 0 | BG88: 0 | BH88: 0 | BI88: 0 | BJ88: 0 | BK88: 0 | BL88: 0 | BM88: 0 | BN88: 0
B89: 87 | E89: 87 | S89: 0 | T89: 0 | U89: 0 | V89: 0 | W89: 0 | X89: 0 | Y89: 0 | Z89: 0 | AA89: 0 | AB89: 0 | AC89: 0 | AD89: 0 | AE89: 0 | AF89: 0 | AG89: 0 | AH89: 0 | AI89: 0 | AJ89: 0 | AK89: 0 | AL89: 0 | AM89: 0 | AS89: 0 | AT89: 0 | AU89: 0 | AV89: 0 | AW89: 0 | AX89: 0 | AY89: 0 | AZ89: 0 | BA89: 0 | BB89: 0 | BC89: 0 | BD89: 0 | BE89: 0 | BF89: 0 | BG89: 0 | BH89: 0 | BI89: 0 | BJ89: 0 | BK89: 0 | BL89: 0 | BM89: 0 | BN89: 0
B90: 88 | E90: 88 | S90: 0 | T90: 0 | U90: 0 | V90: 0 | W90: 0 | X90: 0 | Y90: 0 | Z90: 0 | AA90: 0 | AB90: 0 | AC90: 0 | AD90: 0 | AE90: 0 | AF90: 0 | AG90: 0 | AH90: 0 | AI90: 0 | AJ90: 0 | AK90: 0 | AL90: 0 | AM90: 0 | AS90: 0 | AT90: 0 | AU90: 0 | AV90: 0 | AW90: 0 | AX90: 0 | AY90: 0 | AZ90: 0 | BA90: 0 | BB90: 0 | BC90: 0 | BD90: 0 | BE90: 0 | BF90: 0 | BG90: 0 | BH90: 0 | BI90: 0 | BJ90: 0 | BK90: 0 | BL90: 0 | BM90: 0 | BN90: 0
B91: 89 | E91: 89 | S91: 0 | T91: 0 | U91: 0 | V91: 0 | W91: 0 | X91: 0 | Y91: 0 | Z91: 0 | AA91: 0 | AB91: 0 | AC91: 0 | AD91: 0 | AE91: 0 | AF91: 0 | AG91: 0 | AH91: 0 | AI91: 0 | AJ91: 0 | AK91: 0 | AL91: 0 | AM91: 0 | AS91: 0 | AT91: 0 | AU91: 0 | AV91: 0 | AW91: 0 | AX91: 0 | AY91: 0 | AZ91: 0 | BA91: 0 | BB91: 0 | BC91: 0 | BD91: 0 | BE91: 0 | BF91: 0 | BG91: 0 | BH91: 0 | BI91: 0 | BJ91: 0 | BK91: 0 | BL91: 0 | BM91: 0 | BN91: 0
B92: 90 | E92: 90 | S92: 0 | T92: 0 | U92: 0 | V92: 0 | W92: 0 | X92: 0 | Y92: 0 | Z92: 0 | AA92: 0 | AB92: 0 | AC92: 0 | AD92: 0 | AE92: 0 | AF92: 0 | AG92: 0 | AH92: 0 | AI92: 0 | AJ92: 0 | AK92: 0 | AL92: 0 | AM92: 0 | AS92: 0 | AT92: 0 | AU92: 0 | AV92: 0 | AW92: 0 | AX92: 0 | AY92: 0 | AZ92: 0 | BA92: 0 | BB92: 0 | BC92: 0 | BD92: 0 | BE92: 0 | BF92: 0 | BG92: 0 | BH92: 0 | BI92: 0 | BJ92: 0 | BK92: 0 | BL92: 0 | BM92: 0 | BN92: 0
B93: 91 | E93: 91 | S93: 0 | T93: 0 | U93: 0 | V93: 0 | W93: 0 | X93: 0 | Y93: 0 | Z93: 0 | AA93: 0 | AB93: 0 | AC93: 0 | AD93: 0 | AE93: 0 | AF93: 0 | AG93: 0 | AH93: 0 | AI93: 0 | AJ93: 0 | AK93: 0 | AL93: 0 | AM93: 0 | AS93: 0 | AT93: 0 | AU93: 0 | AV93: 0 | AW93: 0 | AX93: 0 | AY93: 0 | AZ93: 0 | BA93: 0 | BB93: 0 | BC93: 0 | BD93: 0 | BE93: 0 | BF93: 0 | BG93: 0 | BH93: 0 | BI93: 0 | BJ93: 0 | BK93: 0 | BL93: 0 | BM93: 0 | BN93: 0
B94: 92 | E94: 92 | S94: 0 | T94: 0 | U94: 0 | V94: 0 | W94: 0 | X94: 0 | Y94: 0 | Z94: 0 | AA94: 0 | AB94: 0 | AC94: 0 | AD94: 0 | AE94: 0 | AF94: 0 | AG94: 0 | AH94: 0 | AI94: 0 | AJ94: 0 | AK94: 0 | AL94: 0 | AM94: 0 | AS94: 0 | AT94: 0 | AU94: 0 | AV94: 0 | AW94: 0 | AX94: 0 | AY94: 0 | AZ94: 0 | BA94: 0 | BB94: 0 | BC94: 0 | BD94: 0 | BE94: 0 | BF94: 0 | BG94: 0 | BH94: 0 | BI94: 0 | BJ94: 0 | BK94: 0 | BL94: 0 | BM94: 0 | BN94: 0
B95: 93 | E95: 93 | S95: 0 | T95: 0 | U95: 0 | V95: 0 | W95: 0 | X95: 0 | Y95: 0 | Z95: 0 | AA95: 0 | AB95: 0 | AC95: 0 | AD95: 0 | AE95: 0 | AF95: 0 | AG95: 0 | AH95: 0 | AI95: 0 | AJ95: 0 | AK95: 0 | AL95: 0 | AM95: 0 | AS95: 0 | AT95: 0 | AU95: 0 | AV95: 0 | AW95: 0 | AX95: 0 | AY95: 0 | AZ95: 0 | BA95: 0 | BB95: 0 | BC95: 0 | BD95: 0 | BE95: 0 | BF95: 0 | BG95: 0 | BH95: 0 | BI95: 0 | BJ95: 0 | BK95: 0 | BL95: 0 | BM95: 0 | BN95: 0
B96: 94 | E96: 94 | S96: 0 | T96: 0 | U96: 0 | V96: 0 | W96: 0 | X96: 0 | Y96: 0 | Z96: 0 | AA96: 0 | AB96: 0 | AC96: 0 | AD96: 0 | AE96: 0 | AF96: 0 | AG96: 0 | AH96: 0 | AI96: 0 | AJ96: 0 | AK96: 0 | AL96: 0 | AM96: 0 | AS96: 0 | AT96: 0 | AU96: 0 | AV96: 0 | AW96: 0 | AX96: 0 | AY96: 0 | AZ96: 0 | BA96: 0 | BB96: 0 | BC96: 0 | BD96: 0 | BE96: 0 | BF96: 0 | BG96: 0 | BH96: 0 | BI96: 0 | BJ96: 0 | BK96: 0 | BL96: 0 | BM96: 0 | BN96: 0
B97: 95 | E97: 95 | S97: 0 | T97: 0 | U97: 0 | V97: 0 | W97: 0 | X97: 0 | Y97: 0 | Z97: 0 | AA97: 0 | AB97: 0 | AC97: 0 | AD97: 0 | AE97: 0 | AF97: 0 | AG97: 0 | AH97: 0 | AI97: 0 | AJ97: 0 | AK97: 0 | AL97: 0 | AM97: 0 | AS97: 0 | AT97: 0 | AU97: 0 | AV97: 0 | AW97: 0 | AX97: 0 | AY97: 0 | AZ97: 0 | BA97: 0 | BB97: 0 | BC97: 0 | BD97: 0 | BE97: 0 | BF97: 0 | BG97: 0 | BH97: 0 | BI97: 0 | BJ97: 0 | BK97: 0 | BL97: 0 | BM97: 0 | BN97: 0
B98: 96 | E98: 96 | S98: 0 | T98: 0 | U98: 0 | V98: 0 | W98: 0 | X98: 0 | Y98: 0 | Z98: 0 | AA98: 0 | AB98: 0 | AC98: 0 | AD98: 0 | AE98: 0 | AF98: 0 | AG98: 0 | AH98: 0 | AI98: 0 | AJ98: 0 | AK98: 0 | AL98: 0 | AM98: 0 | AS98: 0 | AT98: 0 | AU98: 0 | AV98: 0 | AW98: 0 | AX98: 0 | AY98: 0 | AZ98: 0 | BA98: 0 | BB98: 0 | BC98: 0 | BD98: 0 | BE98: 0 | BF98: 0 | BG98: 0 | BH98: 0 | BI98: 0 | BJ98: 0 | BK98: 0 | BL98: 0 | BM98: 0 | BN98: 0
B99: 97 | E99: 97 | S99: 0 | T99: 0 | U99: 0 | V99: 0 | W99: 0 | X99: 0 | Y99: 0 | Z99: 0 | AA99: 0 | AB99: 0 | AC99: 0 | AD99: 0 | AE99: 0 | AF99: 0 | AG99: 0 | AH99: 0 | AI99: 0 | AJ99: 0 | AK99: 0 | AL99: 0 | AM99: 0 | AS99: 0 | AT99: 0 | AU99: 0 | AV99: 0 | AW99: 0 | AX99: 0 | AY99: 0 | AZ99: 0 | BA99: 0 | BB99: 0 | BC99: 0 | BD99: 0 | BE99: 0 | BF99: 0 | BG99: 0 | BH99: 0 | BI99: 0 | BJ99: 0 | BK99: 0 | BL99: 0 | BM99: 0 | BN99: 0
B100: 98 | E100: 98 | S100: 0 | T100: 0 | U100: 0 | V100: 0 | W100: 0 | X100: 0 | Y100: 0 | Z100: 0 | AA100: 0 | AB100: 0 | AC100: 0 | AD100: 0 | AE100: 0 | AF100: 0 | AG100: 0 | AH100: 0 | AI100: 0 | AJ100: 0 | AK100: 0 | AL100: 0 | AM100: 0 | AS100: 0 | AT100: 0 | AU100: 0 | AV100: 0 | AW100: 0 | AX100: 0 | AY100: 0 | AZ100: 0 | BA100: 0 | BB100: 0 | BC100: 0 | BD100: 0 | BE100: 0 | BF100: 0 | BG100: 0 | BH100: 0 | BI100: 0 | BJ100: 0 | BK100: 0 | BL100: 0 | BM100: 0 | BN100: 0
B101: 99 | E101: 99 | S101: 0 | T101: 0 | U101: 0 | V101: 0 | W101: 0 | X101: 0 | Y101: 0 | Z101: 0 | AA101: 0 | AB101: 0 | AC101: 0 | AD101: 0 | AE101: 0 | AF101: 0 | AG101: 0 | AH101: 0 | AI101: 0 | AJ101: 0 | AK101: 0 | AL101: 0 | AM101: 0 | AS101: 0 | AT101: 0 | AU101: 0 | AV101: 0 | AW101: 0 | AX101: 0 | AY101: 0 | AZ101: 0 | BA101: 0 | BB101: 0 | BC101: 0 | BD101: 0 | BE101: 0 | BF101: 0 | BG101: 0 | BH101: 0 | BI101: 0 | BJ101: 0 | BK101: 0 | BL101: 0 | BM101: 0 | BN101: 0
B102: 100 | E102: 100 | S102: 0 | T102: 0 | U102: 0 | V102: 0 | W102: 0 | X102: 0 | Y102: 0 | Z102: 0 | AA102: 0 | AB102: 0 | AC102: 0 | AD102: 0 | AE102: 0 | AF102: 0 | AG102: 0 | AH102: 0 | AI102: 0 | AJ102: 0 | AK102: 0 | AL102: 0 | AM102: 0 | AS102: 0 | AT102: 0 | AU102: 0 | AV102: 0 | AW102: 0 | AX102: 0 | AY102: 0 | AZ102: 0 | BA102: 0 | BB102: 0 | BC102: 0 | BD102: 0 | BE102: 0 | BF102: 0 | BG102: 0 | BH102: 0 | BI102: 0 | BJ102: 0 | BK102: 0 | BL102: 0 | BM102: 0 | BN102: 0
B103: 101 | E103: 101 | S103: 0 | T103: 0 | U103: 0 | V103: 0 | W103: 0 | X103: 0 | Y103: 0 | Z103: 0 | AA103: 0 | AB103: 0 | AC103: 0 | AD103: 0 | AE103: 0 | AF103: 0 | AG103: 0 | AH103: 0 | AI103: 0 | AJ103: 0 | AK103: 0 | AL103: 0 | AM103: 0 | AS103: 0 | AT103: 0 | AU103: 0 | AV103: 0 | AW103: 0 | AX103: 0 | AY103: 0 | AZ103: 0 | BA103: 0 | BB103: 0 | BC103: 0 | BD103: 0 | BE103: 0 | BF103: 0 | BG103: 0 | BH103: 0 | BI103: 0 | BJ103: 0 | BK103: 0 | BL103: 0 | BM103: 0 | BN103: 0
B104: 102 | E104: 102 | F104: =IF(ISBLANK(D104),"",IF(D104=D103,F103,IF(D104=D105,IF(D105=D106,IF(D106=D107,IF(D107=D108,IF(D108=D109,AS104,(SUM(E104:E108)/5)),(SUM(E104:E107)/4)),(SUM(E104:E106)/3)),(SUM(E104:E105)/2)),E104))) ->  | G104: =IF(ISBLANK(C104),"",ABS(A104-F104)) ->  | H104: =IF(ISBLANK(C104),"",G104^2) ->  | S104: 0 | T104: 0 | U104: 0 | V104: 0 | W104: 0 | X104: 0 | Y104: 0 | Z104: 0 | AA104: 0 | AB104: 0 | AC104: 0 | AD104: 0 | AE104: 0 | AF104: 0 | AG104: 0 | AH104: 0 | AI104: 0 | AJ104: 0 | AK104: 0 | AL104: 0 | AM104: 0 | AS104: 0 | AT104: 0 | AU104: 0 | AV104: 0 | AW104: 0 | AX104: 0 | AY104: 0 | AZ104: 0 | BA104: 0 | BB104: 0 | BC104: 0 | BD104: 0 | BE104: 0 | BF104: 0 | BG104: 0 | BH104: 0 | BI104: 0 | BJ104: 0 | BK104: 0 | BL104: 0 | BM104: 0 | BN104: 0
B105: 103 | E105: 103 | S105: 0 | T105: 0 | U105: 0 | V105: 0 | W105: 0 | X105: 0 | Y105: 0 | Z105: 0 | AA105: 0 | AB105: 0 | AC105: 0 | AD105: 0 | AE105: 0 | AF105: 0 | AG105: 0 | AH105: 0 | AI105: 0 | AJ105: 0 | AK105: 0 | AL105: 0 | AM105: 0 | AS105: 0 | AT105: 0 | AU105: 0 | AV105: 0 | AW105: 0 | AX105: 0 | AY105: 0 | AZ105: 0 | BA105: 0 | BB105: 0 | BC105: 0 | BD105: 0 | BE105: 0 | BF105: 0 | BG105: 0 | BH105: 0 | BI105: 0 | BJ105: 0 | BK105: 0 | BL105: 0 | BM105: 0 | BN105: 0
B106: 104 | E106: 104 | S106: 0 | T106: 0 | U106: 0 | V106: 0 | W106: 0 | X106: 0 | Y106: 0 | Z106: 0 | AA106: 0 | AB106: 0 | AC106: 0 | AD106: 0 | AE106: 0 | AF106: 0 | AG106: 0 | AH106: 0 | AI106: 0 | AJ106: 0 | AK106: 0 | AL106: 0 | AM106: 0 | AS106: 0 | AT106: 0 | AU106: 0 | AV106: 0 | AW106: 0 | AX106: 0 | AY106: 0 | AZ106: 0 | BA106: 0 | BB106: 0 | BC106: 0 | BD106: 0 | BE106: 0 | BF106: 0 | BG106: 0 | BH106: 0 | BI106: 0 | BJ106: 0 | BK106: 0 | BL106: 0 | BM106: 0 | BN106: 0
B107: 105 | E107: 105 | S107: 0 | T107: 0 | U107: 0 | V107: 0 | W107: 0 | X107: 0 | Y107: 0 | Z107: 0 | AA107: 0 | AB107: 0 | AC107: 0 | AD107: 0 | AE107: 0 | AF107: 0 | AG107: 0 | AH107: 0 | AI107: 0 | AJ107: 0 | AK107: 0 | AL107: 0 | AM107: 0 | AS107: 0 | AT107: 0 | AU107: 0 | AV107: 0 | AW107: 0 | AX107: 0 | AY107: 0 | AZ107: 0 | BA107: 0 | BB107: 0 | BC107: 0 | BD107: 0 | BE107: 0 | BF107: 0 | BG107: 0 | BH107: 0 | BI107: 0 | BJ107: 0 | BK107: 0 | BL107: 0 | BM107: 0 | BN107: 0
B108: 106 | E108: 106 | S108: 0 | T108: 0 | U108: 0 | V108: 0 | W108: 0 | X108: 0 | Y108: 0 | Z108: 0 | AA108: 0 | AB108: 0 | AC108: 0 | AD108: 0 | AE108: 0 | AF108: 0 | AG108: 0 | AH108: 0 | AI108: 0 | AJ108: 0 | AK108: 0 | AL108: 0 | AM108: 0 | AS108: 0 | AT108: 0 | AU108: 0 | AV108: 0 | AW108: 0 | AX108: 0 | AY108: 0 | AZ108: 0 | BA108: 0 | BB108: 0 | BC108: 0 | BD108: 0 | BE108: 0 | BF108: 0 | BG108: 0 | BH108: 0 | BI108: 0 | BJ108: 0 | BK108: 0 | BL108: 0 | BM108: 0 | BN108: 0
B109: 107 | E109: 107 | S109: 0 | T109: 0 | U109: 0 | V109: 0 | W109: 0 | X109: 0 | Y109: 0 | Z109: 0 | AA109: 0 | AB109: 0 | AC109: 0 | AD109: 0 | AE109: 0 | AF109: 0 | AG109: 0 | AH109: 0 | AI109: 0 | AJ109: 0 | AK109: 0 | AL109: 0 | AM109: 0 | AS109: 0 | AT109: 0 | AU109: 0 | AV109: 0 | AW109: 0 | AX109: 0 | AY109: 0 | AZ109: 0 | BA109: 0 | BB109: 0 | BC109: 0 | BD109: 0 | BE109: 0 | BF109: 0 | BG109: 0 | BH109: 0 | BI109: 0 | BJ109: 0 | BK109: 0 | BL109: 0 | BM109: 0 | BN109: 0
B110: 108 | E110: 108 | S110: 0 | T110: 0 | U110: 0 | V110: 0 | W110: 0 | X110: 0 | Y110: 0 | Z110: 0 | AA110: 0 | AB110: 0 | AC110: 0 | AD110: 0 | AE110: 0 | AF110: 0 | AG110: 0 | AH110: 0 | AI110: 0 | AJ110: 0 | AK110: 0 | AL110: 0 | AM110: 0 | AS110: 0 | AT110: 0 | AU110: 0 | AV110: 0 | AW110: 0 | AX110: 0 | AY110: 0 | AZ110: 0 | BA110: 0 | BB110: 0 | BC110: 0 | BD110: 0 | BE110: 0 | BF110: 0 | BG110: 0 | BH110: 0 | BI110: 0 | BJ110: 0 | BK110: 0 | BL110: 0 | BM110: 0 | BN110: 0
B111: 109 | E111: 109 | S111: 0 | T111: 0 | U111: 0 | V111: 0 | W111: 0 | X111: 0 | Y111: 0 | Z111: 0 | AA111: 0 | AB111: 0 | AC111: 0 | AD111: 0 | AE111: 0 | AF111: 0 | AG111: 0 | AH111: 0 | AI111: 0 | AJ111: 0 | AK111: 0 | AL111: 0 | AM111: 0 | AS111: 0 | AT111: 0 | AU111: 0 | AV111: 0 | AW111: 0 | AX111: 0 | AY111: 0 | AZ111: 0 | BA111: 0 | BB111: 0 | BC111: 0 | BD111: 0 | BE111: 0 | BF111: 0 | BG111: 0 | BH111: 0 | BI111: 0 | BJ111: 0 | BK111: 0 | BL111: 0 | BM111: 0 | BN111: 0
B112: 110 | E112: 110 | S112: 0 | T112: 0 | U112: 0 | V112: 0 | W112: 0 | X112: 0 | Y112: 0 | Z112: 0 | AA112: 0 | AB112: 0 | AC112: 0 | AD112: 0 | AE112: 0 | AF112: 0 | AG112: 0 | AH112: 0 | AI112: 0 | AJ112: 0 | AK112: 0 | AL112: 0 | AM112: 0 | AS112: 0 | AT112: 0 | AU112: 0 | AV112: 0 | AW112: 0 | AX112: 0 | AY112: 0 | AZ112: 0 | BA112: 0 | BB112: 0 | BC112: 0 | BD112: 0 | BE112: 0 | BF112: 0 | BG112: 0 | BH112: 0 | BI112: 0 | BJ112: 0 | BK112: 0 | BL112: 0 | BM112: 0 | BN112: 0
B113: 111 | E113: 111 | S113: 0 | T113: 0 | U113: 0 | V113: 0 | W113: 0 | X113: 0 | Y113: 0 | Z113: 0 | AA113: 0 | AB113: 0 | AC113: 0 | AD113: 0 | AE113: 0 | AF113: 0 | AG113: 0 | AH113: 0 | AI113: 0 | AJ113: 0 | AK113: 0 | AL113: 0 | AM113: 0 | AS113: 0 | AT113: 0 | AU113: 0 | AV113: 0 | AW113: 0 | AX113: 0 | AY113: 0 | AZ113: 0 | BA113: 0 | BB113: 0 | BC113: 0 | BD113: 0 | BE113: 0 | BF113: 0 | BG113: 0 | BH113: 0 | BI113: 0 | BJ113: 0 | BK113: 0 | BL113: 0 | BM113: 0 | BN113: 0
B114: 112 | E114: 112 | S114: 0 | T114: 0 | U114: 0 | V114: 0 | W114: 0 | X114: 0 | Y114: 0 | Z114: 0 | AA114: 0 | AB114: 0 | AC114: 0 | AD114: 0 | AE114: 0 | AF114: 0 | AG114: 0 | AH114: 0 | AI114: 0 | AJ114: 0 | AK114: 0 | AL114: 0 | AM114: 0 | AS114: 0 | AT114: 0 | AU114: 0 | AV114: 0 | AW114: 0 | AX114: 0 | AY114: 0 | AZ114: 0 | BA114: 0 | BB114: 0 | BC114: 0 | BD114: 0 | BE114: 0 | BF114: 0 | BG114: 0 | BH114: 0 | BI114: 0 | BJ114: 0 | BK114: 0 | BL114: 0 | BM114: 0 | BN114: 0
B115: 113 | E115: 113 | S115: 0 | T115: 0 | U115: 0 | V115: 0 | W115: 0 | X115: 0 | Y115: 0 | Z115: 0 | AA115: 0 | AB115: 0 | AC115: 0 | AD115: 0 | AE115: 0 | AF115: 0 | AG115: 0 | AH115: 0 | AI115: 0 | AJ115: 0 | AK115: 0 | AL115: 0 | AM115: 0 | AS115: 0 | AT115: 0 | AU115: 0 | AV115: 0 | AW115: 0 | AX115: 0 | AY115: 0 | AZ115: 0 | BA115: 0 | BB115: 0 | BC115: 0 | BD115: 0 | BE115: 0 | BF115: 0 | BG115: 0 | BH115: 0 | BI115: 0 | BJ115: 0 | BK115: 0 | BL115: 0 | BM115: 0 | BN115: 0
B116: 114 | E116: 114 | S116: 0 | T116: 0 | U116: 0 | V116: 0 | W116: 0 | X116: 0 | Y116: 0 | Z116: 0 | AA116: 0 | AB116: 0 | AC116: 0 | AD116: 0 | AE116: 0 | AF116: 0 | AG116: 0 | AH116: 0 | AI116: 0 | AJ116: 0 | AK116: 0 | AL116: 0 | AM116: 0 | AS116: 0 | AT116: 0 | AU116: 0 | AV116: 0 | AW116: 0 | AX116: 0 | AY116: 0 | AZ116: 0 | BA116: 0 | BB116: 0 | BC116: 0 | BD116: 0 | BE116: 0 | BF116: 0 | BG116: 0 | BH116: 0 | BI116: 0 | BJ116: 0 | BK116: 0 | BL116: 0 | BM116: 0 | BN116: 0
B117: 115 | E117: 115 | S117: 0 | T117: 0 | U117: 0 | V117: 0 | W117: 0 | X117: 0 | Y117: 0 | Z117: 0 | AA117: 0 | AB117: 0 | AC117: 0 | AD117: 0 | AE117: 0 | AF117: 0 | AG117: 0 | AH117: 0 | AI117: 0 | AJ117: 0 | AK117: 0 | AL117: 0 | AM117: 0 | AS117: 0 | AT117: 0 | AU117: 0 | AV117: 0 | AW117: 0 | AX117: 0 | AY117: 0 | AZ117: 0 | BA117: 0 | BB117: 0 | BC117: 0 | BD117: 0 | BE117: 0 | BF117: 0 | BG117: 0 | BH117: 0 | BI117: 0 | BJ117: 0 | BK117: 0 | BL117: 0 | BM117: 0 | BN117: 0
B118: 116 | E118: 116 | S118: 0 | T118: 0 | U118: 0 | V118: 0 | W118: 0 | X118: 0 | Y118: 0 | Z118: 0 | AA118: 0 | AB118: 0 | AC118: 0 | AD118: 0 | AE118: 0 | AF118: 0 | AG118: 0 | AH118: 0 | AI118: 0 | AJ118: 0 | AK118: 0 | AL118: 0 | AM118: 0 | AS118: 0 | AT118: 0 | AU118: 0 | AV118: 0 | AW118: 0 | AX118: 0 | AY118: 0 | AZ118: 0 | BA118: 0 | BB118: 0 | BC118: 0 | BD118: 0 | BE118: 0 | BF118: 0 | BG118: 0 | BH118: 0 | BI118: 0 | BJ118: 0 | BK118: 0 | BL118: 0 | BM118: 0 | BN118: 0
B119: 117 | E119: 117 | S119: 0 | T119: 0 | U119: 0 | V119: 0 | W119: 0 | X119: 0 | Y119: 0 | Z119: 0 | AA119: 0 | AB119: 0 | AC119: 0 | AD119: 0 | AE119: 0 | AF119: 0 | AG119: 0 | AH119: 0 | AI119: 0 | AJ119: 0 | AK119: 0 | AL119: 0 | AM119: 0 | AS119: 0 | AT119: 0 | AU119: 0 | AV119: 0 | AW119: 0 | AX119: 0 | AY119: 0 | AZ119: 0 | BA119: 0 | BB119: 0 | BC119: 0 | BD119: 0 | BE119: 0 | BF119: 0 | BG119: 0 | BH119: 0 | BI119: 0 | BJ119: 0 | BK119: 0 | BL119: 0 | BM119: 0 | BN119: 0
B120: 118 | E120: 118 | S120: 0 | T120: 0 | U120: 0 | V120: 0 | W120: 0 | X120: 0 | Y120: 0 | Z120: 0 | AA120: 0 | AB120: 0 | AC120: 0 | AD120: 0 | AE120: 0 | AF120: 0 | AG120: 0 | AH120: 0 | AI120: 0 | AJ120: 0 | AK120: 0 | AL120: 0 | AM120: 0 | AS120: 0 | AT120: 0 | AU120: 0 | AV120: 0 | AW120: 0 | AX120: 0 | AY120: 0 | AZ120: 0 | BA120: 0 | BB120: 0 | BC120: 0 | BD120: 0 | BE120: 0 | BF120: 0 | BG120: 0 | BH120: 0 | BI120: 0 | BJ120: 0 | BK120: 0 | BL120: 0 | BM120: 0 | BN120: 0
B121: 119 | E121: 119 | S121: 0 | T121: 0 | U121: 0 | V121: 0 | W121: 0 | X121: 0 | Y121: 0 | Z121: 0 | AA121: 0 | AB121: 0 | AC121: 0 | AD121: 0 | AE121: 0 | AF121: 0 | AG121: 0 | AH121: 0 | AI121: 0 | AJ121: 0 | AK121: 0 | AL121: 0 | AM121: 0 | AS121: 0 | AT121: 0 | AU121: 0 | AV121: 0 | AW121: 0 | AX121: 0 | AY121: 0 | AZ121: 0 | BA121: 0 | BB121: 0 | BC121: 0 | BD121: 0 | BE121: 0 | BF121: 0 | BG121: 0 | BH121: 0 | BI121: 0 | BJ121: 0 | BK121: 0 | BL121: 0 | BM121: 0 | BN121: 0
B122: 120 | E122: 120 | S122: 0 | T122: 0 | U122: 0 | V122: 0 | W122: 0 | X122: 0 | Y122: 0 | Z122: 0 | AA122: 0 | AB122: 0 | AC122: 0 | AD122: 0 | AE122: 0 | AF122: 0 | AG122: 0 | AH122: 0 | AI122: 0 | AJ122: 0 | AK122: 0 | AL122: 0 | AM122: 0 | AS122: 0 | AT122: 0 | AU122: 0 | AV122: 0 | AW122: 0 | AX122: 0 | AY122: 0 | AZ122: 0 | BA122: 0 | BB122: 0 | BC122: 0 | BD122: 0 | BE122: 0 | BF122: 0 | BG122: 0 | BH122: 0 | BI122: 0 | BJ122: 0 | BK122: 0 | BL122: 0 | BM122: 0 | BN122: 0
B123: 121 | E123: 121 | S123: 0 | T123: 0 | U123: 0 | V123: 0 | W123: 0 | X123: 0 | Y123: 0 | Z123: 0 | AA123: 0 | AB123: 0 | AC123: 0 | AD123: 0 | AE123: 0 | AF123: 0 | AG123: 0 | AH123: 0 | AI123: 0 | AJ123: 0 | AK123: 0 | AL123: 0 | AM123: 0 | AS123: 0 | AT123: 0 | AU123: 0 | AV123: 0 | AW123: 0 | AX123: 0 | AY123: 0 | AZ123: 0 | BA123: 0 | BB123: 0 | BC123: 0 | BD123: 0 | BE123: 0 | BF123: 0 | BG123: 0 | BH123: 0 | BI123: 0 | BJ123: 0 | BK123: 0 | BL123: 0 | BM123: 0 | BN123: 0
B124: 122 | E124: 122 | S124: 0 | T124: 0 | U124: 0 | V124: 0 | W124: 0 | X124: 0 | Y124: 0 | Z124: 0 | AA124: 0 | AB124: 0 | AC124: 0 | AD124: 0 | AE124: 0 | AF124: 0 | AG124: 0 | AH124: 0 | AI124: 0 | AJ124: 0 | AK124: 0 | AL124: 0 | AM124: 0 | AS124: 0 | AT124: 0 | AU124: 0 | AV124: 0 | AW124: 0 | AX124: 0 | AY124: 0 | AZ124: 0 | BA124: 0 | BB124: 0 | BC124: 0 | BD124: 0 | BE124: 0 | BF124: 0 | BG124: 0 | BH124: 0 | BI124: 0 | BJ124: 0 | BK124: 0 | BL124: 0 | BM124: 0 | BN124: 0
B125: 123 | E125: 123 | S125: 0 | T125: 0 | U125: 0 | V125: 0 | W125: 0 | X125: 0 | Y125: 0 | Z125: 0 | AA125: 0 | AB125: 0 | AC125: 0 | AD125: 0 | AE125: 0 | AF125: 0 | AG125: 0 | AH125: 0 | AI125: 0 | AJ125: 0 | AK125: 0 | AL125: 0 | AM125: 0 | AS125: 0 | AT125: 0 | AU125: 0 | AV125: 0 | AW125: 0 | AX125: 0 | AY125: 0 | AZ125: 0 | BA125: 0 | BB125: 0 | BC125: 0 | BD125: 0 | BE125: 0 | BF125: 0 | BG125: 0 | BH125: 0 | BI125: 0 | BJ125: 0 | BK125: 0 | BL125: 0 | BM125: 0 | BN125: 0
B126: 124 | E126: 124 | S126: 0 | T126: 0 | U126: 0 | V126: 0 | W126: 0 | X126: 0 | Y126: 0 | Z126: 0 | AA126: 0 | AB126: 0 | AC126: 0 | AD126: 0 | AE126: 0 | AF126: 0 | AG126: 0 | AH126: 0 | AI126: 0 | AJ126: 0 | AK126: 0 | AL126: 0 | AM126: 0 | AS126: 0 | AT126: 0 | AU126: 0 | AV126: 0 | AW126: 0 | AX126: 0 | AY126: 0 | AZ126: 0 | BA126: 0 | BB126: 0 | BC126: 0 | BD126: 0 | BE126: 0 | BF126: 0 | BG126: 0 | BH126: 0 | BI126: 0 | BJ126: 0 | BK126: 0 | BL126: 0 | BM126: 0 | BN126: 0
B127: 125 | E127: 125 | S127: 0 | T127: 0 | U127: 0 | V127: 0 | W127: 0 | X127: 0 | Y127: 0 | Z127: 0 | AA127: 0 | AB127: 0 | AC127: 0 | AD127: 0 | AE127: 0 | AF127: 0 | AG127: 0 | AH127: 0 | AI127: 0 | AJ127: 0 | AK127: 0 | AL127: 0 | AM127: 0 | AS127: 0 | AT127: 0 | AU127: 0 | AV127: 0 | AW127: 0 | AX127: 0 | AY127: 0 | AZ127: 0 | BA127: 0 | BB127: 0 | BC127: 0 | BD127: 0 | BE127: 0 | BF127: 0 | BG127: 0 | BH127: 0 | BI127: 0 | BJ127: 0 | BK127: 0 | BL127: 0 | BM127: 0 | BN127: 0
B128: 126 | E128: 126 | S128: 0 | T128: 0 | U128: 0 | V128: 0 | W128: 0 | X128: 0 | Y128: 0 | Z128: 0 | AA128: 0 | AB128: 0 | AC128: 0 | AD128: 0 | AE128: 0 | AF128: 0 | AG128: 0 | AH128: 0 | AI128: 0 | AJ128: 0 | AK128: 0 | AL128: 0 | AM128: 0 | AS128: 0 | AT128: 0 | AU128: 0 | AV128: 0 | AW128: 0 | AX128: 0 | AY128: 0 | AZ128: 0 | BA128: 0 | BB128: 0 | BC128: 0 | BD128: 0 | BE128: 0 | BF128: 0 | BG128: 0 | BH128: 0 | BI128: 0 | BJ128: 0 | BK128: 0 | BL128: 0 | BM128: 0 | BN128: 0
B129: 127 | E129: 127 | S129: 0 | T129: 0 | U129: 0 | V129: 0 | W129: 0 | X129: 0 | Y129: 0 | Z129: 0 | AA129: 0 | AB129: 0 | AC129: 0 | AD129: 0 | AE129: 0 | AF129: 0 | AG129: 0 | AH129: 0 | AI129: 0 | AJ129: 0 | AK129: 0 | AL129: 0 | AM129: 0 | AS129: 0 | AT129: 0 | AU129: 0 | AV129: 0 | AW129: 0 | AX129: 0 | AY129: 0 | AZ129: 0 | BA129: 0 | BB129: 0 | BC129: 0 | BD129: 0 | BE129: 0 | BF129: 0 | BG129: 0 | BH129: 0 | BI129: 0 | BJ129: 0 | BK129: 0 | BL129: 0 | BM129: 0 | BN129: 0
B130: 128 | E130: 128 | S130: 0 | T130: 0 | U130: 0 | V130: 0 | W130: 0 | X130: 0 | Y130: 0 | Z130: 0 | AA130: 0 | AB130: 0 | AC130: 0 | AD130: 0 | AE130: 0 | AF130: 0 | AG130: 0 | AH130: 0 | AI130: 0 | AJ130: 0 | AK130: 0 | AL130: 0 | AM130: 0 | AS130: 0 | AT130: 0 | AU130: 0 | AV130: 0 | AW130: 0 | AX130: 0 | AY130: 0 | AZ130: 0 | BA130: 0 | BB130: 0 | BC130: 0 | BD130: 0 | BE130: 0 | BF130: 0 | BG130: 0 | BH130: 0 | BI130: 0 | BJ130: 0 | BK130: 0 | BL130: 0 | BM130: 0 | BN130: 0
B131: 129 | E131: 129 | S131: 0 | T131: 0 | U131: 0 | V131: 0 | W131: 0 | X131: 0 | Y131: 0 | Z131: 0 | AA131: 0 | AB131: 0 | AC131: 0 | AD131: 0 | AE131: 0 | AF131: 0 | AG131: 0 | AH131: 0 | AI131: 0 | AJ131: 0 | AK131: 0 | AL131: 0 | AM131: 0 | AS131: 0 | AT131: 0 | AU131: 0 | AV131: 0 | AW131: 0 | AX131: 0 | AY131: 0 | AZ131: 0 | BA131: 0 | BB131: 0 | BC131: 0 | BD131: 0 | BE131: 0 | BF131: 0 | BG131: 0 | BH131: 0 | BI131: 0 | BJ131: 0 | BK131: 0 | BL131: 0 | BM131: 0 | BN131: 0
B132: 130 | E132: 130 | S132: 0 | T132: 0 | U132: 0 | V132: 0 | W132: 0 | X132: 0 | Y132: 0 | Z132: 0 | AA132: 0 | AB132: 0 | AC132: 0 | AD132: 0 | AE132: 0 | AF132: 0 | AG132: 0 | AH132: 0 | AI132: 0 | AJ132: 0 | AK132: 0 | AL132: 0 | AM132: 0 | AS132: 0 | AT132: 0 | AU132: 0 | AV132: 0 | AW132: 0 | AX132: 0 | AY132: 0 | AZ132: 0 | BA132: 0 | BB132: 0 | BC132: 0 | BD132: 0 | BE132: 0 | BF132: 0 | BG132: 0 | BH132: 0 | BI132: 0 | BJ132: 0 | BK132: 0 | BL132: 0 | BM132: 0 | BN132: 0
B133: 131 | E133: 131 | R133: =IF(ISBLANK(C133),"",IF(C133=C132,R132,IF(C133=C134,IF(C134=C135,IF(C135=C136,IF(C136=C137,IF(C137=C138,S133,(SUM(B133:B137)/5)),(SUM(B133:B136)/4)),(SUM(B133:B135)/3)),(SUM(B133:B134)/2)),B133))) ->  | S133: =IF(C138=C139,IF(C139=C140,IF(C140=C141,IF(C141=C142,IF(C142=C143,IF(C143=C144,IF(C144=C145,T133,(SUM(B133:B144)/12)),(SUM(B133:B143)/11)),(SUM(B133:B142)/10)),(SUM(B133:B141)/9)),(SUM(B133:B140)/8)),(SUM(B133:B139)/7)),(SUM(B133:B138)/6)) -> 0 | T133: =IF($C145=$C146,IF($C146=$C147,IF($C147=$C148,IF($C148=$C149,IF($C149=$C150,IF($C150=$C151,IF($C151=$C152,U133,(SUM($B133:$B151)/19)),(SUM($B133:$B150)/18)),(SUM($B133:$B149)/17)),(SUM($B133:$B148)/16)),(SUM($B133:$B147)/15)),(SUM($B133:$B146)/14)),(SUM($B133:$B145)/13)) -> 0 | U133: =IF($C152=$C153,IF($C153=$C154,IF($C154=$C155,IF($C155=$C156,IF($C156=$C157,IF($C157=$C158,IF($C158=$C159,V133,(SUM($B133:$B158)/26)),(SUM($B133:$B157)/25)),(SUM($B133:$B156)/24)),(SUM($B133:$B155)/23)),(SUM($B133:$B154)/22)),(SUM($B133:$B153)/21)),(SUM($B133:$B152)/20)) -> 0 | V133: =IF($C159=$C160,IF($C160=$C161,IF($C161=$C162,IF($C162=$C163,IF($C163=$C164,IF($C164=$C165,IF($C165=$C166,W133,(SUM($B133:$B165)/33)),(SUM($B133:$B164)/32)),(SUM($B133:$B163)/31)),(SUM($B133:$B162)/30)),(SUM($B133:$B161)/29)),(SUM($B133:$B160)/28)),(SUM($B133:$B159)/27)) -> 0 | W133: =IF($C166=$C167,IF($C167=$C168,IF($C168=$C169,IF($C169=$C170,IF($C170=$C171,IF($C171=$C172,IF($C172=$C173,X133,(SUM($B133:$B172)/40)),(SUM($B133:$B171)/39)),(SUM($B133:$B170)/38)),(SUM($B133:$B169)/37)),(SUM($B133:$B168)/36)),(SUM($B133:$B167)/35)),(SUM($B133:$B166)/34)) -> 0 | X133: =IF($C173=$C174,IF($C174=$C175,IF($C175=$C176,IF($C176=$C177,IF($C177=$C178,IF($C178=$C179,IF($C179=$C180,Y133,(SUM($B133:$B179)/47)),(SUM($B133:$B178)/46)),(SUM($B133:$B177)/45)),(SUM($B133:$B176)/44)),(SUM($B133:$B175)/43)),(SUM($B133:$B174)/42)),(SUM($B133:$B173)/41)) -> 0 | Y133: =IF($C180=$C181,IF($C181=$C182,IF($C182=$C183,IF($C183=$C184,IF($C184=$C185,IF($C185=$C186,IF($C186=$C187,Z133,(SUM($B133:$B186)/54)),(SUM($B133:$B185)/53)),(SUM($B133:$B184)/52)),(SUM($B133:$B183)/51)),(SUM($B133:$B182)/50)),(SUM($B133:$B181)/49)),(SUM($B133:$B180)/48)) -> 0 | Z133: =IF($C187=$C188,IF($C188=$C189,IF($C189=$C190,IF($C190=$C191,IF($C191=$C192,IF($C192=$C193,IF($C193=$C194,AA133,(SUM($B133:$B193)/61)),(SUM($B133:$B192)/60)),(SUM($B133:$B191)/59)),(SUM($B133:$B190)/58)),(SUM($B133:$B189)/57)),(SUM($B133:$B188)/56)),(SUM($B133:$B187)/55)) -> 0 | AA133: =IF($C194=$C195,IF($C195=$C196,IF($C196=$C197,IF($C197=$C198,IF($C198=$C199,IF($C199=$C200,IF($C200=$C201,AB133,(SUM($B133:$B200)/68)),(SUM($B133:$B199)/67)),(SUM($B133:$B198)/66)),(SUM($B133:$B197)/65)),(SUM($B133:$B196)/64)),(SUM($B133:$B195)/63)),(SUM($B133:$B194)/62)) -> 0 | AB133: =IF($C201=$C202,IF($C202=$C203,IF($C203=$C204,IF($C204=$C205,IF($C205=$C206,IF($C206=$C207,IF($C207=$C208,AC133,(SUM($B133:$B207)/75)),(SUM($B133:$B206)/74)),(SUM($B133:$B205)/73)),(SUM($B133:$B204)/72)),(SUM($B133:$B203)/71)),(SUM($B133:$B202)/70)),(SUM($B133:$B201)/69)) -> 0 | AC133: =IF($C208=$C209,IF($C209=$C210,IF($C210=$C211,IF($C211=$C212,IF($C212=$C213,IF($C213=$C214,IF($C214=$C215,AD133,(SUM($B133:$B214)/82)),(SUM($B133:$B213)/81)),(SUM($B133:$B212)/80)),(SUM($B133:$B211)/79)),(SUM($B133:$B210)/78)),(SUM($B133:$B209)/77)),(SUM($B133:$B208)/76)) -> 0 | AD133: =IF($C215=$C216,IF($C216=$C217,IF($C217=$C218,IF($C218=$C219,IF($C219=$C220,IF($C220=$C221,IF($C221=$C222,AE133,(SUM($B133:$B221)/89)),(SUM($B133:$B220)/88)),(SUM($B133:$B219)/87)),(SUM($B133:$B218)/86)),(SUM($B133:$B217)/85)),(SUM($B133:$B216)/84)),(SUM($B133:$B215)/83)) -> 0 | AE133: =IF($C222=$C223,IF($C223=$C224,IF($C224=$C225,IF($C225=$C226,IF($C226=$C227,IF($C227=$C228,IF($C228=$C229,AF133,(SUM($B133:$B228)/96)),(SUM($B133:$B227)/95)),(SUM($B133:$B226)/94)),(SUM($B133:$B225)/93)),(SUM($B133:$B224)/92)),(SUM($B133:$B223)/91)),(SUM($B133:$B222)/90)) -> 0 | AF133: =IF($C229=$C230,IF($C230=$C231,IF($C231=$C232,IF($C232=$C233,IF($C233=$C234,IF($C234=$C235,IF($C235=$C236,AG133,(SUM($B133:$B235)/103)),(SUM($B133:$B234)/102)),(SUM($B133:$B233)/101)),(SUM($B133:$B232)/100)),(SUM($B133:$B231)/99)),(SUM($B133:$B230)/98)),(SUM($B133:$B229)/97)) -> 0 | AG133: =IF($C236=$C237,IF($C237=$C238,IF($C238=$C239,IF($C239=$C240,IF($C240=$C241,IF($C241=$C242,IF($C242=$C243,AH133,(SUM($B133:$B242)/110)),(SUM($B133:$B241)/109)),(SUM($B133:$B240)/108)),(SUM($B133:$B239)/107)),(SUM($B133:$B238)/106)),(SUM($B133:$B237)/105)),(SUM($B133:$B236)/104)) -> 0 | AH133: =IF($C243=$C244,IF($C244=$C245,IF($C245=$C246,IF($C246=$C247,IF($C247=$C248,IF($C248=$C249,IF($C249=$C250,AI133,(SUM($B133:$B249)/117)),(SUM($B133:$B248)/116)),(SUM($B133:$B247)/115)),(SUM($B133:$B246)/114)),(SUM($B133:$B245)/113)),(SUM($B133:$B244)/112)),(SUM($B133:$B243)/111)) -> 0 | AI133: =IF($C250=$C251,IF($C251=$C252,IF($C252=$C253,IF($C253=$C254,IF($C254=$C255,IF($C255=$C256,IF($C256=$C257,AJ133,(SUM($B133:$B256)/124)),(SUM($B133:$B255)/123)),(SUM($B133:$B254)/122)),(SUM($B133:$B253)/121)),(SUM($B133:$B252)/120)),(SUM($B133:$B251)/119)),(SUM($B133:$B250)/118)) -> 0 | AJ133: =IF($C257=$C258,IF($C258=$C259,IF($C259=$C260,IF($C260=$C261,IF($C261=$C262,IF($C262=$C263,IF($C263=$C264,AK133,(SUM($B133:$B263)/131)),(SUM($B133:$B262)/130)),(SUM($B133:$B261)/129)),(SUM($B133:$B260)/128)),(SUM($B133:$B259)/127)),(SUM($B133:$B258)/126)),(SUM($B133:$B257)/125)) -> 0 | AK133: =IF($C264=$C265,IF($C265=$C266,IF($C266=$C267,IF($C267=$C268,IF($C268=$C269,IF($C269=$C270,IF($C270=$C271,AL133,(SUM($B133:$B270)/138)),(SUM($B133:$B269)/137)),(SUM($B133:$B268)/136)),(SUM($B133:$B267)/135)),(SUM($B133:$B266)/134)),(SUM($B133:$B265)/133)),(SUM($B133:$B264)/132)) -> 0 | AL133: =IF($C271=$C272,IF($C272=$C273,IF($C273=$C274,IF($C274=$C275,IF($C275=$C276,IF($C276=$C277,IF($C277=$C278,AM133,(SUM($B133:$B277)/145)),(SUM($B133:$B276)/144)),(SUM($B133:$B275)/143)),(SUM($B133:$B274)/142)),(SUM($B133:$B273)/141)),(SUM($B133:$B272)/140)),(SUM($B133:$B271)/139)) -> 0 | AM133: =IF($C278=$C279,IF($C279=$C280,IF($C280=$C281,IF($C281=$C282,IF($C282=$C283,IF($C283=$C284,IF($C284=$C285,AN133,(SUM($B133:$B284)/152)),(SUM($B133:$B283)/151)),(SUM($B133:$B282)/150)),(SUM($B133:$B281)/149)),(SUM($B133:$B280)/148)),(SUM($B133:$B279)/147)),(SUM($B133:$B278)/146)) -> 0 | AS133: =IF(D138=D139,IF(D139=D140,IF(D140=D141,IF(D141=D142,IF(D142=D143,IF(D143=D144,IF(D144=D145,AT133,(SUM(E133:E144)/12)),(SUM(E133:E143)/11)),(SUM(E133:E142)/10)),(SUM(E133:E141)/9)),(SUM(E133:E140)/8)),(SUM(E133:E139)/7)),(SUM(E133:E138)/6)) -> 0 | AT133: =IF($D145=$D146,IF($D146=$D147,IF($D147=$D148,IF($D148=$D149,IF($D149=$D150,IF($D150=$D151,IF($D151=$D152,AU133,(SUM($E133:$E151)/19)),(SUM($E133:$E150)/18)),(SUM($E133:$E149)/17)),(SUM($E133:$E148)/16)),(SUM($E133:$E147)/15)),(SUM($E133:$E146)/14)),(SUM($E133:$E145)/13)) -> 0 | AU133: =IF($D152=$D153,IF($D153=$D154,IF($D154=$D155,IF($D155=$D156,IF($D156=$D157,IF($D157=$D158,IF($D158=$D159,AV133,(SUM($E133:$E158)/26)),(SUM($E133:$E157)/25)),(SUM($E133:$E156)/24)),(SUM($E133:$E155)/23)),(SUM($E133:$E154)/22)),(SUM($E133:$E153)/21)),(SUM($E133:$E152)/20)) -> 0 | AV133: =IF($D159=$D160,IF($D160=$D161,IF($D161=$D162,IF($D162=$D163,IF($D163=$D164,IF($D164=$D165,IF($D165=$D166,AW133,(SUM($E133:$E165)/33)),(SUM($E133:$E164)/32)),(SUM($E133:$E163)/31)),(SUM($E133:$E162)/30)),(SUM($E133:$E161)/29)),(SUM($E133:$E160)/28)),(SUM($E133:$E159)/27)) -> 0 | AW133: =IF($D166=$D167,IF($D167=$D168,IF($D168=$D169,IF($D169=$D170,IF($D170=$D171,IF($D171=$D172,IF($D172=$D173,AX133,(SUM($E133:$E172)/40)),(SUM($E133:$E171)/39)),(SUM($E133:$E170)/38)),(SUM($E133:$E169)/37)),(SUM($E133:$E168)/36)),(SUM($E133:$E167)/35)),(SUM($E133:$E166)/34)) -> 0 | AX133: =IF($D173=$D174,IF($D174=$D175,IF($D175=$D176,IF($D176=$D177,IF($D177=$D178,IF($D178=$D179,IF($D179=$D180,AY133,(SUM($E133:$E179)/47)),(SUM($E133:$E178)/46)),(SUM($E133:$E177)/45)),(SUM($E133:$E176)/44)),(SUM($E133:$E175)/43)),(SUM($E133:$E174)/42)),(SUM($E133:$E173)/41)) -> 0 | AY133: =IF($D180=$D181,IF($D181=$D182,IF($D182=$D183,IF($D183=$D184,IF($D184=$D185,IF($D185=$D186,IF($D186=$D187,AZ133,(SUM($E133:$E186)/54)),(SUM($E133:$E185)/53)),(SUM($E133:$E184)/52)),(SUM($E133:$E183)/51)),(SUM($E133:$E182)/50)),(SUM($E133:$E181)/49)),(SUM($E133:$E180)/48)) -> 0 | AZ133: =IF($D187=$D188,IF($D188=$D189,IF($D189=$D190,IF($D190=$D191,IF($D191=$D192,IF($D192=$D193,IF($D193=$D194,BA133,(SUM($E133:$E193)/61)),(SUM($E133:$E192)/60)),(SUM($E133:$E191)/59)),(SUM($E133:$E190)/58)),(SUM($E133:$E189)/57)),(SUM($E133:$E188)/56)),(SUM($E133:$E187)/55)) -> 0 | BA133: =IF($D194=$D195,IF($D195=$D196,IF($D196=$D197,IF($D197=$D198,IF($D198=$D199,IF($D199=$D200,IF($D200=$D201,BB133,(SUM($E133:$E200)/68)),(SUM($E133:$E199)/67)),(SUM($E133:$E198)/66)),(SUM($E133:$E197)/65)),(SUM($E133:$E196)/64)),(SUM($E133:$E195)/63)),(SUM($E133:$E194)/62)) -> 0 | BB133: =IF($D201=$D202,IF($D202=$D203,IF($D203=$D204,IF($D204=$D205,IF($D205=$D206,IF($D206=$D207,IF($D207=$D208,BC133,(SUM($E133:$E207)/75)),(SUM($E133:$E206)/74)),(SUM($E133:$E205)/73)),(SUM($E133:$E204)/72)),(SUM($E133:$E203)/71)),(SUM($E133:$E202)/70)),(SUM($E133:$E201)/69)) -> 0 | BC133: =IF($D208=$D209,IF($D209=$D210,IF($D210=$D211,IF($D211=$D212,IF($D212=$D213,IF($D213=$D214,IF($D214=$D215,BD133,(SUM($E133:$E214)/82)),(SUM($E133:$E213)/81)),(SUM($E133:$E212)/80)),(SUM($E133:$E211)/79)),(SUM($E133:$E210)/78)),(SUM($E133:$E209)/77)),(SUM($E133:$E208)/76)) -> 0 | BD133: =IF($D215=$D216,IF($D216=$D217,IF($D217=$D218,IF($D218=$D219,IF($D219=$D220,IF($D220=$D221,IF($D221=$D222,BE133,(SUM($E133:$E221)/89)),(SUM($E133:$E220)/88)),(SUM($E133:$E219)/87)),(SUM($E133:$E218)/86)),(SUM($E133:$E217)/85)),(SUM($E133:$E216)/84)),(SUM($E133:$E215)/83)) -> 0 | BE133: =IF($D222=$D223,IF($D223=$D224,IF($D224=$D225,IF($D225=$D226,IF($D226=$D227,IF($D227=$D228,IF($D228=$D229,BF133,(SUM($E133:$E228)/96)),(SUM($E133:$E227)/95)),(SUM($E133:$E226)/94)),(SUM($E133:$E225)/93)),(SUM($E133:$E224)/92)),(SUM($E133:$E223)/91)),(SUM($E133:$E222)/90)) -> 0 | BF133: =IF($D229=$D230,IF($D230=$D231,IF($D231=$D232,IF($D232=$D233,IF($D233=$D234,IF($D234=$D235,IF($D235=$D236,BG133,(SUM($E133:$E235)/103)),(SUM($E133:$E234)/102)),(SUM($E133:$E233)/101)),(SUM($E133:$E232)/100)),(SUM($E133:$E231)/99)),(SUM($E133:$E230)/98)),(SUM($E133:$E229)/97)) -> 0 | BG133: =IF($D236=$D237,IF($D237=$D238,IF($D238=$D239,IF($D239=$D240,IF($D240=$D241,IF($D241=$D242,IF($D242=$D243,BH133,(SUM($E133:$E242)/110)),(SUM($E133:$E241)/109)),(SUM($E133:$E240)/108)),(SUM($E133:$E239)/107)),(SUM($E133:$E238)/106)),(SUM($E133:$E237)/105)),(SUM($E133:$E236)/104)) -> 0 | BH133: =IF($D243=$D244,IF($D244=$D245,IF($D245=$D246,IF($D246=$D247,IF($D247=$D248,IF($D248=$D249,IF($D249=$D250,BI133,(SUM($E133:$E249)/117)),(SUM($E133:$E248)/116)),(SUM($E133:$E247)/115)),(SUM($E133:$E246)/114)),(SUM($E133:$E245)/113)),(SUM($E133:$E244)/112)),(SUM($E133:$E243)/111)) -> 0 | BI133: =IF($D250=$D251,IF($D251=$D252,IF($D252=$D253,IF($D253=$D254,IF($D254=$D255,IF($D255=$D256,IF($D256=$D257,BJ133,(SUM($E133:$E256)/124)),(SUM($E133:$E255)/123)),(SUM($E133:$E254)/122)),(SUM($E133:$E253)/121)),(SUM($E133:$E252)/120)),(SUM($E133:$E251)/119)),(SUM($E133:$E250)/118)) -> 0 | BJ133: =IF($D257=$D258,IF($D258=$D259,IF($D259=$D260,IF($D260=$D261,IF($D261=$D262,IF($D262=$D263,IF($D263=$D264,BK133,(SUM($E133:$E263)/131)),(SUM($E133:$E262)/130)),(SUM($E133:$E261)/129)),(SUM($E133:$E260)/128)),(SUM($E133:$E259)/127)),(SUM($E133:$E258)/126)),(SUM($E133:$E257)/125)) -> 0 | BK133: =IF($D264=$D265,IF($D265=$D266,IF($D266=$D267,IF($D267=$D268,IF($D268=$D269,IF($D269=$D270,IF($D270=$D271,BL133,(SUM($E133:$E270)/138)),(SUM($E133:$E269)/137)),(SUM($E133:$E268)/136)),(SUM($E133:$E267)/135)),(SUM($E133:$E266)/134)),(SUM($E133:$E265)/133)),(SUM($E133:$E264)/132)) -> 0 | BL133: =IF($D271=$D272,IF($D272=$D273,IF($D273=$D274,IF($D274=$D275,IF($D275=$D276,IF($D276=$D277,IF($D277=$D278,BM133,(SUM($E133:$E277)/145)),(SUM($E133:$E276)/144)),(SUM($E133:$E275)/143)),(SUM($E133:$E274)/142)),(SUM($E133:$E273)/141)),(SUM($E133:$E272)/140)),(SUM($E133:$E271)/139)) -> 0 | BM133: =IF($D278=$D279,IF($D279=$D280,IF($D280=$D281,IF($D281=$D282,IF($D282=$D283,IF($D283=$D284,IF($D284=$D285,BN133,(SUM($E133:$E284)/152)),(SUM($E133:$E283)/151)),(SUM($E133:$E282)/150)),(SUM($E133:$E281)/149)),(SUM($E133:$E280)/148)),(SUM($E133:$E279)/147)),(SUM($E133:$E278)/146)) -> 0 | BN133: =IF($D285=$D286,IF($D286=$D287,IF($D287=$D288,IF($D288=$D289,IF($D289=$D290,IF($D290=$D291,IF($D291=$D292,BO133,(SUM($E133:$E291)/159)),(SUM($E133:$E290)/158)),(SUM($E133:$E289)/157)),(SUM($E133:$E288)/156)),(SUM($E133:$E287)/155)),(SUM($E133:$E286)/154)),(SUM($E133:$E285)/153)) -> 0
B134: 132 | E134: 132 | S134: 0 | T134: 0 | U134: 0 | V134: 0 | W134: 0 | X134: 0 | Y134: 0 | Z134: 0 | AA134: 0 | AB134: 0 | AC134: 0 | AD134: 0 | AE134: 0 | AF134: 0 | AG134: 0 | AH134: 0 | AI134: 0 | AJ134: 0 | AK134: 0 | AL134: 0 | AM134: 0 | AS134: 0 | AT134: 0 | AU134: 0 | AV134: 0 | AW134: 0 | AX134: 0 | AY134: 0 | AZ134: 0 | BA134: 0 | BB134: 0 | BC134: 0 | BD134: 0 | BE134: 0 | BF134: 0 | BG134: 0 | BH134: 0 | BI134: 0 | BJ134: 0 | BK134: 0 | BL134: 0 | BM134: 0 | BN134: 0
B135: 133 | E135: 133 | S135: 0 | T135: 0 | U135: 0 | V135: 0 | W135: 0 | X135: 0 | Y135: 0 | Z135: 0 | AA135: 0 | AB135: 0 | AC135: 0 | AD135: 0 | AE135: 0 | AF135: 0 | AG135: 0 | AH135: 0 | AI135: 0 | AJ135: 0 | AK135: 0 | AL135: 0 | AM135: 0 | AS135: 0 | AT135: 0 | AU135: 0 | AV135: 0 | AW135: 0 | AX135: 0 | AY135: 0 | AZ135: 0 | BA135: 0 | BB135: 0 | BC135: 0 | BD135: 0 | BE135: 0 | BF135: 0 | BG135: 0 | BH135: 0 | BI135: 0 | BJ135: 0 | BK135: 0 | BL135: 0 | BM135: 0 | BN135: 0
B136: 134 | E136: 134 | S136: 0 | T136: 0 | U136: 0 | V136: 0 | W136: 0 | X136: 0 | Y136: 0 | Z136: 0 | AA136: 0 | AB136: 0 | AC136: 0 | AD136: 0 | AE136: 0 | AF136: 0 | AG136: 0 | AH136: 0 | AI136: 0 | AJ136: 0 | AK136: 0 | AL136: 0 | AM136: 0 | AS136: 0 | AT136: 0 | AU136: 0 | AV136: 0 | AW136: 0 | AX136: 0 | AY136: 0 | AZ136: 0 | BA136: 0 | BB136: 0 | BC136: 0 | BD136: 0 | BE136: 0 | BF136: 0 | BG136: 0 | BH136: 0 | BI136: 0 | BJ136: 0 | BK136: 0 | BL136: 0 | BM136: 0 | BN136: 0
B137: 135 | E137: 135 | S137: 0 | T137: 0 | U137: 0 | V137: 0 | W137: 0 | X137: 0 | Y137: 0 | Z137: 0 | AA137: 0 | AB137: 0 | AC137: 0 | AD137: 0 | AE137: 0 | AF137: 0 | AG137: 0 | AH137: 0 | AI137: 0 | AJ137: 0 | AK137: 0 | AL137: 0 | AM137: 0 | AS137: 0 | AT137: 0 | AU137: 0 | AV137: 0 | AW137: 0 | AX137: 0 | AY137: 0 | AZ137: 0 | BA137: 0 | BB137: 0 | BC137: 0 | BD137: 0 | BE137: 0 | BF137: 0 | BG137: 0 | BH137: 0 | BI137: 0 | BJ137: 0 | BK137: 0 | BL137: 0 | BM137: 0 | BN137: 0
B138: 136 | E138: 136 | S138: 0 | T138: 0 | U138: 0 | V138: 0 | W138: 0 | X138: 0 | Y138: 0 | Z138: 0 | AA138: 0 | AB138: 0 | AC138: 0 | AD138: 0 | AE138: 0 | AF138: 0 | AG138: 0 | AH138: 0 | AI138: 0 | AJ138: 0 | AK138: 0 | AL138: 0 | AM138: 0 | AS138: 0 | AT138: 0 | AU138: 0 | AV138: 0 | AW138: 0 | AX138: 0 | AY138: 0 | AZ138: 0 | BA138: 0 | BB138: 0 | BC138: 0 | BD138: 0 | BE138: 0 | BF138: 0 | BG138: 0 | BH138: 0 | BI138: 0 | BJ138: 0 | BK138: 0 | BL138: 0 | BM138: 0 | BN138: 0
B139: 137 | E139: 137 | S139: 0 | T139: 0 | U139: 0 | V139: 0 | W139: 0 | X139: 0 | Y139: 0 | Z139: 0 | AA139: 0 | AB139: 0 | AC139: 0 | AD139: 0 | AE139: 0 | AF139: 0 | AG139: 0 | AH139: 0 | AI139: 0 | AJ139: 0 | AK139: 0 | AL139: 0 | AM139: 0 | AS139: 0 | AT139: 0 | AU139: 0 | AV139: 0 | AW139: 0 | AX139: 0 | AY139: 0 | AZ139: 0 | BA139: 0 | BB139: 0 | BC139: 0 | BD139: 0 | BE139: 0 | BF139: 0 | BG139: 0 | BH139: 0 | BI139: 0 | BJ139: 0 | BK139: 0 | BL139: 0 | BM139: 0 | BN139: 0
B140: 138 | E140: 138 | S140: 0 | T140: 0 | U140: 0 | V140: 0 | W140: 0 | X140: 0 | Y140: 0 | Z140: 0 | AA140: 0 | AB140: 0 | AC140: 0 | AD140: 0 | AE140: 0 | AF140: 0 | AG140: 0 | AH140: 0 | AI140: 0 | AJ140: 0 | AK140: 0 | AL140: 0 | AM140: 0 | AS140: 0 | AT140: 0 | AU140: 0 | AV140: 0 | AW140: 0 | AX140: 0 | AY140: 0 | AZ140: 0 | BA140: 0 | BB140: 0 | BC140: 0 | BD140: 0 | BE140: 0 | BF140: 0 | BG140: 0 | BH140: 0 | BI140: 0 | BJ140: 0 | BK140: 0 | BL140: 0 | BM140: 0 | BN140: 0
B141: 139 | E141: 139 | S141: 0 | T141: 0 | U141: 0 | V141: 0 | W141: 0 | X141: 0 | Y141: 0 | Z141: 0 | AA141: 0 | AB141: 0 | AC141: 0 | AD141: 0 | AE141: 0 | AF141: 0 | AG141: 0 | AH141: 0 | AI141: 0 | AJ141: 0 | AK141: 0 | AL141: 0 | AM141: 0 | AS141: 0 | AT141: 0 | AU141: 0 | AV141: 0 | AW141: 0 | AX141: 0 | AY141: 0 | AZ141: 0 | BA141: 0 | BB141: 0 | BC141: 0 | BD141: 0 | BE141: 0 | BF141: 0 | BG141: 0 | BH141: 0 | BI141: 0 | BJ141: 0 | BK141: 0 | BL141: 0 | BM141: 0 | BN141: 0
B142: 140 | E142: 140 | S142: 0 | T142: 0 | U142: 0 | V142: 0 | W142: 0 | X142: 0 | Y142: 0 | Z142: 0 | AA142: 0 | AB142: 0 | AC142: 0 | AD142: 0 | AE142: 0 | AF142: 0 | AG142: 0 | AH142: 0 | AI142: 0 | AJ142: 0 | AK142: 0 | AL142: 0 | AM142: 0 | AS142: 0 | AT142: 0 | AU142: 0 | AV142: 0 | AW142: 0 | AX142: 0 | AY142: 0 | AZ142: 0 | BA142: 0 | BB142: 0 | BC142: 0 | BD142: 0 | BE142: 0 | BF142: 0 | BG142: 0 | BH142: 0 | BI142: 0 | BJ142: 0 | BK142: 0 | BL142: 0 | BM142: 0 | BN142: 0
B143: 141 | E143: 141 | S143: 0 | T143: 0 | U143: 0 | V143: 0 | W143: 0 | X143: 0 | Y143: 0 | Z143: 0 | AA143: 0 | AB143: 0 | AC143: 0 | AD143: 0 | AE143: 0 | AF143: 0 | AG143: 0 | AH143: 0 | AI143: 0 | AJ143: 0 | AK143: 0 | AL143: 0 | AM143: 0 | AS143: 0 | AT143: 0 | AU143: 0 | AV143: 0 | AW143: 0 | AX143: 0 | AY143: 0 | AZ143: 0 | BA143: 0 | BB143: 0 | BC143: 0 | BD143: 0 | BE143: 0 | BF143: 0 | BG143: 0 | BH143: 0 | BI143: 0 | BJ143: 0 | BK143: 0 | BL143: 0 | BM143: 0 | BN143: 0
B144: 142 | E144: 142 | S144: 0 | T144: 0 | U144: 0 | V144: 0 | W144: 0 | X144: 0 | Y144: 0 | Z144: 0 | AA144: 0 | AB144: 0 | AC144: 0 | AD144: 0 | AE144: 0 | AF144: 0 | AG144: 0 | AH144: 0 | AI144: 0 | AJ144: 0 | AK144: 0 | AL144: 0 | AM144: 0 | AS144: 0 | AT144: 0 | AU144: 0 | AV144: 0 | AW144: 0 | AX144: 0 | AY144: 0 | AZ144: 0 | BA144: 0 | BB144: 0 | BC144: 0 | BD144: 0 | BE144: 0 | BF144: 0 | BG144: 0 | BH144: 0 | BI144: 0 | BJ144: 0 | BK144: 0 | BL144: 0 | BM144: 0 | BN144: 0
B145: 143 | E145: 143 | S145: 0 | T145: 0 | U145: 0 | V145: 0 | W145: 0 | X145: 0 | Y145: 0 | Z145: 0 | AA145: 0 | AB145: 0 | AC145: 0 | AD145: 0 | AE145: 0 | AF145: 0 | AG145: 0 | AH145: 0 | AI145: 0 | AJ145: 0 | AK145: 0 | AL145: 0 | AM145: 0 | AS145: 0 | AT145: 0 | AU145: 0 | AV145: 0 | AW145: 0 | AX145: 0 | AY145: 0 | AZ145: 0 | BA145: 0 | BB145: 0 | BC145: 0 | BD145: 0 | BE145: 0 | BF145: 0 | BG145: 0 | BH145: 0 | BI145: 0 | BJ145: 0 | BK145: 0 | BL145: 0 | BM145: 0 | BN145: 0
B146: 144 | E146: 144 | S146: 0 | T146: 0 | U146: 0 | V146: 0 | W146: 0 | X146: 0 | Y146: 0 | Z146: 0 | AA146: 0 | AB146: 0 | AC146: 0 | AD146: 0 | AE146: 0 | AF146: 0 | AG146: 0 | AH146: 0 | AI146: 0 | AJ146: 0 | AK146: 0 | AL146: 0 | AM146: 0 | AS146: 0 | AT146: 0 | AU146: 0 | AV146: 0 | AW146: 0 | AX146: 0 | AY146: 0 | AZ146: 0 | BA146: 0 | BB146: 0 | BC146: 0 | BD146: 0 | BE146: 0 | BF146: 0 | BG146: 0 | BH146: 0 | BI146: 0 | BJ146: 0 | BK146: 0 | BL146: 0 | BM146: 0 | BN146: 0
B147: 145 | E147: 145 | S147: 0 | T147: 0 | U147: 0 | V147: 0 | W147: 0 | X147: 0 | Y147: 0 | Z147: 0 | AA147: 0 | AB147: 0 | AC147: 0 | AD147: 0 | AE147: 0 | AF147: 0 | AG147: 0 | AH147: 0 | AI147: 0 | AJ147: 0 | AK147: 0 | AL147: 0 | AM147: 0 | AS147: 0 | AT147: 0 | AU147: 0 | AV147: 0 | AW147: 0 | AX147: 0 | AY147: 0 | AZ147: 0 | BA147: 0 | BB147: 0 | BC147: 0 | BD147: 0 | BE147: 0 | BF147: 0 | BG147: 0 | BH147: 0 | BI147: 0 | BJ147: 0 | BK147: 0 | BL147: 0 | BM147: 0 | BN147: 0
B148: 146 | E148: 146 | S148: 0 | T148: 0 | U148: 0 | V148: 0 | W148: 0 | X148: 0 | Y148: 0 | Z148: 0 | AA148: 0 | AB148: 0 | AC148: 0 | AD148: 0 | AE148: 0 | AF148: 0 | AG148: 0 | AH148: 0 | AI148: 0 | AJ148: 0 | AK148: 0 | AL148: 0 | AM148: 0 | AS148: 0 | AT148: 0 | AU148: 0 | AV148: 0 | AW148: 0 | AX148: 0 | AY148: 0 | AZ148: 0 | BA148: 0 | BB148: 0 | BC148: 0 | BD148: 0 | BE148: 0 | BF148: 0 | BG148: 0 | BH148: 0 | BI148: 0 | BJ148: 0 | BK148: 0 | BL148: 0 | BM148: 0 | BN148: 0
B149: 147 | E149: 147 | S149: 0 | T149: 0 | U149: 0 | V149: 0 | W149: 0 | X149: 0 | Y149: 0 | Z149: 0 | AA149: 0 | AB149: 0 | AC149: 0 | AD149: 0 | AE149: 0 | AF149: 0 | AG149: 0 | AH149: 0 | AI149: 0 | AJ149: 0 | AK149: 0 | AL149: 0 | AM149: 0 | AS149: 0 | AT149: 0 | AU149: 0 | AV149: 0 | AW149: 0 | AX149: 0 | AY149: 0 | AZ149: 0 | BA149: 0 | BB149: 0 | BC149: 0 | BD149: 0 | BE149: 0 | BF149: 0 | BG149: 0 | BH149: 0 | BI149: 0 | BJ149: 0 | BK149: 0 | BL149: 0 | BM149: 0 | BN149: 0
B150: 148 | E150: 148 | S150: 0 | T150: 0 | U150: 0 | V150: 0 | W150: 0 | X150: 0 | Y150: 0 | Z150: 0 | AA150: 0 | AB150: 0 | AC150: 0 | AD150: 0 | AE150: 0 | AF150: 0 | AG150: 0 | AH150: 0 | AI150: 0 | AJ150: 0 | AK150: 0 | AL150: 0 | AM150: 0 | AS150: 0 | AT150: 0 | AU150: 0 | AV150: 0 | AW150: 0 | AX150: 0 | AY150: 0 | AZ150: 0 | BA150: 0 | BB150: 0 | BC150: 0 | BD150: 0 | BE150: 0 | BF150: 0 | BG150: 0 | BH150: 0 | BI150: 0 | BJ150: 0 | BK150: 0 | BL150: 0 | BM150: 0 | BN150: 0
B151: 149 | E151: 149 | S151: 0 | T151: 0 | U151: 0 | V151: 0 | W151: 0 | X151: 0 | Y151: 0 | Z151: 0 | AA151: 0 | AB151: 0 | AC151: 0 | AD151: 0 | AE151: 0 | AF151: 0 | AG151: 0 | AH151: 0 | AI151: 0 | AJ151: 0 | AK151: 0 | AL151: 0 | AM151: 0 | AS151: 0 | AT151: 0 | AU151: 0 | AV151: 0 | AW151: 0 | AX151: 0 | AY151: 0 | AZ151: 0 | BA151: 0 | BB151: 0 | BC151: 0 | BD151: 0 | BE151: 0 | BF151: 0 | BG151: 0 | BH151: 0 | BI151: 0 | BJ151: 0 | BK151: 0 | BL151: 0 | BM151: 0 | BN151: 0
B152: 150 | E152: 150 | S152: 0 | T152: 0 | U152: 0 | V152: 0 | W152: 0 | X152: 0 | Y152: 0 | Z152: 0 | AA152: 0 | AB152: 0 | AC152: 0 | AD152: 0 | AE152: 0 | AF152: 0 | AG152: 0 | AH152: 0 | AI152: 0 | AJ152: 0 | AK152: 0 | AL152: 0 | AM152: 0 | AS152: 0 | AT152: 0 | AU152: 0 | AV152: 0 | AW152: 0 | AX152: 0 | AY152: 0 | AZ152: 0 | BA152: 0 | BB152: 0 | BC152: 0 | BD152: 0 | BE152: 0 | BF152: 0 | BG152: 0 | BH152: 0 | BI152: 0 | BJ152: 0 | BK152: 0 | BL152: 0 | BM152: 0 | BN152: 0
B153: 151 | E153: 151 | S153: 0 | T153: 0 | U153: 0 | V153: 0 | W153: 0 | X153: 0 | Y153: 0 | Z153: 0 | AA153: 0 | AB153: 0 | AC153: 0 | AD153: 0 | AE153: 0 | AF153: 0 | AG153: 0 | AH153: 0 | AI153: 0 | AJ153: 0 | AK153: 0 | AL153: 0 | AM153: 0 | AS153: 0 | AT153: 0 | AU153: 0 | AV153: 0 | AW153: 0 | AX153: 0 | AY153: 0 | AZ153: 0 | BA153: 0 | BB153: 0 | BC153: 0 | BD153: 0 | BE153: 0 | BF153: 0 | BG153: 0 | BH153: 0 | BI153: 0 | BJ153: 0 | BK153: 0 | BL153: 0 | BM153: 0 | BN153: 0
B154: 152 | E154: 152 | S154: 0 | T154: 0 | U154: 0 | V154: 0 | W154: 0 | X154: 0 | Y154: 0 | Z154: 0 | AA154: 0 | AB154: 0 | AC154: 0 | AD154: 0 | AE154: 0 | AF154: 0 | AG154: 0 | AH154: 0 | AI154: 0 | AJ154: 0 | AK154: 0 | AL154: 0 | AM154: 0 | AS154: 0 | AT154: 0 | AU154: 0 | AV154: 0 | AW154: 0 | AX154: 0 | AY154: 0 | AZ154: 0 | BA154: 0 | BB154: 0 | BC154: 0 | BD154: 0 | BE154: 0 | BF154: 0 | BG154: 0 | BH154: 0 | BI154: 0 | BJ154: 0 | BK154: 0 | BL154: 0 | BM154: 0 | BN154: 0
B155: 153 | E155: 153 | S155: 0 | T155: 0 | U155: 0 | V155: 0 | W155: 0 | X155: 0 | Y155: 0 | Z155: 0 | AA155: 0 | AB155: 0 | AC155: 0 | AD155: 0 | AE155: 0 | AF155: 0 | AG155: 0 | AH155: 0 | AI155: 0 | AJ155: 0 | AK155: 0 | AL155: 0 | AM155: 0 | AS155: 0 | AT155: 0 | AU155: 0 | AV155: 0 | AW155: 0 | AX155: 0 | AY155: 0 | AZ155: 0 | BA155: 0 | BB155: 0 | BC155: 0 | BD155: 0 | BE155: 0 | BF155: 0 | BG155: 0 | BH155: 0 | BI155: 0 | BJ155: 0 | BK155: 0 | BL155: 0 | BM155: 0 | BN155: 0
B156: 154 | E156: 154 | S156: 0 | T156: 0 | U156: 0 | V156: 0 | W156: 0 | X156: 0 | Y156: 0 | Z156: 0 | AA156: 0 | AB156: 0 | AC156: 0 | AD156: 0 | AE156: 0 | AF156: 0 | AG156: 0 | AH156: 0 | AI156: 0 | AJ156: 0 | AK156: 0 | AL156: 0 | AM156: 0 | AS156: 0 | AT156: 0 | AU156: 0 | AV156: 0 | AW156: 0 | AX156: 0 | AY156: 0 | AZ156: 0 | BA156: 0 | BB156: 0 | BC156: 0 | BD156: 0 | BE156: 0 | BF156: 0 | BG156: 0 | BH156: 0 | BI156: 0 | BJ156: 0 | BK156: 0 | BL156: 0 | BM156: 0 | BN156: 0
B157: 155 | E157: 155 | S157: 0 | T157: 0 | U157: 0 | V157: 0 | W157: 0 | X157: 0 | Y157: 0 | Z157: 0 | AA157: 0 | AB157: 0 | AC157: 0 | AD157: 0 | AE157: 0 | AF157: 0 | AG157: 0 | AH157: 0 | AI157: 0 | AJ157: 0 | AK157: 0 | AL157: 0 | AM157: 0 | AS157: 0 | AT157: 0 | AU157: 0 | AV157: 0 | AW157: 0 | AX157: 0 | AY157: 0 | AZ157: 0 | BA157: 0 | BB157: 0 | BC157: 0 | BD157: 0 | BE157: 0 | BF157: 0 | BG157: 0 | BH157: 0 | BI157: 0 | BJ157: 0 | BK157: 0 | BL157: 0 | BM157: 0 | BN157: 0
B158: 156 | E158: 156 | S158: 0 | T158: 0 | U158: 0 | V158: 0 | W158: 0 | X158: 0 | Y158: 0 | Z158: 0 | AA158: 0 | AB158: 0 | AC158: 0 | AD158: 0 | AE158: 0 | AF158: 0 | AG158: 0 | AH158: 0 | AI158: 0 | AJ158: 0 | AK158: 0 | AL158: 0 | AM158: 0 | AS158: 0 | AT158: 0 | AU158: 0 | AV158: 0 | AW158: 0 | AX158: 0 | AY158: 0 | AZ158: 0 | BA158: 0 | BB158: 0 | BC158: 0 | BD158: 0 | BE158: 0 | BF158: 0 | BG158: 0 | BH158: 0 | BI158: 0 | BJ158: 0 | BK158: 0 | BL158: 0 | BM158: 0 | BN158: 0
B159: 157 | E159: 157 | S159: 0 | T159: 0 | U159: 0 | V159: 0 | W159: 0 | X159: 0 | Y159: 0 | Z159: 0 | AA159: 0 | AB159: 0 | AC159: 0 | AD159: 0 | AE159: 0 | AF159: 0 | AG159: 0 | AH159: 0 | AI159: 0 | AJ159: 0 | AK159: 0 | AL159: 0 | AM159: 0 | AS159: 0 | AT159: 0 | AU159: 0 | AV159: 0 | AW159: 0 | AX159: 0 | AY159: 0 | AZ159: 0 | BA159: 0 | BB159: 0 | BC159: 0 | BD159: 0 | BE159: 0 | BF159: 0 | BG159: 0 | BH159: 0 | BI159: 0 | BJ159: 0 | BK159: 0 | BL159: 0 | BM159: 0 | BN159: 0
B160: 158 | E160: 158 | S160: 0 | T160: 0 | U160: 0 | V160: 0 | W160: 0 | X160: 0 | Y160: 0 | Z160: 0 | AA160: 0 | AB160: 0 | AC160: 0 | AD160: 0 | AE160: 0 | AF160: 0 | AG160: 0 | AH160: 0 | AI160: 0 | AJ160: 0 | AK160: 0 | AL160: 0 | AM160: 0 | AS160: 0 | AT160: 0 | AU160: 0 | AV160: 0 | AW160: 0 | AX160: 0 | AY160: 0 | AZ160: 0 | BA160: 0 | BB160: 0 | BC160: 0 | BD160: 0 | BE160: 0 | BF160: 0 | BG160: 0 | BH160: 0 | BI160: 0 | BJ160: 0 | BK160: 0 | BL160: 0 | BM160: 0 | BN160: 0
B161: 159 | E161: 159 | S161: 0 | T161: 0 | U161: 0 | V161: 0 | W161: 0 | X161: 0 | Y161: 0 | Z161: 0 | AA161: 0 | AB161: 0 | AC161: 0 | AD161: 0 | AE161: 0 | AF161: 0 | AG161: 0 | AH161: 0 | AI161: 0 | AJ161: 0 | AK161: 0 | AL161: 0 | AM161: 0 | AS161: 0 | AT161: 0 | AU161: 0 | AV161: 0 | AW161: 0 | AX161: 0 | AY161: 0 | AZ161: 0 | BA161: 0 | BB161: 0 | BC161: 0 | BD161: 0 | BE161: 0 | BF161: 0 | BG161: 0 | BH161: 0 | BI161: 0 | BJ161: 0 | BK161: 0 | BL161: 0 | BM161: 0 | BN161: 0
B162: 160 | E162: 160 | S162: 0 | T162: 0 | U162: 0 | V162: 0 | W162: 0 | X162: 0 | Y162: 0 | Z162: 0 | AA162: 0 | AB162: 0 | AC162: 0 | AD162: 0 | AE162: 0 | AF162: 0 | AG162: 0 | AH162: 0 | AI162: 0 | AJ162: 0 | AK162: 0 | AL162: 0 | AM162: 0 | AS162: 0 | AT162: 0 | AU162: 0 | AV162: 0 | AW162: 0 | AX162: 0 | AY162: 0 | AZ162: 0 | BA162: 0 | BB162: 0 | BC162: 0 | BD162: 0 | BE162: 0 | BF162: 0 | BG162: 0 | BH162: 0 | BI162: 0 | BJ162: 0 | BK162: 0 | BL162: 0 | BM162: 0 | BN162: 0
B163: 161 | E163: 161 | S163: 0 | T163: 0 | U163: 0 | V163: 0 | W163: 0 | X163: 0 | Y163: 0 | Z163: 0 | AA163: 0 | AB163: 0 | AC163: 0 | AD163: 0 | AE163: 0 | AF163: 0 | AG163: 0 | AH163: 0 | AI163: 0 | AJ163: 0 | AK163: 0 | AL163: 0 | AM163: 0 | AS163: 0 | AT163: 0 | AU163: 0 | AV163: 0 | AW163: 0 | AX163: 0 | AY163: 0 | AZ163: 0 | BA163: 0 | BB163: 0 | BC163: 0 | BD163: 0 | BE163: 0 | BF163: 0 | BG163: 0 | BH163: 0 | BI163: 0 | BJ163: 0 | BK163: 0 | BL163: 0 | BM163: 0 | BN163: 0
B164: 162 | E164: 162 | S164: 0 | T164: 0 | U164: 0 | V164: 0 | W164: 0 | X164: 0 | Y164: 0 | Z164: 0 | AA164: 0 | AB164: 0 | AC164: 0 | AD164: 0 | AE164: 0 | AF164: 0 | AG164: 0 | AH164: 0 | AI164: 0 | AJ164: 0 | AK164: 0 | AL164: 0 | AM164: 0 | AS164: 0 | AT164: 0 | AU164: 0 | AV164: 0 | AW164: 0 | AX164: 0 | AY164: 0 | AZ164: 0 | BA164: 0 | BB164: 0 | BC164: 0 | BD164: 0 | BE164: 0 | BF164: 0 | BG164: 0 | BH164: 0 | BI164: 0 | BJ164: 0 | BK164: 0 | BL164: 0 | BM164: 0 | BN164: 0
B165: 163 | E165: 163 | S165: 0 | T165: 0 | U165: 0 | V165: 0 | W165: 0 | X165: 0 | Y165: 0 | Z165: 0 | AA165: 0 | AB165: 0 | AC165: 0 | AD165: 0 | AE165: 0 | AF165: 0 | AG165: 0 | AH165: 0 | AI165: 0 | AJ165: 0 | AK165: 0 | AL165: 0 | AM165: 0 | AS165: 0 | AT165: 0 | AU165: 0 | AV165: 0 | AW165: 0 | AX165: 0 | AY165: 0 | AZ165: 0 | BA165: 0 | BB165: 0 | BC165: 0 | BD165: 0 | BE165: 0 | BF165: 0 | BG165: 0 | BH165: 0 | BI165: 0 | BJ165: 0 | BK165: 0 | BL165: 0 | BM165: 0 | BN165: 0
B166: 164 | E166: 164 | S166: 0 | T166: 0 | U166: 0 | V166: 0 | W166: 0 | X166: 0 | Y166: 0 | Z166: 0 | AA166: 0 | AB166: 0 | AC166: 0 | AD166: 0 | AE166: 0 | AF166: 0 | AG166: 0 | AH166: 0 | AI166: 0 | AJ166: 0 | AK166: 0 | AL166: 0 | AM166: 0 | AS166: 0 | AT166: 0 | AU166: 0 | AV166: 0 | AW166: 0 | AX166: 0 | AY166: 0 | AZ166: 0 | BA166: 0 | BB166: 0 | BC166: 0 | BD166: 0 | BE166: 0 | BF166: 0 | BG166: 0 | BH166: 0 | BI166: 0 | BJ166: 0 | BK166: 0 | BL166: 0 | BM166: 0 | BN166: 0
B167: 165 | E167: 165 | S167: 0 | T167: 0 | U167: 0 | V167: 0 | W167: 0 | X167: 0 | Y167: 0 | Z167: 0 | AA167: 0 | AB167: 0 | AC167: 0 | AD167: 0 | AE167: 0 | AF167: 0 | AG167: 0 | AH167: 0 | AI167: 0 | AJ167: 0 | AK167: 0 | AL167: 0 | AM167: 0 | AS167: 0 | AT167: 0 | AU167: 0 | AV167: 0 | AW167: 0 | AX167: 0 | AY167: 0 | AZ167: 0 | BA167: 0 | BB167: 0 | BC167: 0 | BD167: 0 | BE167: 0 | BF167: 0 | BG167: 0 | BH167: 0 | BI167: 0 | BJ167: 0 | BK167: 0 | BL167: 0 | BM167: 0 | BN167: 0
B168: 166 | E168: 166 | F168: =IF(ISBLANK(D168),"",IF(D168=D167,F167,IF(D168=D169,IF(D169=D170,IF(D170=D171,IF(D171=D172,IF(D172=D173,AS168,(SUM(E168:E172)/5)),(SUM(E168:E171)/4)),(SUM(E168:E170)/3)),(SUM(E168:E169)/2)),E168))) ->  | G168: =IF(ISBLANK(C168),"",ABS(A168-F168)) ->  | H168: =IF(ISBLANK(C168),"",G168^2) ->  | S168: 0 | T168: 0 | U168: 0 | V168: 0 | W168: 0 | X168: 0 | Y168: 0 | Z168: 0 | AA168: 0 | AB168: 0 | AC168: 0 | AD168: 0 | AE168: 0 | AF168: 0 | AG168: 0 | AH168: 0 | AI168: 0 | AJ168: 0 | AK168: 0 | AL168: 0 | AM168: 0 | AS168: 0 | AT168: 0 | AU168: 0 | AV168: 0 | AW168: 0 | AX168: 0 | AY168: 0 | AZ168: 0 | BA168: 0 | BB168: 0 | BC168: 0 | BD168: 0 | BE168: 0 | BF168: 0 | BG168: 0 | BH168: 0 | BI168: 0 | BJ168: 0 | BK168: 0 | BL168: 0 | BM168: 0 | BN168: 0
B169: 167 | E169: 167 | S169: 0 | T169: 0 | U169: 0 | V169: 0 | W169: 0 | X169: 0 | Y169: 0 | Z169: 0 | AA169: 0 | AB169: 0 | AC169: 0 | AD169: 0 | AE169: 0 | AF169: 0 | AG169: 0 | AH169: 0 | AI169: 0 | AJ169: 0 | AK169: 0 | AL169: 0 | AM169: 0 | AS169: 0 | AT169: 0 | AU169: 0 | AV169: 0 | AW169: 0 | AX169: 0 | AY169: 0 | AZ169: 0 | BA169: 0 | BB169: 0 | BC169: 0 | BD169: 0 | BE169: 0 | BF169: 0 | BG169: 0 | BH169: 0 | BI169: 0 | BJ169: 0 | BK169: 0 | BL169: 0 | BM169: 0 | BN169: 0
B170: 168 | E170: 168 | S170: 0 | T170: 0 | U170: 0 | V170: 0 | W170: 0 | X170: 0 | Y170: 0 | Z170: 0 | AA170: 0 | AB170: 0 | AC170: 0 | AD170: 0 | AE170: 0 | AF170: 0 | AG170: 0 | AH170: 0 | AI170: 0 | AJ170: 0 | AK170: 0 | AL170: 0 | AM170: 0 | AS170: 0 | AT170: 0 | AU170: 0 | AV170: 0 | AW170: 0 | AX170: 0 | AY170: 0 | AZ170: 0 | BA170: 0 | BB170: 0 | BC170: 0 | BD170: 0 | BE170: 0 | BF170: 0 | BG170: 0 | BH170: 0 | BI170: 0 | BJ170: 0 | BK170: 0 | BL170: 0 | BM170: 0 | BN170: 0
B171: 169 | E171: 169 | S171: 0 | T171: 0 | U171: 0 | V171: 0 | W171: 0 | X171: 0 | Y171: 0 | Z171: 0 | AA171: 0 | AB171: 0 | AC171: 0 | AD171: 0 | AE171: 0 | AF171: 0 | AG171: 0 | AH171: 0 | AI171: 0 | AJ171: 0 | AK171: 0 | AL171: 0 | AM171: 0 | AS171: 0 | AT171: 0 | AU171: 0 | AV171: 0 | AW171: 0 | AX171: 0 | AY171: 0 | AZ171: 0 | BA171: 0 | BB171: 0 | BC171: 0 | BD171: 0 | BE171: 0 | BF171: 0 | BG171: 0 | BH171: 0 | BI171: 0 | BJ171: 0 | BK171: 0 | BL171: 0 | BM171: 0 | BN171: 0
B172: 170 | E172: 170 | S172: 0 | T172: 0 | U172: 0 | V172: 0 | W172: 0 | X172: 0 | Y172: 0 | Z172: 0 | AA172: 0 | AB172: 0 | AC172: 0 | AD172: 0 | AE172: 0 | AF172: 0 | AG172: 0 | AH172: 0 | AI172: 0 | AJ172: 0 | AK172: 0 | AL172: 0 | AM172: 0 | AS172: 0 | AT172: 0 | AU172: 0 | AV172: 0 | AW172: 0 | AX172: 0 | AY172: 0 | AZ172: 0 | BA172: 0 | BB172: 0 | BC172: 0 | BD172: 0 | BE172: 0 | BF172: 0 | BG172: 0 | BH172: 0 | BI172: 0 | BJ172: 0 | BK172: 0 | BL172: 0 | BM172: 0 | BN172: 0
B173: 171 | E173: 171 | S173: 0 | T173: 0 | U173: 0 | V173: 0 | W173: 0 | X173: 0 | Y173: 0 | Z173: 0 | AA173: 0 | AB173: 0 | AC173: 0 | AD173: 0 | AE173: 0 | AF173: 0 | AG173: 0 | AH173: 0 | AI173: 0 | AJ173: 0 | AK173: 0 | AL173: 0 | AM173: 0 | AS173: 0 | AT173: 0 | AU173: 0 | AV173: 0 | AW173: 0 | AX173: 0 | AY173: 0 | AZ173: 0 | BA173: 0 | BB173: 0 | BC173: 0 | BD173: 0 | BE173: 0 | BF173: 0 | BG173: 0 | BH173: 0 | BI173: 0 | BJ173: 0 | BK173: 0 | BL173: 0 | BM173: 0 | BN173: 0
B174: 172 | E174: 172 | S174: 0 | T174: 0 | U174: 0 | V174: 0 | W174: 0 | X174: 0 | Y174: 0 | Z174: 0 | AA174: 0 | AB174: 0 | AC174: 0 | AD174: 0 | AE174: 0 | AF174: 0 | AG174: 0 | AH174: 0 | AI174: 0 | AJ174: 0 | AK174: 0 | AL174: 0 | AM174: 0 | AS174: 0 | AT174: 0 | AU174: 0 | AV174: 0 | AW174: 0 | AX174: 0 | AY174: 0 | AZ174: 0 | BA174: 0 | BB174: 0 | BC174: 0 | BD174: 0 | BE174: 0 | BF174: 0 | BG174: 0 | BH174: 0 | BI174: 0 | BJ174: 0 | BK174: 0 | BL174: 0 | BM174: 0 | BN174: 0
B175: 173 | E175: 173 | S175: 0 | T175: 0 | U175: 0 | V175: 0 | W175: 0 | X175: 0 | Y175: 0 | Z175: 0 | AA175: 0 | AB175: 0 | AC175: 0 | AD175: 0 | AE175: 0 | AF175: 0 | AG175: 0 | AH175: 0 | AI175: 0 | AJ175: 0 | AK175: 0 | AL175: 0 | AM175: 0 | AS175: 0 | AT175: 0 | AU175: 0 | AV175: 0 | AW175: 0 | AX175: 0 | AY175: 0 | AZ175: 0 | BA175: 0 | BB175: 0 | BC175: 0 | BD175: 0 | BE175: 0 | BF175: 0 | BG175: 0 | BH175: 0 | BI175: 0 | BJ175: 0 | BK175: 0 | BL175: 0 | BM175: 0 | BN175: 0
B176: 174 | E176: 174 | S176: 0 | T176: 0 | U176: 0 | V176: 0 | W176: 0 | X176: 0 | Y176: 0 | Z176: 0 | AA176: 0 | AB176: 0 | AC176: 0 | AD176: 0 | AE176: 0 | AF176: 0 | AG176: 0 | AH176: 0 | AI176: 0 | AJ176: 0 | AK176: 0 | AL176: 0 | AM176: 0 | AS176: 0 | AT176: 0 | AU176: 0 | AV176: 0 | AW176: 0 | AX176: 0 | AY176: 0 | AZ176: 0 | BA176: 0 | BB176: 0 | BC176: 0 | BD176: 0 | BE176: 0 | BF176: 0 | BG176: 0 | BH176: 0 | BI176: 0 | BJ176: 0 | BK176: 0 | BL176: 0 | BM176: 0 | BN176: 0
B177: 175 | E177: 175 | S177: 0 | T177: 0 | U177: 0 | V177: 0 | W177: 0 | X177: 0 | Y177: 0 | Z177: 0 | AA177: 0 | AB177: 0 | AC177: 0 | AD177: 0 | AE177: 0 | AF177: 0 | AG177: 0 | AH177: 0 | AI177: 0 | AJ177: 0 | AK177: 0 | AL177: 0 | AM177: 0 | AS177: 0 | AT177: 0 | AU177: 0 | AV177: 0 | AW177: 0 | AX177: 0 | AY177: 0 | AZ177: 0 | BA177: 0 | BB177: 0 | BC177: 0 | BD177: 0 | BE177: 0 | BF177: 0 | BG177: 0 | BH177: 0 | BI177: 0 | BJ177: 0 | BK177: 0 | BL177: 0 | BM177: 0 | BN177: 0
B178: 176 | E178: 176 | S178: 0 | T178: 0 | U178: 0 | V178: 0 | W178: 0 | X178: 0 | Y178: 0 | Z178: 0 | AA178: 0 | AB178: 0 | AC178: 0 | AD178: 0 | AE178: 0 | AF178: 0 | AG178: 0 | AH178: 0 | AI178: 0 | AJ178: 0 | AK178: 0 | AL178: 0 | AM178: 0 | AS178: 0 | AT178: 0 | AU178: 0 | AV178: 0 | AW178: 0 | AX178: 0 | AY178: 0 | AZ178: 0 | BA178: 0 | BB178: 0 | BC178: 0 | BD178: 0 | BE178: 0 | BF178: 0 | BG178: 0 | BH178: 0 | BI178: 0 | BJ178: 0 | BK178: 0 | BL178: 0 | BM178: 0 | BN178: 0
B179: 177 | E179: 177 | S179: 0 | T179: 0 | U179: 0 | V179: 0 | W179: 0 | X179: 0 | Y179: 0 | Z179: 0 | AA179: 0 | AB179: 0 | AC179: 0 | AD179: 0 | AE179: 0 | AF179: 0 | AG179: 0 | AH179: 0 | AI179: 0 | AJ179: 0 | AK179: 0 | AL179: 0 | AM179: 0 | AS179: 0 | AT179: 0 | AU179: 0 | AV179: 0 | AW179: 0 | AX179: 0 | AY179: 0 | AZ179: 0 | BA179: 0 | BB179: 0 | BC179: 0 | BD179: 0 | BE179: 0 | BF179: 0 | BG179: 0 | BH179: 0 | BI179: 0 | BJ179: 0 | BK179: 0 | BL179: 0 | BM179: 0 | BN179: 0
B180: 178 | E180: 178 | S180: 0 | T180: 0 | U180: 0 | V180: 0 | W180: 0 | X180: 0 | Y180: 0 | Z180: 0 | AA180: 0 | AB180: 0 | AC180: 0 | AD180: 0 | AE180: 0 | AF180: 0 | AG180: 0 | AH180: 0 | AI180: 0 | AJ180: 0 | AK180: 0 | AL180: 0 | AM180: 0 | AS180: 0 | AT180: 0 | AU180: 0 | AV180: 0 | AW180: 0 | AX180: 0 | AY180: 0 | AZ180: 0 | BA180: 0 | BB180: 0 | BC180: 0 | BD180: 0 | BE180: 0 | BF180: 0 | BG180: 0 | BH180: 0 | BI180: 0 | BJ180: 0 | BK180: 0 | BL180: 0 | BM180: 0 | BN180: 0
B181: 179 | E181: 179 | S181: 0 | T181: 0 | U181: 0 | V181: 0 | W181: 0 | X181: 0 | Y181: 0 | Z181: 0 | AA181: 0 | AB181: 0 | AC181: 0 | AD181: 0 | AE181: 0 | AF181: 0 | AG181: 0 | AH181: 0 | AI181: 0 | AJ181: 0 | AK181: 0 | AL181: 0 | AM181: 0 | AS181: 0 | AT181: 0 | AU181: 0 | AV181: 0 | AW181: 0 | AX181: 0 | AY181: 0 | AZ181: 0 | BA181: 0 | BB181: 0 | BC181: 0 | BD181: 0 | BE181: 0 | BF181: 0 | BG181: 0 | BH181: 0 | BI181: 0 | BJ181: 0 | BK181: 0 | BL181: 0 | BM181: 0 | BN181: 0
B182: 180 | E182: 180 | S182: 0 | T182: 0 | U182: 0 | V182: 0 | W182: 0 | X182: 0 | Y182: 0 | Z182: 0 | AA182: 0 | AB182: 0 | AC182: 0 | AD182: 0 | AE182: 0 | AF182: 0 | AG182: 0 | AH182: 0 | AI182: 0 | AJ182: 0 | AK182: 0 | AL182: 0 | AM182: 0 | AS182: 0 | AT182: 0 | AU182: 0 | AV182: 0 | AW182: 0 | AX182: 0 | AY182: 0 | AZ182: 0 | BA182: 0 | BB182: 0 | BC182: 0 | BD182: 0 | BE182: 0 | BF182: 0 | BG182: 0 | BH182: 0 | BI182: 0 | BJ182: 0 | BK182: 0 | BL182: 0 | BM182: 0 | BN182: 0
B183: 181 | E183: 181 | S183: 0 | T183: 0 | U183: 0 | V183: 0 | W183: 0 | X183: 0 | Y183: 0 | Z183: 0 | AA183: 0 | AB183: 0 | AC183: 0 | AD183: 0 | AE183: 0 | AF183: 0 | AG183: 0 | AH183: 0 | AI183: 0 | AJ183: 0 | AK183: 0 | AL183: 0 | AM183: 0 | AS183: 0 | AT183: 0 | AU183: 0 | AV183: 0 | AW183: 0 | AX183: 0 | AY183: 0 | AZ183: 0 | BA183: 0 | BB183: 0 | BC183: 0 | BD183: 0 | BE183: 0 | BF183: 0 | BG183: 0 | BH183: 0 | BI183: 0 | BJ183: 0 | BK183: 0 | BL183: 0 | BM183: 0 | BN183: 0
B184: 182 | E184: 182 | S184: 0 | T184: 0 | U184: 0 | V184: 0 | W184: 0 | X184: 0 | Y184: 0 | Z184: 0 | AA184: 0 | AB184: 0 | AC184: 0 | AD184: 0 | AE184: 0 | AF184: 0 | AG184: 0 | AH184: 0 | AI184: 0 | AJ184: 0 | AK184: 0 | AL184: 0 | AM184: 0 | AS184: 0 | AT184: 0 | AU184: 0 | AV184: 0 | AW184: 0 | AX184: 0 | AY184: 0 | AZ184: 0 | BA184: 0 | BB184: 0 | BC184: 0 | BD184: 0 | BE184: 0 | BF184: 0 | BG184: 0 | BH184: 0 | BI184: 0 | BJ184: 0 | BK184: 0 | BL184: 0 | BM184: 0 | BN184: 0
B185: 183 | E185: 183 | S185: 0 | T185: 0 | U185: 0 | V185: 0 | W185: 0 | X185: 0 | Y185: 0 | Z185: 0 | AA185: 0 | AB185: 0 | AC185: 0 | AD185: 0 | AE185: 0 | AF185: 0 | AG185: 0 | AH185: 0 | AI185: 0 | AJ185: 0 | AK185: 0 | AL185: 0 | AM185: 0 | AS185: 0 | AT185: 0 | AU185: 0 | AV185: 0 | AW185: 0 | AX185: 0 | AY185: 0 | AZ185: 0 | BA185: 0 | BB185: 0 | BC185: 0 | BD185: 0 | BE185: 0 | BF185: 0 | BG185: 0 | BH185: 0 | BI185: 0 | BJ185: 0 | BK185: 0 | BL185: 0 | BM185: 0 | BN185: 0
B186: 184 | E186: 184 | S186: 0 | T186: 0 | U186: 0 | V186: 0 | W186: 0 | X186: 0 | Y186: 0 | Z186: 0 | AA186: 0 | AB186: 0 | AC186: 0 | AD186: 0 | AE186: 0 | AF186: 0 | AG186: 0 | AH186: 0 | AI186: 0 | AJ186: 0 | AK186: 0 | AL186: 0 | AM186: 0 | AS186: 0 | AT186: 0 | AU186: 0 | AV186: 0 | AW186: 0 | AX186: 0 | AY186: 0 | AZ186: 0 | BA186: 0 | BB186: 0 | BC186: 0 | BD186: 0 | BE186: 0 | BF186: 0 | BG186: 0 | BH186: 0 | BI186: 0 | BJ186: 0 | BK186: 0 | BL186: 0 | BM186: 0 | BN186: 0
B187: 185 | E187: 185 | S187: 0 | T187: 0 | U187: 0 | V187: 0 | W187: 0 | X187: 0 | Y187: 0 | Z187: 0 | AA187: 0 | AB187: 0 | AC187: 0 | AD187: 0 | AE187: 0 | AF187: 0 | AG187: 0 | AH187: 0 | AI187: 0 | AJ187: 0 | AK187: 0 | AL187: 0 | AM187: 0 | AS187: 0 | AT187: 0 | AU187: 0 | AV187: 0 | AW187: 0 | AX187: 0 | AY187: 0 | AZ187: 0 | BA187: 0 | BB187: 0 | BC187: 0 | BD187: 0 | BE187: 0 | BF187: 0 | BG187: 0 | BH187: 0 | BI187: 0 | BJ187: 0 | BK187: 0 | BL187: 0 | BM187: 0 | BN187: 0
B188: 186 | E188: 186 | S188: 0 | T188: 0 | U188: 0 | V188: 0 | W188: 0 | X188: 0 | Y188: 0 | Z188: 0 | AA188: 0 | AB188: 0 | AC188: 0 | AD188: 0 | AE188: 0 | AF188: 0 | AG188: 0 | AH188: 0 | AI188: 0 | AJ188: 0 | AK188: 0 | AL188: 0 | AM188: 0 | AS188: 0 | AT188: 0 | AU188: 0 | AV188: 0 | AW188: 0 | AX188: 0 | AY188: 0 | AZ188: 0 | BA188: 0 | BB188: 0 | BC188: 0 | BD188: 0 | BE188: 0 | BF188: 0 | BG188: 0 | BH188: 0 | BI188: 0 | BJ188: 0 | BK188: 0 | BL188: 0 | BM188: 0 | BN188: 0
B189: 187 | E189: 187 | S189: 0 | T189: 0 | U189: 0 | V189: 0 | W189: 0 | X189: 0 | Y189: 0 | Z189: 0 | AA189: 0 | AB189: 0 | AC189: 0 | AD189: 0 | AE189: 0 | AF189: 0 | AG189: 0 | AH189: 0 | AI189: 0 | AJ189: 0 | AK189: 0 | AL189: 0 | AM189: 0 | AS189: 0 | AT189: 0 | AU189: 0 | AV189: 0 | AW189: 0 | AX189: 0 | AY189: 0 | AZ189: 0 | BA189: 0 | BB189: 0 | BC189: 0 | BD189: 0 | BE189: 0 | BF189: 0 | BG189: 0 | BH189: 0 | BI189: 0 | BJ189: 0 | BK189: 0 | BL189: 0 | BM189: 0 | BN189: 0
B190: 188 | E190: 188 | S190: 0 | T190: 0 | U190: 0 | V190: 0 | W190: 0 | X190: 0 | Y190: 0 | Z190: 0 | AA190: 0 | AB190: 0 | AC190: 0 | AD190: 0 | AE190: 0 | AF190: 0 | AG190: 0 | AH190: 0 | AI190: 0 | AJ190: 0 | AK190: 0 | AL190: 0 | AM190: 0 | AS190: 0 | AT190: 0 | AU190: 0 | AV190: 0 | AW190: 0 | AX190: 0 | AY190: 0 | AZ190: 0 | BA190: 0 | BB190: 0 | BC190: 0 | BD190: 0 | BE190: 0 | BF190: 0 | BG190: 0 | BH190: 0 | BI190: 0 | BJ190: 0 | BK190: 0 | BL190: 0 | BM190: 0 | BN190: 0
B191: 189 | E191: 189 | S191: 0 | T191: 0 | U191: 0 | V191: 0 | W191: 0 | X191: 0 | Y191: 0 | Z191: 0 | AA191: 0 | AB191: 0 | AC191: 0 | AD191: 0 | AE191: 0 | AF191: 0 | AG191: 0 | AH191: 0 | AI191: 0 | AJ191: 0 | AK191: 0 | AL191: 0 | AM191: 0 | AS191: 0 | AT191: 0 | AU191: 0 | AV191: 0 | AW191: 0 | AX191: 0 | AY191: 0 | AZ191: 0 | BA191: 0 | BB191: 0 | BC191: 0 | BD191: 0 | BE191: 0 | BF191: 0 | BG191: 0 | BH191: 0 | BI191: 0 | BJ191: 0 | BK191: 0 | BL191: 0 | BM191: 0 | BN191: 0
B192: 190 | E192: 190 | S192: 0 | T192: 0 | U192: 0 | V192: 0 | W192: 0 | X192: 0 | Y192: 0 | Z192: 0 | AA192: 0 | AB192: 0 | AC192: 0 | AD192: 0 | AE192: 0 | AF192: 0 | AG192: 0 | AH192: 0 | AI192: 0 | AJ192: 0 | AK192: 0 | AL192: 0 | AM192: 0 | AS192: 0 | AT192: 0 | AU192: 0 | AV192: 0 | AW192: 0 | AX192: 0 | AY192: 0 | AZ192: 0 | BA192: 0 | BB192: 0 | BC192: 0 | BD192: 0 | BE192: 0 | BF192: 0 | BG192: 0 | BH192: 0 | BI192: 0 | BJ192: 0 | BK192: 0 | BL192: 0 | BM192: 0 | BN192: 0
B193: 191 | E193: 191 | S193: 0 | T193: 0 | U193: 0 | V193: 0 | W193: 0 | X193: 0 | Y193: 0 | Z193: 0 | AA193: 0 | AB193: 0 | AC193: 0 | AD193: 0 | AE193: 0 | AF193: 0 | AG193: 0 | AH193: 0 | AI193: 0 | AJ193: 0 | AK193: 0 | AL193: 0 | AM193: 0 | AS193: 0 | AT193: 0 | AU193: 0 | AV193: 0 | AW193: 0 | AX193: 0 | AY193: 0 | AZ193: 0 | BA193: 0 | BB193: 0 | BC193: 0 | BD193: 0 | BE193: 0 | BF193: 0 | BG193: 0 | BH193: 0 | BI193: 0 | BJ193: 0 | BK193: 0 | BL193: 0 | BM193: 0 | BN193: 0
B194: 192 | E194: 192 | S194: 0 | T194: 0 | U194: 0 | V194: 0 | W194: 0 | X194: 0 | Y194: 0 | Z194: 0 | AA194: 0 | AB194: 0 | AC194: 0 | AD194: 0 | AE194: 0 | AF194: 0 | AG194: 0 | AH194: 0 | AI194: 0 | AJ194: 0 | AK194: 0 | AL194: 0 | AM194: 0 | AS194: 0 | AT194: 0 | AU194: 0 | AV194: 0 | AW194: 0 | AX194: 0 | AY194: 0 | AZ194: 0 | BA194: 0 | BB194: 0 | BC194: 0 | BD194: 0 | BE194: 0 | BF194: 0 | BG194: 0 | BH194: 0 | BI194: 0 | BJ194: 0 | BK194: 0 | BL194: 0 | BM194: 0 | BN194: 0
B195: 193 | E195: 193 | S195: 0 | T195: 0 | U195: 0 | V195: 0 | W195: 0 | X195: 0 | Y195: 0 | Z195: 0 | AA195: 0 | AB195: 0 | AC195: 0 | AD195: 0 | AE195: 0 | AF195: 0 | AG195: 0 | AH195: 0 | AI195: 0 | AJ195: 0 | AK195: 0 | AL195: 0 | AM195: 0 | AS195: 0 | AT195: 0 | AU195: 0 | AV195: 0 | AW195: 0 | AX195: 0 | AY195: 0 | AZ195: 0 | BA195: 0 | BB195: 0 | BC195: 0 | BD195: 0 | BE195: 0 | BF195: 0 | BG195: 0 | BH195: 0 | BI195: 0 | BJ195: 0 | BK195: 0 | BL195: 0 | BM195: 0 | BN195: 0
B196: 194 | E196: 194 | S196: 0 | T196: 0 | U196: 0 | V196: 0 | W196: 0 | X196: 0 | Y196: 0 | Z196: 0 | AA196: 0 | AB196: 0 | AC196: 0 | AD196: 0 | AE196: 0 | AF196: 0 | AG196: 0 | AH196: 0 | AI196: 0 | AJ196: 0 | AK196: 0 | AL196: 0 | AM196: 0 | AS196: 0 | AT196: 0 | AU196: 0 | AV196: 0 | AW196: 0 | AX196: 0 | AY196: 0 | AZ196: 0 | BA196: 0 | BB196: 0 | BC196: 0 | BD196: 0 | BE196: 0 | BF196: 0 | BG196: 0 | BH196: 0 | BI196: 0 | BJ196: 0 | BK196: 0 | BL196: 0 | BM196: 0 | BN196: 0
B197: 195 | E197: 195 | R197: =IF(ISBLANK(C197),"",IF(C197=C196,R196,IF(C197=C198,IF(C198=C199,IF(C199=C200,IF(C200=C201,IF(C201=C202,S197,(SUM(B197:B201)/5)),(SUM(B197:B200)/4)),(SUM(B197:B199)/3)),(SUM(B197:B198)/2)),B197))) ->  | S197: =IF(C202=C203,IF(C203=C204,IF(C204=C205,IF(C205=C206,IF(C206=C207,IF(C207=C208,IF(C208=C209,T197,(SUM(B197:B208)/12)),(SUM(B197:B207)/11)),(SUM(B197:B206)/10)),(SUM(B197:B205)/9)),(SUM(B197:B204)/8)),(SUM(B197:B203)/7)),(SUM(B197:B202)/6)) -> 0 | T197: =IF($C209=$C210,IF($C210=$C211,IF($C211=$C212,IF($C212=$C213,IF($C213=$C214,IF($C214=$C215,IF($C215=$C216,U197,(SUM($B197:$B215)/19)),(SUM($B197:$B214)/18)),(SUM($B197:$B213)/17)),(SUM($B197:$B212)/16)),(SUM($B197:$B211)/15)),(SUM($B197:$B210)/14)),(SUM($B197:$B209)/13)) -> 0 | U197: =IF($C216=$C217,IF($C217=$C218,IF($C218=$C219,IF($C219=$C220,IF($C220=$C221,IF($C221=$C222,IF($C222=$C223,V197,(SUM($B197:$B222)/26)),(SUM($B197:$B221)/25)),(SUM($B197:$B220)/24)),(SUM($B197:$B219)/23)),(SUM($B197:$B218)/22)),(SUM($B197:$B217)/21)),(SUM($B197:$B216)/20)) -> 0 | V197: =IF($C223=$C224,IF($C224=$C225,IF($C225=$C226,IF($C226=$C227,IF($C227=$C228,IF($C228=$C229,IF($C229=$C230,W197,(SUM($B197:$B229)/33)),(SUM($B197:$B228)/32)),(SUM($B197:$B227)/31)),(SUM($B197:$B226)/30)),(SUM($B197:$B225)/29)),(SUM($B197:$B224)/28)),(SUM($B197:$B223)/27)) -> 0 | W197: =IF($C230=$C231,IF($C231=$C232,IF($C232=$C233,IF($C233=$C234,IF($C234=$C235,IF($C235=$C236,IF($C236=$C237,X197,(SUM($B197:$B236)/40)),(SUM($B197:$B235)/39)),(SUM($B197:$B234)/38)),(SUM($B197:$B233)/37)),(SUM($B197:$B232)/36)),(SUM($B197:$B231)/35)),(SUM($B197:$B230)/34)) -> 0 | X197: =IF($C237=$C238,IF($C238=$C239,IF($C239=$C240,IF($C240=$C241,IF($C241=$C242,IF($C242=$C243,IF($C243=$C244,Y197,(SUM($B197:$B243)/47)),(SUM($B197:$B242)/46)),(SUM($B197:$B241)/45)),(SUM($B197:$B240)/44)),(SUM($B197:$B239)/43)),(SUM($B197:$B238)/42)),(SUM($B197:$B237)/41)) -> 0 | Y197: =IF($C244=$C245,IF($C245=$C246,IF($C246=$C247,IF($C247=$C248,IF($C248=$C249,IF($C249=$C250,IF($C250=$C251,Z197,(SUM($B197:$B250)/54)),(SUM($B197:$B249)/53)),(SUM($B197:$B248)/52)),(SUM($B197:$B247)/51)),(SUM($B197:$B246)/50)),(SUM($B197:$B245)/49)),(SUM($B197:$B244)/48)) -> 0 | Z197: =IF($C251=$C252,IF($C252=$C253,IF($C253=$C254,IF($C254=$C255,IF($C255=$C256,IF($C256=$C257,IF($C257=$C258,AA197,(SUM($B197:$B257)/61)),(SUM($B197:$B256)/60)),(SUM($B197:$B255)/59)),(SUM($B197:$B254)/58)),(SUM($B197:$B253)/57)),(SUM($B197:$B252)/56)),(SUM($B197:$B251)/55)) -> 0 | AA197: =IF($C258=$C259,IF($C259=$C260,IF($C260=$C261,IF($C261=$C262,IF($C262=$C263,IF($C263=$C264,IF($C264=$C265,AB197,(SUM($B197:$B264)/68)),(SUM($B197:$B263)/67)),(SUM($B197:$B262)/66)),(SUM($B197:$B261)/65)),(SUM($B197:$B260)/64)),(SUM($B197:$B259)/63)),(SUM($B197:$B258)/62)) -> 0 | AB197: =IF($C265=$C266,IF($C266=$C267,IF($C267=$C268,IF($C268=$C269,IF($C269=$C270,IF($C270=$C271,IF($C271=$C272,AC197,(SUM($B197:$B271)/75)),(SUM($B197:$B270)/74)),(SUM($B197:$B269)/73)),(SUM($B197:$B268)/72)),(SUM($B197:$B267)/71)),(SUM($B197:$B266)/70)),(SUM($B197:$B265)/69)) -> 0 | AC197: =IF($C272=$C273,IF($C273=$C274,IF($C274=$C275,IF($C275=$C276,IF($C276=$C277,IF($C277=$C278,IF($C278=$C279,AD197,(SUM($B197:$B278)/82)),(SUM($B197:$B277)/81)),(SUM($B197:$B276)/80)),(SUM($B197:$B275)/79)),(SUM($B197:$B274)/78)),(SUM($B197:$B273)/77)),(SUM($B197:$B272)/76)) -> 0 | AD197: =IF($C279=$C280,IF($C280=$C281,IF($C281=$C282,IF($C282=$C283,IF($C283=$C284,IF($C284=$C285,IF($C285=$C286,AE197,(SUM($B197:$B285)/89)),(SUM($B197:$B284)/88)),(SUM($B197:$B283)/87)),(SUM($B197:$B282)/86)),(SUM($B197:$B281)/85)),(SUM($B197:$B280)/84)),(SUM($B197:$B279)/83)) -> 0 | AE197: =IF($C286=$C287,IF($C287=$C288,IF($C288=$C289,IF($C289=$C290,IF($C290=$C291,IF($C291=$C292,IF($C292=$C293,AF197,(SUM($B197:$B292)/96)),(SUM($B197:$B291)/95)),(SUM($B197:$B290)/94)),(SUM($B197:$B289)/93)),(SUM($B197:$B288)/92)),(SUM($B197:$B287)/91)),(SUM($B197:$B286)/90)) -> 0 | AF197: =IF($C293=$C294,IF($C294=$C295,IF($C295=$C296,IF($C296=$C297,IF($C297=$C298,IF($C298=$C299,IF($C299=$C300,AG197,(SUM($B197:$B299)/103)),(SUM($B197:$B298)/102)),(SUM($B197:$B297)/101)),(SUM($B197:$B296)/100)),(SUM($B197:$B295)/99)),(SUM($B197:$B294)/98)),(SUM($B197:$B293)/97)) -> 0 | AG197: =IF($C300=$C301,IF($C301=$C302,IF($C302=$C303,IF($C303=$C304,IF($C304=$C305,IF($C305=$C306,IF($C306=$C307,AH197,(SUM($B197:$B306)/110)),(SUM($B197:$B305)/109)),(SUM($B197:$B304)/108)),(SUM($B197:$B303)/107)),(SUM($B197:$B302)/106)),(SUM($B197:$B301)/105)),(SUM($B197:$B300)/104)) -> 0 | AH197: =IF($C307=$C308,IF($C308=$C309,IF($C309=$C310,IF($C310=$C311,IF($C311=$C312,IF($C312=$C313,IF($C313=$C314,AI197,(SUM($B197:$B313)/117)),(SUM($B197:$B312)/116)),(SUM($B197:$B311)/115)),(SUM($B197:$B310)/114)),(SUM($B197:$B309)/113)),(SUM($B197:$B308)/112)),(SUM($B197:$B307)/111)) -> 0 | AI197: =IF($C314=$C315,IF($C315=$C316,IF($C316=$C317,IF($C317=$C318,IF($C318=$C319,IF($C319=$C320,IF($C320=$C321,AJ197,(SUM($B197:$B320)/124)),(SUM($B197:$B319)/123)),(SUM($B197:$B318)/122)),(SUM($B197:$B317)/121)),(SUM($B197:$B316)/120)),(SUM($B197:$B315)/119)),(SUM($B197:$B314)/118)) -> 0 | AJ197: =IF($C321=$C322,IF($C322=$C323,IF($C323=$C324,IF($C324=$C325,IF($C325=$C326,IF($C326=$C327,IF($C327=$C328,AK197,(SUM($B197:$B327)/131)),(SUM($B197:$B326)/130)),(SUM($B197:$B325)/129)),(SUM($B197:$B324)/128)),(SUM($B197:$B323)/127)),(SUM($B197:$B322)/126)),(SUM($B197:$B321)/125)) -> 0 | AK197: =IF($C328=$C329,IF($C329=$C330,IF($C330=$C331,IF($C331=$C332,IF($C332=$C333,IF($C333=$C334,IF($C334=$C335,AL197,(SUM($B197:$B334)/138)),(SUM($B197:$B333)/137)),(SUM($B197:$B332)/136)),(SUM($B197:$B331)/135)),(SUM($B197:$B330)/134)),(SUM($B197:$B329)/133)),(SUM($B197:$B328)/132)) -> 0 | AL197: =IF($C335=$C336,IF($C336=$C337,IF($C337=$C338,IF($C338=$C339,IF($C339=$C340,IF($C340=$C341,IF($C341=$C342,AM197,(SUM($B197:$B341)/145)),(SUM($B197:$B340)/144)),(SUM($B197:$B339)/143)),(SUM($B197:$B338)/142)),(SUM($B197:$B337)/141)),(SUM($B197:$B336)/140)),(SUM($B197:$B335)/139)) -> 0 | AM197: =IF($C342=$C343,IF($C343=$C344,IF($C344=$C345,IF($C345=$C346,IF($C346=$C347,IF($C347=$C348,IF($C348=$C349,AN197,(SUM($B197:$B348)/152)),(SUM($B197:$B347)/151)),(SUM($B197:$B346)/150)),(SUM($B197:$B345)/149)),(SUM($B197:$B344)/148)),(SUM($B197:$B343)/147)),(SUM($B197:$B342)/146)) -> 0 | AS197: =IF(D202=D203,IF(D203=D204,IF(D204=D205,IF(D205=D206,IF(D206=D207,IF(D207=D208,IF(D208=D209,AT197,(SUM(E197:E208)/12)),(SUM(E197:E207)/11)),(SUM(E197:E206)/10)),(SUM(E197:E205)/9)),(SUM(E197:E204)/8)),(SUM(E197:E203)/7)),(SUM(E197:E202)/6)) -> 0 | AT197: =IF($D209=$D210,IF($D210=$D211,IF($D211=$D212,IF($D212=$D213,IF($D213=$D214,IF($D214=$D215,IF($D215=$D216,AU197,(SUM($E197:$E215)/19)),(SUM($E197:$E214)/18)),(SUM($E197:$E213)/17)),(SUM($E197:$E212)/16)),(SUM($E197:$E211)/15)),(SUM($E197:$E210)/14)),(SUM($E197:$E209)/13)) -> 0 | AU197: =IF($D216=$D217,IF($D217=$D218,IF($D218=$D219,IF($D219=$D220,IF($D220=$D221,IF($D221=$D222,IF($D222=$D223,AV197,(SUM($E197:$E222)/26)),(SUM($E197:$E221)/25)),(SUM($E197:$E220)/24)),(SUM($E197:$E219)/23)),(SUM($E197:$E218)/22)),(SUM($E197:$E217)/21)),(SUM($E197:$E216)/20)) -> 0 | AV197: =IF($D223=$D224,IF($D224=$D225,IF($D225=$D226,IF($D226=$D227,IF($D227=$D228,IF($D228=$D229,IF($D229=$D230,AW197,(SUM($E197:$E229)/33)),(SUM($E197:$E228)/32)),(SUM($E197:$E227)/31)),(SUM($E197:$E226)/30)),(SUM($E197:$E225)/29)),(SUM($E197:$E224)/28)),(SUM($E197:$E223)/27)) -> 0 | AW197: =IF($D230=$D231,IF($D231=$D232,IF($D232=$D233,IF($D233=$D234,IF($D234=$D235,IF($D235=$D236,IF($D236=$D237,AX197,(SUM($E197:$E236)/40)),(SUM($E197:$E235)/39)),(SUM($E197:$E234)/38)),(SUM($E197:$E233)/37)),(SUM($E197:$E232)/36)),(SUM($E197:$E231)/35)),(SUM($E197:$E230)/34)) -> 0 | AX197: =IF($D237=$D238,IF($D238=$D239,IF($D239=$D240,IF($D240=$D241,IF($D241=$D242,IF($D242=$D243,IF($D243=$D244,AY197,(SUM($E197:$E243)/47)),(SUM($E197:$E242)/46)),(SUM($E197:$E241)/45)),(SUM($E197:$E240)/44)),(SUM($E197:$E239)/43)),(SUM($E197:$E238)/42)),(SUM($E197:$E237)/41)) -> 0 | AY197: =IF($D244=$D245,IF($D245=$D246,IF($D246=$D247,IF($D247=$D248,IF($D248=$D249,IF($D249=$D250,IF($D250=$D251,AZ197,(SUM($E197:$E250)/54)),(SUM($E197:$E249)/53)),(SUM($E197:$E248)/52)),(SUM($E197:$E247)/51)),(SUM($E197:$E246)/50)),(SUM($E197:$E245)/49)),(SUM($E197:$E244)/48)) -> 0 | AZ197: =IF($D251=$D252,IF($D252=$D253,IF($D253=$D254,IF($D254=$D255,IF($D255=$D256,IF($D256=$D257,IF($D257=$D258,BA197,(SUM($E197:$E257)/61)),(SUM($E197:$E256)/60)),(SUM($E197:$E255)/59)),(SUM($E197:$E254)/58)),(SUM($E197:$E253)/57)),(SUM($E197:$E252)/56)),(SUM($E197:$E251)/55)) -> 0 | BA197: =IF($D258=$D259,IF($D259=$D260,IF($D260=$D261,IF($D261=$D262,IF($D262=$D263,IF($D263=$D264,IF($D264=$D265,BB197,(SUM($E197:$E264)/68)),(SUM($E197:$E263)/67)),(SUM($E197:$E262)/66)),(SUM($E197:$E261)/65)),(SUM($E197:$E260)/64)),(SUM($E197:$E259)/63)),(SUM($E197:$E258)/62)) -> 0 | BB197: =IF($D265=$D266,IF($D266=$D267,IF($D267=$D268,IF($D268=$D269,IF($D269=$D270,IF($D270=$D271,IF($D271=$D272,BC197,(SUM($E197:$E271)/75)),(SUM($E197:$E270)/74)),(SUM($E197:$E269)/73)),(SUM($E197:$E268)/72)),(SUM($E197:$E267)/71)),(SUM($E197:$E266)/70)),(SUM($E197:$E265)/69)) -> 0 | BC197: =IF($D272=$D273,IF($D273=$D274,IF($D274=$D275,IF($D275=$D276,IF($D276=$D277,IF($D277=$D278,IF($D278=$D279,BD197,(SUM($E197:$E278)/82)),(SUM($E197:$E277)/81)),(SUM($E197:$E276)/80)),(SUM($E197:$E275)/79)),(SUM($E197:$E274)/78)),(SUM($E197:$E273)/77)),(SUM($E197:$E272)/76)) -> 0 | BD197: =IF($D279=$D280,IF($D280=$D281,IF($D281=$D282,IF($D282=$D283,IF($D283=$D284,IF($D284=$D285,IF($D285=$D286,BE197,(SUM($E197:$E285)/89)),(SUM($E197:$E284)/88)),(SUM($E197:$E283)/87)),(SUM($E197:$E282)/86)),(SUM($E197:$E281)/85)),(SUM($E197:$E280)/84)),(SUM($E197:$E279)/83)) -> 0 | BE197: =IF($D286=$D287,IF($D287=$D288,IF($D288=$D289,IF($D289=$D290,IF($D290=$D291,IF($D291=$D292,IF($D292=$D293,BF197,(SUM($E197:$E292)/96)),(SUM($E197:$E291)/95)),(SUM($E197:$E290)/94)),(SUM($E197:$E289)/93)),(SUM($E197:$E288)/92)),(SUM($E197:$E287)/91)),(SUM($E197:$E286)/90)) -> 0 | BF197: =IF($D293=$D294,IF($D294=$D295,IF($D295=$D296,IF($D296=$D297,IF($D297=$D298,IF($D298=$D299,IF($D299=$D300,BG197,(SUM($E197:$E299)/103)),(SUM($E197:$E298)/102)),(SUM($E197:$E297)/101)),(SUM($E197:$E296)/100)),(SUM($E197:$E295)/99)),(SUM($E197:$E294)/98)),(SUM($E197:$E293)/97)) -> 0 | BG197: =IF($D300=$D301,IF($D301=$D302,IF($D302=$D303,IF($D303=$D304,IF($D304=$D305,IF($D305=$D306,IF($D306=$D307,BH197,(SUM($E197:$E306)/110)),(SUM($E197:$E305)/109)),(SUM($E197:$E304)/108)),(SUM($E197:$E303)/107)),(SUM($E197:$E302)/106)),(SUM($E197:$E301)/105)),(SUM($E197:$E300)/104)) -> 0 | BH197: =IF($D307=$D308,IF($D308=$D309,IF($D309=$D310,IF($D310=$D311,IF($D311=$D312,IF($D312=$D313,IF($D313=$D314,BI197,(SUM($E197:$E313)/117)),(SUM($E197:$E312)/116)),(SUM($E197:$E311)/115)),(SUM($E197:$E310)/114)),(SUM($E197:$E309)/113)),(SUM($E197:$E308)/112)),(SUM($E197:$E307)/111)) -> 0 | BI197: =IF($D314=$D315,IF($D315=$D316,IF($D316=$D317,IF($D317=$D318,IF($D318=$D319,IF($D319=$D320,IF($D320=$D321,BJ197,(SUM($E197:$E320)/124)),(SUM($E197:$E319)/123)),(SUM($E197:$E318)/122)),(SUM($E197:$E317)/121)),(SUM($E197:$E316)/120)),(SUM($E197:$E315)/119)),(SUM($E197:$E314)/118)) -> 0 | BJ197: =IF($D321=$D322,IF($D322=$D323,IF($D323=$D324,IF($D324=$D325,IF($D325=$D326,IF($D326=$D327,IF($D327=$D328,BK197,(SUM($E197:$E327)/131)),(SUM($E197:$E326)/130)),(SUM($E197:$E325)/129)),(SUM($E197:$E324)/128)),(SUM($E197:$E323)/127)),(SUM($E197:$E322)/126)),(SUM($E197:$E321)/125)) -> 0 | BK197: =IF($D328=$D329,IF($D329=$D330,IF($D330=$D331,IF($D331=$D332,IF($D332=$D333,IF($D333=$D334,IF($D334=$D335,BL197,(SUM($E197:$E334)/138)),(SUM($E197:$E333)/137)),(SUM($E197:$E332)/136)),(SUM($E197:$E331)/135)),(SUM($E197:$E330)/134)),(SUM($E197:$E329)/133)),(SUM($E197:$E328)/132)) -> 0 | BL197: =IF($D335=$D336,IF($D336=$D337,IF($D337=$D338,IF($D338=$D339,IF($D339=$D340,IF($D340=$D341,IF($D341=$D342,BM197,(SUM($E197:$E341)/145)),(SUM($E197:$E340)/144)),(SUM($E197:$E339)/143)),(SUM($E197:$E338)/142)),(SUM($E197:$E337)/141)),(SUM($E197:$E336)/140)),(SUM($E197:$E335)/139)) -> 0 | BM197: =IF($D342=$D343,IF($D343=$D344,IF($D344=$D345,IF($D345=$D346,IF($D346=$D347,IF($D347=$D348,IF($D348=$D349,BN197,(SUM($E197:$E348)/152)),(SUM($E197:$E347)/151)),(SUM($E197:$E346)/150)),(SUM($E197:$E345)/149)),(SUM($E197:$E344)/148)),(SUM($E197:$E343)/147)),(SUM($E197:$E342)/146)) -> 0 | BN197: =IF($D349=$D350,IF($D350=$D351,IF($D351=$D352,IF($D352=$D353,IF($D353=$D354,IF($D354=$D355,IF($D355=$D356,BO197,(SUM($E197:$E355)/159)),(SUM($E197:$E354)/158)),(SUM($E197:$E353)/157)),(SUM($E197:$E352)/156)),(SUM($E197:$E351)/155)),(SUM($E197:$E350)/154)),(SUM($E197:$E349)/153)) -> 0
B198: 196 | E198: 196 | S198: 0 | T198: 0 | U198: 0 | V198: 0 | W198: 0 | X198: 0 | Y198: 0 | Z198: 0 | AA198: 0 | AB198: 0 | AC198: 0 | AD198: 0 | AE198: 0 | AF198: 0 | AG198: 0 | AH198: 0 | AI198: 0 | AJ198: 0 | AK198: 0 | AL198: 0 | AM198: 0 | AS198: 0 | AT198: 0 | AU198: 0 | AV198: 0 | AW198: 0 | AX198: 0 | AY198: 0 | AZ198: 0 | BA198: 0 | BB198: 0 | BC198: 0 | BD198: 0 | BE198: 0 | BF198: 0 | BG198: 0 | BH198: 0 | BI198: 0 | BJ198: 0 | BK198: 0 | BL198: 0 | BM198: 0 | BN198: 0
B199: 197 | E199: 197 | S199: 0 | T199: 0 | U199: 0 | V199: 0 | W199: 0 | X199: 0 | Y199: 0 | Z199: 0 | AA199: 0 | AB199: 0 | AC199: 0 | AD199: 0 | AE199: 0 | AF199: 0 | AG199: 0 | AH199: 0 | AI199: 0 | AJ199: 0 | AK199: 0 | AL199: 0 | AM199: 0 | AS199: 0 | AT199: 0 | AU199: 0 | AV199: 0 | AW199: 0 | AX199: 0 | AY199: 0 | AZ199: 0 | BA199: 0 | BB199: 0 | BC199: 0 | BD199: 0 | BE199: 0 | BF199: 0 | BG199: 0 | BH199: 0 | BI199: 0 | BJ199: 0 | BK199: 0 | BL199: 0 | BM199: 0 | BN199: 0
B200: 198 | E200: 198 | S200: 0 | T200: 0 | U200: 0 | V200: 0 | W200: 0 | X200: 0 | Y200: 0 | Z200: 0 | AA200: 0 | AB200: 0 | AC200: 0 | AD200: 0 | AE200: 0 | AF200: 0 | AG200: 0 | AH200: 0 | AI200: 0 | AJ200: 0 | AK200: 0 | AL200: 0 | AM200: 0 | AS200: 0 | AT200: 0 | AU200: 0 | AV200: 0 | AW200: 0 | AX200: 0 | AY200: 0 | AZ200: 0 | BA200: 0 | BB200: 0 | BC200: 0 | BD200: 0 | BE200: 0 | BF200: 0 | BG200: 0 | BH200: 0 | BI200: 0 | BJ200: 0 | BK200: 0 | BL200: 0 | BM200: 0 | BN200: 0
... 300 more rows

Sheet MultipleReg
A1: Z = | B1: =AL12 -> 5920.2908 | C1: + | D1: =AL15 -> 48.6294 | E1: X | F1: + | G1: =AL18 -> -2715.7895 | H1: Y
A3: Z = | B3: =B1+(D1*E3)+(G1*H3) -> 95031.797 | C3: when | D3: X = | E3: 2000 | F3: and | G3: Y = | H3: 3
B5: Dependent | C5: Multiple Regression
B6: Variable | C6: Ind Var | D6: Ind Var | E6: Rz.xy = | U6: Mean Pred | V6: =AVERAGE(V8:V507) -> 114558.8235
B7: Z | C7: X | D7: Y | E7: =(((F8^2)+(F11^2)-(2*F8*F11*F14))/(1-F14^2))^0.5 -> 0.8045 | F7: R(zx) = | M7: Z2 | N7: X2 | O7: Y2 | P7: XZ | Q7: YZ | R7: XY | V7: Predicted | W7: Regression | X7: Reg Squared | Y7: Residual | Z7: Res Squared | AC7: 5.407
B8: 64000 | C8: 1670 | D8: 2 | E8: r2 = | F8: =(((U26*U20)-(U8*U10))/(((U26*U14)-(U8^2))*((U26*U16)-(U10^2)))^0.5) -> 0.8040 | M8: =IF(B8="","",B8^2) -> 4096000000 | N8: =IF(C8="","",C8^2) -> 2788900 | O8: =IF(D8="","",D8^2) -> 4 | P8: =IF(B8="","",IF(C8="","",B8*C8)) -> 106880000 | Q8: =IF(B8="","",IF(D8="","",B8*D8)) -> 128000 | R8: =IF(C8="","",IF(D8="","",C8*D8)) -> 3340 | T8: Sum Z = | U8: =SUM(B8:B506) -> 1947500 | V8: =IF(ISBLANK(B8),"",$B$1+($D$1*C8)+($G$1*D8)) -> 81699.87191 | W8: =IF(ISBLANK(B8),"",V8-$V$6) -> -32858.95162 | X8: =IF(ISBLANK(B8),"",W8^2) -> 1079710702 | Y8: =IF(ISBLANK(B8),"",B8-V8) -> -17699.87191 | Z8: =IF(ISBLANK(B8),"",Y8^2) -> 313285465.6 | AB8: =(((1-E9)/((1-(F14^2))*(U26-3)))^0.5)*(2.78) -> 0.6957835183
B9: 59000 | C9: 1339 | D9: 2 | E9: =E7^2 -> 0.64723 | M9: =IF(B9="","",B9^2) -> 3481000000 | N9: =IF(C9="","",C9^2) -> 1792921 | O9: =IF(D9="","",D9^2) -> 4 | P9: =IF(B9="","",IF(C9="","",B9*C9)) -> 79001000 | Q9: =IF(B9="","",IF(D9="","",B9*D9)) -> 118000 | R9: =IF(C9="","",IF(D9="","",C9*D9)) -> 2678 | V9: 65603.52818 | W9: -48955.29535 | X9: 2396620943 | Y9: -6603.52818 | Z9: 43606584.42 | AC9: CRAMERS RULE X3 | AF9: =U26 -> 17.00 | AG9: =U10 -> 40938.00 | AH9: =U12 -> 53.00 | AI9: =U8 -> 1947500.00 | AK9: D = | AL9: =((((AC14*AD15)*AE16)+((AD14*AE15)*AC16))+((AE14*AC15)*AD16))-((((AE14*AD15)*AC16)+((AC14*AE15)*AD16))+((AD14*AC15)*AE16)) -> 241733951.00000
B10: 61500 | C10: 1712 | D10: 3 | E10: Adjusted r2 = | F10: R(zy) = | M10: 3782250000 | N10: 2930944 | O10: 9 | P10: 105288000 | Q10: 184500 | R10: 5136 | T10: Sum X = | U10: =SUM(C8:C506) -> 40938 | V10: 81026.51875 | W10: -33532.30478 | X10: 1124415464 | Y10: -19526.51875 | Z10: 381284934.4 | AB10: =(E13) -> 22780.32683 | AF10: =U10 -> 40938.00 | AG10: =U16 -> 104715644.00 | AH10: =U24 -> 132227.00 | AI10: =U20 -> 4975527000.00
B11: 79000 | C11: 1840 | D11: 3 | E11: =1-((1-E9)*((U26-1)/(U26-2-1))) -> 0.59684 | F11: =(((U26*U22)-(U8*U12))/(((U26*U14)-(U8^2))*((U26*U18)-(U12^2)))^0.5) -> 0.6033 | M11: 6241000000 | N11: 3385600 | O11: 9 | P11: 145360000 | Q11: 237000 | R11: 5520 | V11: 87251.08671 | W11: -27307.73682 | X11: 745712490 | Y11: -8251.086714 | Z11: 68080431.97 | AB11: =AB10^2 -> 518943290.3 | AF11: =U12 -> 53.00 | AG11: =U24 -> 132227.00 | AH11: =U18 -> 171.00 | AI11: =U22 -> 6279500.00 | AK11: Dx = | AL11: =((((AC19*AD20)*AE21)+((AD19*AE20)*AC21))+((AE19*AC20)*AD21))-((((AE19*AD20)*AC21)+((AC19*AE20)*AD21))+((AD19*AC20)*AE21)) -> 1431135276496.00000
B12: 87500 | C12: 2300 | D12: 3 | E12: Standard error = | M12: 7656250000 | N12: 5290000 | O12: 9 | P12: 201250000 | Q12: 262500 | R12: 6900 | T12: Sum Y = | U12: =SUM(D8:D506) -> 53 | V12: 109620.6278 | W12: -4938.195683 | X12: 24385776.6 | Y12: -22120.62785 | Z12: 489322176.3 | AB12: =((1-(F14)^2)*(1)*(U26-1))^0.5 -> 2.536940741 | AK12: X = | AL12: =+AL11/AL9 -> 5920.29076
B13: 92500 | C13: 2234 | D13: 3 | E13: =I18^0.5 -> 22780.32683 | F13: R(xy) = | M13: 8556250000 | N13: 4990756 | O13: 9 | P13: 206645000 | Q13: 277500 | R13: 6702 | V13: 106411.085 | W13: -8147.738541 | X13: 66385643.33 | Y13: -13911.08499 | Z13: 193518285.6 | AC13: D = | AG13: Dy =
B14: 95000 | C14: 2311 | D14: 3 | E14: Observations = | F14: =(((U26*U24)-(U10*U12))/(((U26*U16)-(U10^2))*((U26*U18)-(U12^2)))^0.5) -> 0.7731 | M14: 9025000000 | N14: 5340721 | O14: 9 | P14: 219545000 | Q14: 285000 | R14: 6933 | T14: Sum Z2 = | U14: =SUM(M8:M506) -> 243698250000 | V14: 110155.5517 | W14: -4403.271873 | X14: 19388803.19 | Y14: -15155.55166 | Z14: 229690746 | AC14: =+AF9 -> 17.00 | AD14: 40938.00 | AE14: 53.00 | AG14: =+AF9 -> 17.00 | AH14: =+AI9 -> 1947500.00 | AI14: =+AH9 -> 53.00 | AK14: Dy = | AL14: =((((AG14*AH15)*AI16)+((AH14*AI15)*AG16))+((AI14*AG15)*AH16))-((((AI14*AH15)*AG16)+((AG14*AI15)*AH16))+((AH14*AG15)*AI16)) -> 11755386000.00000
B15: 113000 | C15: 2377 | D15: 3 | E15: =U26 -> 17 | M15: 12769000000 | N15: 5650129 | O15: 9 | P15: 268601000 | Q15: 339000 | R15: 7131 | V15: 113365.0945 | W15: -1193.729015 | X15: 1424988.961 | Y15: -365.0945146 | Z15: 133294.0046 | AB15: =AB10/AB8 -> 32740.53815 | AC15: 40938.00 | AD15: 104715644.00 | AE15: 132227.00 | AG15: =+AF10 -> 40938.00 | AH15: =+AI10 -> 4975527000.00 | AI15: =+AH10 -> 132227.00 | AK15: Y = | AL15: =+AL14/AL9 -> 48.62944
B16: 115000 | C16: 2736 | D16: 4 | E16: p = | G16: Sum of Squares | H16: df | I16: Mean Squares | J16: F | K16: p | M16: 13225000000 | N16: 7485696 | O16: 16 | P16: 314640000 | Q16: 460000 | R16: 10944 | T16: Sum X2 = | U16: =SUM(N8:N506) -> 104715644 | V16: 128107.273 | W16: 13548.44943 | X16: 183560482 | Y16: -13107.27296 | Z16: 171800604.5 | AB16: =AB10/AB12 -> 8979.447749 | AC16: 53.00 | AD16: 132227.00 | AE16: 171.00 | AG16: =+AF11 -> 53.00 | AH16: =+AI11 -> 6279500.00 | AI16: =+AH11 -> 171.00
B17: 138000 | C17: 2500 | D17: 3 | E17: =K17 -> 0.000680 | F17: Regression | G17: =SUM(X8:X507) -> 1.332973511e+10 | H17: 2 | I17: =G17/H17 -> 6664867556 | J17: =I17/I18 -> 12.843152 | K17: =FDIST(J17,H17,H18) -> 0.000680 | M17: 19044000000 | N17: 6250000 | O17: 9 | P17: 345000000 | Q17: 414000 | R17: 7500 | V17: 119346.5153 | W17: 4787.691766 | X17: 22921992.45 | Y17: 18653.4847 | Z17: 347952491.6 | AK17: Dz = | AL17: =((((AG19*AH20)*AI21)+((AH19*AI20)*AG21))+((AI19*AG20)*AH21))-((((AI19*AH20)*AG21)+((AG19*AI20)*AH21))+((AH19*AG20)*AI21)) -> -656498532000.00000
B18: 142000 | C18: 2500 | D18: 4 | F18: Residual | G18: =SUM(Z8:Z507) -> 7265206064 | H18: =U26-3 -> 14 | I18: =G18/H18 -> 518943290.3 | M18: 20164000000 | N18: 6250000 | O18: 16 | P18: 355000000 | Q18: 568000 | R18: 10000 | T18: Sum Y2 = | U18: =SUM(O8:O506) -> 171 | V18: 116630.7258 | W18: 2071.902241 | X18: 4292778.897 | Y18: 25369.27423 | Z18: 643600074.9 | AC18: Dx = | AG18: Dz = | AK18: Z = | AL18: =+AL17/AL9 -> -2715.78953
B19: 144000 | C19: 2479 | D19: 3 | E19: Rx.zy = | F19: Total | G19: =G17+G18 -> 2.059494118e+10 | H19: =H17+H18 -> 16 | M19: 20736000000 | N19: 6145441 | O19: 9 | P19: 356976000 | Q19: 432000 | R19: 7437 | V19: 118325.2971 | W19: 3766.473584 | X19: 14186323.26 | Y19: 25674.70289 | Z19: 659190368.3 | AC19: =+AI9 -> 1947500.00 | AD19: =+AG9 -> 40938.00 | AE19: 53.00 | AG19: =+AF9 -> 17.00 | AH19: 40938.00 | AI19: =+AI9 -> 1947500.00
B20: 145000 | C20: 2400 | D20: 3 | E20: =(((F8^2)+(F14^2)-(2*F8*F11*F14))/(1-F11^2))^0.5 -> 0.8814 | M20: 21025000000 | N20: 5760000 | O20: 9 | P20: 348000000 | Q20: 435000 | R20: 7200 | T20: Sum ZX = | U20: =SUM(P8:P506) -> 4975527000 | V20: 114483.5716 | W20: -75.2519582 | X20: 5662.857213 | Y20: 30516.42843 | Z20: 931252404.1 | AC20: =+AI10 -> 4975527000.00 | AD20: 104715644.00 | AE20: 132227.00 | AG20: 40938.00 | AH20: 104715644.00 | AI20: =+AI10 -> 4975527000.00
B21: 147500 | C21: 3124 | D21: 4 | G21: Coefficients | H21: Standard Error | I21: t-Stat | J21: p-value | M21: 21756250000 | N21: 9759376 | O21: 16 | P21: 460790000 | Q21: 590000 | R21: 12496 | V21: 146975.4946 | W21: 32416.67108 | X21: 1050840564 | Y21: 524.505389 | Z21: 275105.9031 | AC21: =+AI11 -> 6279500.00 | AD21: 132227.00 | AE21: 171.00 | AG21: 53.00 | AH21: 132227.00 | AI21: =+AI11 -> 6279500.00
B22: 144000 | C22: 2500 | D22: 3 | E22: Ry.zx = | F22: Intercept | G22: =B1 -> 5920.2908 | M22: 20736000000 | N22: 6250000 | O22: 9 | P22: 360000000 | Q22: 432000 | R22: 7500 | T22: Sum ZY = | U22: =SUM(Q8:Q506) -> 6279500 | V22: 119346.5153 | W22: 4787.691766 | X22: 22921992.45 | Y22: 24653.4847 | Z22: 607794308.1
B23: 155500 | C23: 4062 | D23: 4 | E23: =(((F11^2)+(F14^2)-(2*F8*F11*F14))/(1-F8^2))^0.5 -> 0.7738 | F23: X | G23: =D1 -> 48.6294 | H23: =E13/(((1-(F14^2))*(U30)*(U26-1))^0.5) -> 14.50454678 | I23: =G23/H23 -> 3.352702981 | J23: =TDIST(ABS(I23),$U$26-3,2) -> 0.004738414049 | M23: 24180250000 | N23: 16499844 | O23: 16 | P23: 631641000 | Q23: 622000 | R23: 16248 | V23: 192589.9067 | W23: 78031.08322 | X23: 6088849948 | Y23: -37089.90675 | Z23: 1375661182
B24: 165000 | C24: 2854 | D24: 3 | F24: Y | G24: =G1 -> -2715.7895 | H24: =E13/(((1-(F14^2))*(U32)*(U26-1))^0.5) -> 14959.63653 | I24: =G24/H24 -> -0.1815411437 | J24: =TDIST(ABS(I24),$U$26-3,2) -> 0.8585449975 | M24: 27225000000 | N24: 8145316 | O24: 9 | P24: 470910000 | Q24: 495000 | R24: 8562 | T24: Sum XY = | U24: =SUM(R8:R506) -> 132227 | V24: 136561.3361 | W24: 22002.51255 | X24: 484110558.5 | Y24: 28438.66392 | Z24: 808757605.5
E26: Rzx.y = | G26: Signifcance Level | T26: N = | U26: =COUNT(B8:B506) -> 17
E27: =(F8-(F11*F14))/((1-(F11^2))*(1-(F14^2)))^0.5 -> 0.6673 | G27: 0.05 | H27: Confidence interval for X
G28: =G23-(L28*H23) -> 17.5203 | H28: < X < | I28: =G23+(L28*H23) -> 79.7386 | L28: =TINV(G27,H18) -> 2.144786688 | T28: Variance Z = | U28: =(STDEV(B8:B507))^2 -> 1287183824
E29: Rzy.x = | T29: Stdev Z = | U29: =U28^0.5 -> 35877.34415
E30: =(F11-(F8*F14))/((1-(F8^2))*(1-(F14^2)))^0.5 -> -0.0485 | G30: Signifcance Level | T30: Variance X = | U30: =(STDEV(C8:C507))^2 -> 383257.7353
G31: 0.05 | H31: Confidence interval for Y | T31: Stdev X = | U31: =U30^0.5 -> 619.0781334
E32: Rxy.z = | G32: =G24-(L32*H24) -> -34801.0188 | H32: < Y < | I32: =G24+(L32*H24) -> 29369.4398 | L32: =TINV(G31,H18) -> 2.144786688 | T32: Variance Y = | U32: =(STDEV(D8:D507))^2 -> 0.3602941176
E33: =(F14-(F8*F11))/((1-(F8^2))*(1-(F11^2)))^0.5 -> 0.6075 | T33: Stdev Y = | U33: =U32^0.5 -> 0.600245048 | AB33: =U33/U36 -> 0.01668333883
T35: Variance X&Y = | U35: =STDEV(C8:D507) -> 1294.467739
T36: Stdev X&Y = | U36: =U35^0.5 -> 35.97871231
V72: =IF(ISBLANK(B72),"",$B$1+($D$1*C72)+($G$1*D72)) ->  | W72: =IF(ISBLANK(B72),"",V72-$V$6) ->  | X72: =IF(ISBLANK(B72),"",W72^2) ->  | Y72: =IF(ISBLANK(B72),"",B72-V72) ->  | Z72: =IF(ISBLANK(B72),"",Y72^2) -> 
M73: =IF(B73="","",B73^2) ->  | N73: =IF(C73="","",C73^2) ->  | O73: =IF(D73="","",D73^2) ->  | P73: =IF(B73="","",IF(C73="","",B73*C73)) ->  | Q73: =IF(B73="","",IF(D73="","",B73*D73)) ->  | R73: =IF(C73="","",IF(D73="","",C73*D73)) -> 
V136: =IF(ISBLANK(B136),"",$B$1+($D$1*C136)+($G$1*D136)) ->  | W136: =IF(ISBLANK(B136),"",V136-$V$6) ->  | X136: =IF(ISBLANK(B136),"",W136^2) ->  | Y136: =IF(ISBLANK(B136),"",B136-V136) ->  | Z136: =IF(ISBLANK(B136),"",Y136^2) -> 
M137: =IF(B137="","",B137^2) ->  | N137: =IF(C137="","",C137^2) ->  | O137: =IF(D137="","",D137^2) ->  | P137: =IF(B137="","",IF(C137="","",B137*C137)) ->  | Q137: =IF(B137="","",IF(D137="","",B137*D137)) ->  | R137: =IF(C137="","",IF(D137="","",C137*D137)) -> 
V200: =IF(ISBLANK(B200),"",$B$1+($D$1*C200)+($G$1*D200)) ->  | W200: =IF(ISBLANK(B200),"",V200-$V$6) ->  | X200: =IF(ISBLANK(B200),"",W200^2) ->  | Y200: =IF(ISBLANK(B200),"",B200-V200) ->  | Z200: =IF(ISBLANK(B200),"",Y200^2) -> 
M201: =IF(B201="","",B201^2) ->  | N201: =IF(C201="","",C201^2) ->  | O201: =IF(D201="","",D201^2) ->  | P201: =IF(B201="","",IF(C201="","",B201*C201)) ->  | Q201: =IF(B201="","",IF(D201="","",B201*D201)) ->  | R201: =IF(C201="","",IF(D201="","",C201*D201)) -> 
V264: =IF(ISBLANK(B264),"",$B$1+($D$1*C264)+($G$1*D264)) ->  | W264: =IF(ISBLANK(B264),"",V264-$V$6) ->  | X264: =IF(ISBLANK(B264),"",W264^2) ->  | Y264: =IF(ISBLANK(B264),"",B264-V264) ->  | Z264: =IF(ISBLANK(B264),"",Y264^2) -> 
M265: =IF(B265="","",B265^2) ->  | N265: =IF(C265="","",C265^2) ->  | O265: =IF(D265="","",D265^2) ->  | P265: =IF(B265="","",IF(C265="","",B265*C265)) ->  | Q265: =IF(B265="","",IF(D265="","",B265*D265)) ->  | R265: =IF(C265="","",IF(D265="","",C265*D265)) -> 
V328: =IF(ISBLANK(B328),"",$B$1+($D$1*C328)+($G$1*D328)) ->  | W328: =IF(ISBLANK(B328),"",V328-$V$6) ->  | X328: =IF(ISBLANK(B328),"",W328^2) ->  | Y328: =IF(ISBLANK(B328),"",B328-V328) ->  | Z328: =IF(ISBLANK(B328),"",Y328^2) -> 
M329: =IF(B329="","",B329^2) ->  | N329: =IF(C329="","",C329^2) ->  | O329: =IF(D329="","",D329^2) ->  | P329: =IF(B329="","",IF(C329="","",B329*C329)) ->  | Q329: =IF(B329="","",IF(D329="","",B329*D329)) ->  | R329: =IF(C329="","",IF(D329="","",C329*D329)) -> 
V392: =IF(ISBLANK(B392),"",$B$1+($D$1*C392)+($G$1*D392)) ->  | W392: =IF(ISBLANK(B392),"",V392-$V$6) ->  | X392: =IF(ISBLANK(B392),"",W392^2) ->  | Y392: =IF(ISBLANK(B392),"",B392-V392) ->  | Z392: =IF(ISBLANK(B392),"",Y392^2) -> 
M393: =IF(B393="","",B393^2) ->  | N393: =IF(C393="","",C393^2) ->  | O393: =IF(D393="","",D393^2) ->  | P393: =IF(B393="","",IF(C393="","",B393*C393)) ->  | Q393: =IF(B393="","",IF(D393="","",B393*D393)) ->  | R393: =IF(C393="","",IF(D393="","",C393*D393)) -> 
V456: =IF(ISBLANK(B456),"",$B$1+($D$1*C456)+($G$1*D456)) ->  | W456: =IF(ISBLANK(B456),"",V456-$V$6) ->  | X456: =IF(ISBLANK(B456),"",W456^2) ->  | Y456: =IF(ISBLANK(B456),"",B456-V456) ->  | Z456: =IF(ISBLANK(B456),"",Y456^2) -> 
M457: =IF(B457="","",B457^2) ->  | N457: =IF(C457="","",C457^2) ->  | O457: =IF(D457="","",D457^2) ->  | P457: =IF(B457="","",IF(C457="","",B457*C457)) ->  | Q457: =IF(B457="","",IF(D457="","",B457*D457)) ->  | R457: =IF(C457="","",IF(D457="","",C457*D457)) -> 

Sheet MultipleData
B1: N | C1: = | J1: N | K1: =
B3: Mean 1 | D3: Mean 2 | F3: Mean 3 | J3: Mean 1 | L3: Mean 2 | N3: Mean 3 | P3: Mean 4
B6: StDev 1 | D6: StDev 2 | F6: StDev 3 | J6: StDev 1 | L6: StDev 2 | N6: StDev 3 | P6: StDev 4
B9: r12 | D9: r13 | F9: r23 | J9: r12 | L9: r13 | N9: r14 | P9: r23 | R9: r24 | T9: r34
B12: R1.23 | C12: = | D12: =(((B10^2)+(D10^2)-(2*B10*D10*F10))/(1-(F10^2)))^0.5 -> 0.0000 | F12: R12.3 | G12: = | H12: =((B10-(D10*F10))/((1-(D10^2))*(1-(F10^2)))^0.5) -> 0.0000 | J12: R12.4 | K12: = | L12: =((J10-(N10*R10))/((1-(N10^2))*(1-(R10^2)))^0.5) -> 0.0000 | N12: R14.3 | O12: = | P12: =((N10-(L10*T10))/((1-(L10^2))*(1-(T10^2)))^0.5) -> 0.0000 | R12: R12.34 | S12: = | T12: =((L12-(L14*L16))/((1-(L14^2))*(1-(L16^2)))^0.5) -> 0.0000
B14: R2.13 | C14: = | D14: =(((B10^2)+(F10^2)-(2*B10*D10*F10))/(1-(D10^2)))^0.5 -> 0.0000 | F14: R13.2 | G14: = | H14: =((D10-(B10*F10))/((1-(B10^2))*(1-(F10^2)))^0.5) -> 0.0000 | J14: R13.4 | K14: = | L14: =((L10-(N10*T10))/((1-(N10^2))*(1-(T10^2)))^0.5) -> 0.0000 | N14: R12.3 | O14: = | P14: =((J10-(L10*P10))/((1-(L10^2))*(1-(P10^2)))^0.5) -> 0.0000 | R14: R13.24 | S14: = | T14: =((L14-(L12*L16))/((1-(L12^2))*(1-(L16^2)))^0.5) -> 0.0000
B16: R3.12 | C16: = | D16: =(((D10^2)+(F10^2)-(2*B10*D10*F10))/(1-(B10^2)))^0.5 -> 0.0000 | F16: R23.1 | G16: = | H16: =((F10-(B10*D10))/((1-(B10^2))*(1-(D10^2)))^0.5) -> 0.0000 | J16: R23.4 | K16: = | L16: =((P10-(R10*T10))/((1-(R10^2))*(1-(T10^2)))^0.5) -> 0.0000 | N16: R24.3 | O16: = | P16: =((R10-(P10*T10))/((1-(P10^2))*(1-(T10^2)))^0.5) -> 0.0000 | R16: R14.23 | S16: = | T16: =((P12-(P14*P16))/((1-(P14^2))*(1-(P16^2)))^0.5) -> 0.0000
C18: X2 = | E18: X3 =
B20: Regression Equation of X1 on X2 and X3
A21: X1 = | B21: =B4-(D21*D4)-(F21*F4) ->  | C21: + | D21: =(((B10-(D10*F10))/(1-(F10^2)))*(B7/D7)) ->  | E21: X2 + | F21: =(((D10-(B10*F10))/(1-(F10^2)))*(B7/F7)) ->  | G21: X3
A23: X1 = | B23: =B21+(D21*D18)+(F21*F18) -> 
F37: =((F10-(B10*D10))/(((1-(B10^2))*((1-(D10^2))))^0.5)) -> 0
D41: =D1 -> 0.00 | F41: =D4*D1 -> 0.00 | G41: =F4*D1 -> 0.00 | H41: =B4*D1 -> 0.00 | J41: D = | K41: =((((B46*C47)*D48)+((C46*D47)*B48))+((D46*B47)*C48))-((((D46*C47)*B48)+((B46*D47)*C48))+((C46*B47)*D48)) -> 
D42: =D4*D1 -> 0.00 | F42: =(D1*(D7^2))+(D1*(D4^2)) -> 0.00 | G42: c2 | H42: d2
D43: a3 | F43: b3 | G43: c3 | H43: d3 | J43: Dx = | K43: =((((B51*C52)*D53)+((C51*D52)*B53))+((D51*B52)*C53))-((((D51*C52)*B53)+((B51*D52)*C53))+((C51*B52)*D53)) -> 
J44: X = | K44: =+K43/K41 -> 
B45: D = | F45: Dy =
B46: =+D41 -> 0.00 | C46: =+F41 -> 0.00 | D46: 0.00 | F46: =+D41 -> 0.00 | G46: =+H41 -> 0.00 | H46: =+G41 -> 0.00 | J46: Dy = | K46: =((((F46*G47)*H48)+((G46*H47)*F48))+((H46*F47)*G48))-((((H46*G47)*F48)+((F46*H47)*G48))+((G46*F47)*H48)) -> 
B47: =+D42 -> 0.00 | C47: 0.00 | D47: c2 | F47: =+D42 -> 0.00 | G47: =+H42 -> d2 | H47: =+G42 -> c2 | J47: Y = | K47: =+K46/K41 -> 
B48: =+D43 -> a3 | C48: b3 | D48: c3 | F48: =+D43 -> a3 | G48: =+H43 -> d3 | H48: =+G43 -> c3
J49: Dz = | K49: =((((F51*G52)*H53)+((G51*H52)*F53))+((H51*F52)*G53))-((((H51*G52)*F53)+((F51*H52)*G53))+((G51*F52)*H53)) -> 
B50: Dx = | F50: Dz = | J50: Z = | K50: =+K49/K41 -> 
B51: =+H41 -> 0.00 | C51: =+F41 -> 0.00 | D51: 0.00 | F51: =+D41 -> 0.00 | G51: =+F41 -> 0.00 | H51: =+H41 -> 0.00
B52: =+H42 -> d2 | C52: 0.00 | D52: c2 | F52: =+D42 -> 0.00 | G52: =+F42 -> 0.00 | H52: =+H42 -> d2
B53: =+H43 -> d3 | C53: b3 | D53: c3 | F53: =+D43 -> a3 | G53: =+F43 -> b3 | H53: =+H43 -> d3

Sheet tvalues
B1: 0.10 | C1: 0.05 | D1: 0.01 | E1: Two-Tail
A2: 1 | B2: 6.3138 | C2: 12.7062 | D2: 63.6574
A3: =A2+1 -> 2 | B3: 2.9200 | C3: 4.3027 | D3: 9.9248
A4: 3 | B4: 2.3534 | C4: 3.1824 | D4: 5.8409
A5: 4 | B5: 2.1318 | C5: 2.7764 | D5: 4.6041
A6: 5 | B6: 2.0150 | C6: 2.5706 | D6: 4.0322
A7: 6 | B7: 1.9432 | C7: 2.4469 | D7: 3.7074
A8: 7 | B8: 1.8946 | C8: 2.3646 | D8: 3.4995
A9: 8 | B9: 1.8595 | C9: 2.3060 | D9: 3.3554
A10: 9 | B10: 1.8331 | C10: 2.2622 | D10: 3.2498
A11: 10 | B11: 1.8125 | C11: 2.2281 | D11: 3.1693
A12: 11 | B12: 1.7959 | C12: 2.2010 | D12: 3.1058
A13: 12 | B13: 1.7823 | C13: 2.1788 | D13: 3.0545
A14: 13 | B14: 1.7709 | C14: 2.1604 | D14: 3.0123
A15: 14 | B15: 1.7613 | C15: 2.1448 | D15: 2.9768
A16: 15 | B16: 1.7531 | C16: 2.1315 | D16: 2.9467
A17: 16 | B17: 1.7459 | C17: 2.1199 | D17: 2.9208
A18: 17 | B18: 1.7396 | C18: 2.1098 | D18: 2.8982
A19: 18 | B19: 1.7341 | C19: 2.1009 | D19: 2.8784
A20: 19 | B20: 1.7291 | C20: 2.0930 | D20: 2.8609
A21: 20 | B21: 1.7247 | C21: 2.0860 | D21: 2.8453
A22: 21 | B22: 1.7207 | C22: 2.0796 | D22: 2.8314
A23: 22 | B23: 1.7171 | C23: 2.0739 | D23: 2.8188
A24: 23 | B24: 1.7139 | C24: 2.0687 | D24: 2.8073
A25: 24 | B25: 1.7109 | C25: 2.0639 | D25: 2.7969
A26: 25 | B26: 1.7081 | C26: 2.0595 | D26: 2.7874
A27: 26 | B27: 1.7056 | C27: 2.0555 | D27: 2.7787
A28: 27 | B28: 1.7033 | C28: 2.0518 | D28: 2.7707
A29: 28 | B29: 1.7011 | C29: 2.0484 | D29: 2.7633
A30: 29 | B30: 1.6991 | C30: 2.0452 | D30: 2.7564
A31: 30 | B31: 1.6973 | C31: 2.0423 | D31: 2.7500
A32: 31 | B32: 1.6955 | C32: 2.0395 | D32: 2.7740
A33: 32 | B33: 1.6939 | C33: 2.0369 | D33: 2.7385
A34: 33 | B34: 1.6924 | C34: 2.0345 | D34: 2.7333
A35: 34 | B35: 1.6911 | C35: 2.0322 | D35: 2.7284
A36: 35 | B36: 1.6896 | C36: 2.0301 | D36: 2.7238
A37: 36 | B37: 1.6883 | C37: 2.0281 | D37: 2.7195
A38: 37 | B38: 1.6871 | C38: 2.0262 | D38: 2.7154
A39: 38 | B39: 1.6860 | C39: 2.0244 | D39: 2.7116
A40: 39 | B40: 1.6849 | C40: 2.0227 | D40: 2.7079
A41: 40 | B41: 1.6839 | C41: 2.0211 | D41: 2.7045
A42: 41 | B42: 1.6829 | C42: 2.0195 | D42: 2.7012
A43: 42 | B43: 1.6820 | C43: 2.0181 | D43: 2.6981
A44: 43 | B44: 1.6811 | C44: 2.0167 | D44: 2.6951
A45: 44 | B45: 1.6802 | C45: 2.0154 | D45: 2.6923
A46: 45 | B46: 1.6794 | C46: 2.0141 | D46: 2.6896
A47: 46 | B47: 1.6787 | C47: 2.0129 | D47: 2.6870
A48: 47 | B48: 1.6779 | C48: 2.0117 | D48: 2.6846
A49: 48 | B49: 1.6772 | C49: 2.0106 | D49: 2.6822
A50: 49 | B50: 1.6766 | C50: 2.0096 | D50: 2.6800
A51: 50 | B51: 1.6759 | C51: 2.0086 | D51: 2.6778
A52: 51 | B52: 1.6753 | C52: 2.0076 | D52: 2.6757
A53: 52 | B53: 1.6747 | C53: 2.0066 | D53: 2.6737
A54: 53 | B54: 1.6741 | C54: 2.0057 | D54: 2.6718
A55: 54 | B55: 1.6736 | C55: 2.0049 | D55: 2.6700
A56: 55 | B56: 1.6730 | C56: 2.0040 | D56: 2.6682
A57: 56 | B57: 1.6725 | C57: 2.0032 | D57: 2.6665
A58: 57 | B58: 1.6720 | C58: 2.0025 | D58: 2.6649
A59: 58 | B59: 1.6716 | C59: 2.0017 | D59: 2.6633
A60: 59 | B60: 1.6711 | C60: 2.0010 | D60: 2.6618
A61: 60 | B61: 1.6706 | C61: 2.0003 | D61: 2.6603
A62: 61 | B62: 1.6702 | C62: 1.9996 | D62: 2.6589
A63: 62 | B63: 1.6698 | C63: 1.9990 | D63: 2.6575
A64: 63 | B64: 1.6694 | C64: 1.9983 | D64: 2.6561
A65: 64 | B65: 1.6690 | C65: 1.9977 | D65: 2.6549
A66: 65 | B66: 1.6686 | C66: 1.9971 | D66: 2.6536
A67: =A66+1 -> 66 | B67: 1.6683 | C67: 1.9966 | D67: 2.6524
A68: 67 | B68: 1.6679 | C68: 1.9960 | D68: 2.6512
A69: 68 | B69: 1.6676 | C69: 1.9955 | D69: 2.6501
A70: 69 | B70: 1.6672 | C70: 1.9949 | D70: 2.6490
A71: 70 | B71: 1.6669 | C71: 1.9944 | D71: 2.6479
A72: 71 | B72: 1.6666 | C72: 1.9939 | D72: 2.6469
A73: 72 | B73: 1.6663 | C73: 1.9935 | D73: 2.6459
A74: 73 | B74: 1.6660 | C74: 1.9930 | D74: 2.6449
A75: 74 | B75: 1.6657 | C75: 1.9925 | D75: 2.6430
A76: 75 | B76: 1.6654 | C76: 1.9921 | D76: 2.6430
A77: 76 | B77: 1.6652 | C77: 1.9917 | D77: 2.6421
A78: 77 | B78: 1.6649 | C78: 1.9913 | D78: 2.6412
A79: 78 | B79: 1.6646 | C79: 1.9908 | D79: 2.6403
A80: 79 | B80: 1.6644 | C80: 1.9905 | D80: 2.6395
A81: 80 | B81: 1.6641 | C81: 1.9901 | D81: 2.6387
A82: 81 | B82: 1.6639 | C82: 1.9897 | D82: 2.6379
A83: 82 | B83: 1.6636 | C83: 1.9893 | D83: 2.6371
A84: 83 | B84: 1.6634 | C84: 1.9890 | D84: 2.6364
A85: 84 | B85: 1.6632 | C85: 1.9886 | D85: 2.6356
A86: 85 | B86: 1.6630 | C86: 1.9883 | D86: 2.6349
A87: 86 | B87: 1.6628 | C87: 1.9879 | D87: 2.6342
A88: 87 | B88: 1.6626 | C88: 1.9876 | D88: 2.6335
A89: 88 | B89: 1.6624 | C89: 1.9873 | D89: 2.6329
A90: 89 | B90: 1.6622 | C90: 1.9870 | D90: 2.6322
A91: 90 | B91: 1.6620 | C91: 1.9867 | D91: 2.6316
A92: 91 | B92: 1.6618 | C92: 1.9864 | D92: 2.6309
A93: 92 | B93: 1.6616 | C93: 1.9861 | D93: 2.6303
A94: 93 | B94: 1.6614 | C94: 1.9858 | D94: 2.6297
A95: 94 | B95: 1.6612 | C95: 1.9855 | D95: 2.6200
A96: 95 | B96: 1.6611 | C96: 1.9853 | D96: 2.6286
A97: 96 | B97: 1.6609 | C97: 1.9850 | D97: 2.6280
A98: 97 | B98: 1.6607 | C98: 1.9847 | D98: 2.6275
A99: 98 | B99: 1.6606 | C99: 1.9845 | D99: 2.6269
A100: 99 | B100: 1.6604 | C100: 1.9842 | D100: 2.6264
A101: 100 | B101: 1.6602 | C101: 1.9840 | D101: 2.6259
A102: 101 | B102: 1.6449 | C102: 1.9600 | D102: 2.5758
A103: = Z
